Workbook

Sheet Main
B10: 2023-02-16
B12: Sheet No. | C12: Template Name | D12: Summary
B13: 1 | C13: Future Intra | D13: For Intraday trading in F&O segment
B14: 2 | C14: Cash Intra | D14: For Intraday trading in cash market segment
B15: 3 | C15: Mid-cap Intra | D15: For Intraday trading in Mid-cap stocks
B16: 4 | C16: Bulk Deals | D16: Reveals Bulk Deals carried on NSE & BSE
B17: 5 | C17: Call Tracker
K27: `

Sheet Future Intra
M5: Back to Main Page
A6: FOR INTRA DAY TRADING | L6: =Main!B10 -> 2023-02-16
A9: Sr.no | B9: Sector | C9: Scrip | D9: Expiry Date | E9: CLOSE RATE | F9: Pivot Point | G9: Supports | J9: Resistances
E10: Point | F10: Point | G10: S1 | H10: S2 | I10: S3 | J10: R1 | K10: R2 | L10: R3 | M10: HIGH | N10: LOW | O10: OI | P10: % Change in OI
A11: 1 | B11: Index | C11: NIFTY | D11: 2023-02-23 | E11: 18035.15 | F11: 17985.50 | G11: 17922.00 | H11: 17808.85 | I11: 17745.35 | J11: 18098.65 | K11: 18162.15 | L11: 18275.30 | M11: 18049 | N11: 17872.35 | O11: 11371100 | P11: 1.44%
A12: 2 | B12: Index | C12: BANKNIFTY | D12: 2023-02-23 | E12: 41791.30 | F12: 41721.35 | G12: 41592.80 | H12: 41394.30 | I12: 41265.75 | J12: 41919.85 | K12: 42048.40 | L12: 42246.90 | M12: 41849.9 | N12: 41522.85 | O12: 2687175 | P12: 1.31%
A13: 3 | B13: Index | C13: FINNIFTY | D13: 2023-02-28 | E13: 18658.10 | F13: 18628.45 | G13: 18569.35 | H13: 18480.60 | I13: 18421.50 | J13: 18717.20 | K13: 18776.30 | L13: 18865.05 | M13: 18687.55 | N13: 18539.7 | O13: 16480 | P13: 7.01%
A14: 4 | B14: Index | C14: MIDCPNIFTY | D14: 2023-02-28 | E14: 6878.50 | F14: 2292.83 | G14: 4585.67 | H14: 2292.83 | I14: 4585.67 | J14: 4585.67 | K14: 2292.83 | L14: 4585.67 | M14: 0 | N14: 0 | O14: 0
A15: 5 | B15: Chemical | C15: AARTIIND | D15: 2023-02-23 | E15: 540.70 | F15: 541.05 | G15: 535.85 | H15: 531.00 | I15: 525.80 | J15: 545.90 | K15: 551.10 | L15: 555.95 | M15: 546.25 | N15: 536.2 | O15: 4969950 | P15: 3.07%
A16: 6 | B16: Capital_Goods | C16: ABB | D16: 2023-02-23 | E16: 3160.30 | F16: 3145.75 | G16: 3096.05 | H16: 3031.80 | I16: 2982.10 | J16: 3210.00 | K16: 3259.70 | L16: 3323.95 | M16: 3195.45 | N16: 3081.5 | O16: 1615250 | P16: -5.57%
A17: 7 | B17: Pharma | C17: ABBOTINDIA | D17: 2023-02-23 | E17: 20471.60 | F17: 20397.75 | G17: 20245.50 | H17: 20019.40 | I17: 19867.15 | J17: 20623.85 | K17: 20776.10 | L17: 21002.20 | M17: 20550 | N17: 20171.65 | O17: 50800 | P17: 2.42%
A18: 8 | B18: Others | C18: ABCAPITAL | D18: 2023-02-23 | E18: 145.70 | F18: 145.70 | G18: 144.45 | H18: 143.20 | I18: 141.95 | J18: 146.95 | K18: 148.20 | L18: 149.45 | M18: 146.95 | N18: 144.45 | O18: 32994000 | P18: 1.34%
A19: 9 | B19: Textile | C19: ABFRL | D19: 2023-02-23 | E19: 256.95 | F19: 254.23 | G19: 250.17 | H19: 243.38 | I19: 239.32 | J19: 261.02 | K19: 265.08 | L19: 271.87 | M19: 258.3 | N19: 247.45 | O19: 19786000 | P19: -3.50%
A20: 10 | B20: Cement | C20: ACC | D20: 2023-02-23 | E20: 1856.15 | F20: 1846.17 | G20: 1823.63 | H20: 1791.12 | I20: 1768.58 | J20: 1878.68 | K20: 1901.22 | L20: 1933.73 | M20: 1868.7 | N20: 1813.65 | O20: 4025500 | P20: 0.14%
A21: 11 | B21: Others | C21: ADANIENT | D21: 2023-02-23 | E21: 1783.15 | F21: 1786.82 | G21: 1746.58 | H21: 1710.02 | I21: 1669.78 | J21: 1823.38 | K21: 1863.62 | L21: 1900.18 | M21: 1827.05 | N21: 1750.25 | O21: 12270250 | P21: -0.16%
A22: 12 | B22: Others | C22: ADANIPORTS | D22: 2023-02-23 | E22: 569.70 | F22: 570.55 | G22: 561.30 | H22: 552.90 | I22: 543.65 | J22: 578.95 | K22: 588.20 | L22: 596.60 | M22: 579.8 | N22: 562.15 | O22: 57720625 | P22: 0.06%
A23: 13 | B23: Pharma | C23: ALKEM | D23: 2023-02-23 | E23: 3286.40 | F23: 3277.50 | G23: 3237.95 | H23: 3189.50 | I23: 3149.95 | J23: 3325.95 | K23: 3365.50 | L23: 3413.95 | M23: 3317.05 | N23: 3229.05 | O23: 762800 | P23: 2.36%
A24: 14 | B24: Cement | C24: AMBUJACEM | D24: 2023-02-23 | E24: 344.95 | F24: 345.32 | G24: 339.63 | H24: 334.32 | I24: 328.63 | J24: 350.63 | K24: 356.32 | L24: 361.63 | M24: 351 | N24: 340 | O24: 68733000 | P24: -0.40%
A25: 15 | B25: Others | C25: APOLLOHOSP | D25: 2023-02-23 | E25: 4488.00 | F25: 4394.73 | G25: 4274.52 | H25: 4061.03 | I25: 3940.82 | J25: 4608.22 | K25: 4728.43 | L25: 4941.92 | M25: 4514.95 | N25: 4181.25 | O25: 1820625 | P25: 13.40%
A26: 16 | B26: Automobile | C26: APOLLOTYRE | D26: 2023-02-23 | E26: 329.00 | F26: 328.62 | G26: 326.38 | H26: 323.77 | I26: 321.53 | J26: 331.23 | K26: 333.47 | L26: 336.08 | M26: 330.85 | N26: 326 | O26: 13139000 | P26: 1.21%
A27: 17 | B27: Automobile | C27: ASHOKLEY | D27: 2023-02-23 | E27: 150.05 | F27: 150.20 | G27: 148.45 | H27: 146.85 | I27: 145.10 | J27: 151.80 | K27: 153.55 | L27: 155.15 | M27: 151.95 | N27: 148.6 | O27: 75610000 | P27: -1.84%
A28: 18 | B28: FMCG | C28: ASIANPAINT | D28: 2023-02-23 | E28: 2794.75 | F28: 2785.45 | G28: 2770.40 | H28: 2746.05 | I28: 2731.00 | J28: 2809.80 | K28: 2824.85 | L28: 2849.20 | M28: 2800.5 | N28: 2761.1 | O28: 7747000 | P28: -0.63%
A29: 19 | B29: Others | C29: ASTRAL | D29: 2023-02-23 | E29: 1909.60 | F29: 1909.33 | G29: 1897.07 | H29: 1884.53 | I29: 1872.27 | J29: 1921.87 | K29: 1934.13 | L29: 1946.67 | M29: 1921.6 | N29: 1896.8 | O29: 2023175 | P29: 2.14%
A30: 20 | B30: Others | C30: ATUL | D30: 2023-02-23 | E30: 7201.65 | F30: 7211.28 | G30: 7153.57 | H30: 7105.48 | I30: 7047.77 | J30: 7259.37 | K30: 7317.08 | L30: 7365.17 | M30: 7269 | N30: 7163.2 | O30: 178050 | P30: -6.35%
A31: 21 | B31: Banking | C31: AUBANK | D31: 2023-02-23 | E31: 632.95 | F31: 633.03 | G31: 629.27 | H31: 625.58 | I31: 621.82 | J31: 636.72 | K31: 640.48 | L31: 644.17 | M31: 636.8 | N31: 629.35 | O31: 10448000 | P31: 6.48%
A32: 22 | B32: Pharma | C32: AUROPHARMA | D32: 2023-02-23 | E32: 471.90 | F32: 470.68 | G32: 467.57 | H32: 463.23 | I32: 460.12 | J32: 475.02 | K32: 478.13 | L32: 482.47 | M32: 473.8 | N32: 466.35 | O32: 16065000 | P32: -2.49%
A33: 23 | B33: Banking | C33: AXISBANK | D33: 2023-02-23 | E33: 870.80 | F33: 870.00 | G33: 865.30 | H33: 859.80 | I33: 855.10 | J33: 875.50 | K33: 880.20 | L33: 885.70 | M33: 874.7 | N33: 864.5 | O33: 48372000 | P33: 1.41%
A34: 24 | B34: Automobile | C34: BAJAJ-AUTO | D34: 2023-02-23 | E34: 3906.30 | F34: 3891.50 | G34: 3870.50 | H34: 3834.70 | I34: 3813.70 | J34: 3927.30 | K34: 3948.30 | L34: 3984.10 | M34: 3912.5 | N34: 3855.7 | O34: 1442500 | P34: 0.24%
A35: 25 | B35: Finance | C35: BAJAJFINSV | D35: 2023-02-23 | E35: 1421.15 | F35: 1411.58 | G35: 1399.07 | H35: 1376.98 | I35: 1364.47 | J35: 1433.67 | K35: 1446.18 | L35: 1468.27 | M35: 1424.1 | N35: 1389.5 | O35: 10893500 | P35: -1.44%
A36: 26 | B36: Finance | C36: BAJFINANCE | D36: 2023-02-23 | E36: 6490.05 | F36: 6463.60 | G36: 6432.50 | H36: 6374.95 | I36: 6343.85 | J36: 6521.15 | K36: 6552.25 | L36: 6609.80 | M36: 6494.7 | N36: 6406.05 | O36: 4827125 | P36: -1.25%
A37: 27 | B37: Automobile | C37: BALKRISIND | D37: 2023-02-23 | E37: 2017.40 | F37: 2005.62 | G37: 1989.18 | H37: 1960.97 | I37: 1944.53 | J37: 2033.83 | K37: 2050.27 | L37: 2078.48 | M37: 2022.05 | N37: 1977.4 | O37: 1989900 | P37: 0.03%
A38: 28 | B38: Others | C38: BALRAMCHIN | D38: 2023-02-23 | E38: 368.00 | F38: 364.08 | G38: 359.17 | H38: 350.33 | I38: 345.42 | J38: 372.92 | K38: 377.83 | L38: 386.67 | M38: 369 | N38: 355.25 | O38: 8096000 | P38: -2.92%
A39: 29 | B39: Banking | C39: BANDHANBNK | D39: 2023-02-23 | E39: 242.60 | F39: 240.55 | G39: 238.10 | H39: 233.60 | I39: 231.15 | J39: 245.05 | K39: 247.50 | L39: 252.00 | M39: 243 | N39: 236.05 | O39: 40825800 | P39: -1.14%
A40: 30 | B40: Banking | C40: BANKBARODA | D40: 2023-02-23 | E40: 169.65 | F40: 169.15 | G40: 168.30 | H40: 166.95 | I40: 166.10 | J40: 170.50 | K40: 171.35 | L40: 172.70 | M40: 170 | N40: 167.8 | O40: 108792450 | P40: -1.39%
A41: 31 | B41: FMCG | C41: BATAINDIA | D41: 2023-02-23 | E41: 1479.70 | F41: 1495.95 | G41: 1451.20 | H41: 1422.70 | I41: 1377.95 | J41: 1524.45 | K41: 1569.20 | L41: 1597.70 | M41: 1540.7 | N41: 1467.45 | O41: 2806650 | P41: 11.72%
A42: 32 | B42: Capital_Goods | C42: BEL | D42: 2023-02-23 | E42: 94.80 | F42: 94.52 | G42: 94.08 | H42: 93.37 | I42: 92.93 | J42: 95.23 | K42: 95.67 | L42: 96.38 | M42: 94.95 | N42: 93.8 | O42: 99573300 | P42: -0.83%
A43: 33 | B43: FMCG | C43: BERGEPAINT | D43: 2023-02-23 | E43: 559.05 | F43: 556.98 | G43: 554.17 | H43: 549.28 | I43: 546.47 | J43: 561.87 | K43: 564.68 | L43: 569.57 | M43: 559.8 | N43: 552.1 | O43: 7781400 | P43: 0.81%
A44: 34 | B44: Automobile | C44: BHARATFORG | D44: 2023-02-23 | E44: 835.75 | F44: 838.22 | G44: 810.53 | H44: 785.32 | I44: 757.63 | J44: 863.43 | K44: 891.12 | L44: 916.33 | M44: 865.9 | N44: 813 | O44: 8666000 | P44: 8.39%
A45: 35 | B45: Telecom | C45: BHARTIARTL | D45: 2023-02-23 | E45: 785.60 | F45: 781.90 | G45: 776.60 | H45: 767.60 | I45: 762.30 | J45: 790.90 | K45: 796.20 | L45: 805.20 | M45: 787.2 | N45: 772.9 | O45: 45809000 | P45: -1.08%
A46: 36 | B46: Capital_Goods | C46: BHEL | D46: 2023-02-23 | E46: 71.80 | F46: 71.23 | G46: 70.47 | H46: 69.13 | I46: 68.37 | J46: 72.57 | K46: 73.33 | L46: 74.67 | M46: 72 | N46: 69.9 | O46: 92064000 | P46: -2.22%
A47: 37 | B47: Pharma | C47: BIOCON | D47: 2023-02-23 | E47: 238.90 | F47: 236.77 | G47: 233.38 | H47: 227.87 | I47: 224.48 | J47: 242.28 | K47: 245.67 | L47: 251.18 | M47: 240.15 | N47: 231.25 | O47: 32873900 | P47: 4.74%
A48: 38 | B48: Automobile | C48: BOSCHLTD | D48: 2023-02-23 | E48: 17705.45 | F48: 17519.32 | G48: 17158.63 | H48: 16611.82 | I48: 16251.13 | J48: 18066.13 | K48: 18426.82 | L48: 18973.63 | M48: 17880 | N48: 16972.5 | O48: 167650 | P48: -7.14%
A49: 39 | B49: Oil_Gas | C49: BPCL | D49: 2023-02-23 | E49: 332.30 | F49: 331.48 | G49: 329.87 | H49: 327.43 | I49: 325.82 | J49: 333.92 | K49: 335.53 | L49: 337.97 | M49: 333.1 | N49: 329.05 | O49: 15168600 | P49: 1.43%
A50: 40 | B50: FMCG | C50: BRITANNIA | D50: 2023-02-23 | E50: 4589.75 | F50: 4577.82 | G50: 4551.03 | H50: 4512.32 | I50: 4485.53 | J50: 4616.53 | K50: 4643.32 | L50: 4682.03 | M50: 4604.6 | N50: 4539.1 | O50: 1499400 | P50: -7.87%
A51: 41 | B51: Technology | C51: BSOFT | D51: 2023-02-23 | E51: 294.15 | F51: 291.73 | G51: 287.52 | H51: 280.88 | I51: 276.67 | J51: 298.37 | K51: 302.58 | L51: 309.22 | M51: 295.95 | N51: 285.1 | O51: 9202000 | P51: 0.00%
A52: 42 | B52: Banking | C52: CANBK | D52: 2023-02-23 | E52: 296.25 | F52: 294.20 | G52: 291.30 | H52: 286.35 | I52: 283.45 | J52: 299.15 | K52: 302.05 | L52: 307.00 | M52: 297.1 | N52: 289.25 | O52: 44779500 | P52: 2.76%
A53: 43 | B53: Finance | C53: CANFINHOME | D53: 2023-02-23 | E53: 594.95 | F53: 594.48 | G53: 588.82 | H53: 582.68 | I53: 577.02 | J53: 600.62 | K53: 606.28 | L53: 612.42 | M53: 600.15 | N53: 588.35 | O53: 3211650 | P53: -3.35%
A54: 44 | B54: Others | C54: CHAMBLFERT | D54: 2023-02-23 | E54: 299.60 | F54: 299.15 | G54: 296.50 | H54: 293.40 | I54: 290.75 | J54: 302.25 | K54: 304.90 | L54: 308.00 | M54: 301.8 | N54: 296.05 | O54: 5790000 | P54: 0.47%
A55: 45 | B55: Finance | C55: CHOLAFIN | D55: 2023-02-23 | E55: 783.20 | F55: 781.20 | G55: 777.10 | H55: 771.00 | I55: 766.90 | J55: 787.30 | K55: 791.40 | L55: 797.50 | M55: 785.3 | N55: 775.1 | O55: 11617500 | P55: -0.63%
A56: 46 | B56: Pharma | C56: CIPLA | D56: 2023-02-23 | E56: 1031.05 | F56: 1027.55 | G56: 1022.00 | H56: 1012.95 | I56: 1007.40 | J56: 1036.60 | K56: 1042.15 | L56: 1051.20 | M56: 1033.1 | N56: 1018.5 | O56: 9125350 | P56: -0.61%
A57: 47 | B57: Others | C57: COALINDIA | D57: 2023-02-23 | E57: 212.95 | F57: 212.42 | G57: 211.33 | H57: 209.72 | I57: 208.63 | J57: 214.03 | K57: 215.12 | L57: 216.73 | M57: 213.5 | N57: 210.8 | O57: 45288600 | P57: 0.80%
A58: 48 | B58: Technology | C58: COFORGE | D58: 2023-02-23 | E58: 4126.10 | F58: 4105.58 | G58: 4077.67 | H58: 4029.23 | I58: 4001.32 | J58: 4154.02 | K58: 4181.93 | L58: 4230.37 | M58: 4133.5 | N58: 4057.15 | O58: 1388700 | P58: -4.26%
A59: 49 | B59: FMCG | C59: COLPAL | D59: 2023-02-23 | E59: 1459.05 | F59: 1453.40 | G59: 1445.70 | H59: 1432.35 | I59: 1424.65 | J59: 1466.75 | K59: 1474.45 | L59: 1487.80 | M59: 1461.1 | N59: 1440.05 | O59: 2296700 | P59: -3.07%
A60: 50 | B60: Others | C60: CONCOR | D60: 2023-02-23 | E60: 622.65 | F60: 620.98 | G60: 617.52 | H60: 612.38 | I60: 608.92 | J60: 626.12 | K60: 629.58 | L60: 634.72 | M60: 624.45 | N60: 615.85 | O60: 9608000 | P60: -0.56%
A61: 51 | B61: Others | C61: COROMANDEL | D61: 2023-02-23 | E61: 907.55 | F61: 904.77 | G61: 899.83 | H61: 892.12 | I61: 887.18 | J61: 912.48 | K61: 917.42 | L61: 925.13 | M61: 909.7 | N61: 897.05 | O61: 2211300 | P61: -0.22%
A62: 52 | B62: Capital_Goods | C62: CROMPTON | D62: 2023-02-23 | E62: 305.65 | F62: 303.13 | G62: 299.52 | H62: 293.38 | I62: 289.77 | J62: 309.27 | K62: 312.88 | L62: 319.02 | M62: 306.75 | N62: 297 | O62: 5571000 | P62: 24.01%
A63: 53 | B63: Banking | C63: CUB | D63: 2023-02-23 | E63: 138.40 | F63: 138.13 | G63: 135.92 | H63: 133.43 | I63: 131.22 | J63: 140.62 | K63: 142.83 | L63: 145.32 | M63: 140.35 | N63: 135.65 | O63: 14400000 | P63: -2.37%
A64: 54 | B64: Capital_Goods | C64: CUMMINSIND | D64: 2023-02-23 | E64: 1616.35 | F64: 1605.98 | G64: 1591.97 | H64: 1567.58 | I64: 1553.57 | J64: 1630.37 | K64: 1644.38 | L64: 1668.77 | M64: 1620 | N64: 1581.6 | O64: 2722200 | P64: 9.88%
A65: 55 | B65: FMCG | C65: DABUR | D65: 2023-02-23 | E65: 536.80 | F65: 533.45 | G65: 528.90 | H65: 521.00 | I65: 516.45 | J65: 541.35 | K65: 545.90 | L65: 553.80 | M65: 538 | N65: 525.55 | O65: 11715000 | P65: 3.17%
A66: 56 | B66: Cement | C66: DALBHARAT | D66: 2023-02-23 | E66: 1922.80 | F66: 1915.32 | G66: 1901.78 | H66: 1880.77 | I66: 1867.23 | J66: 1936.33 | K66: 1949.87 | L66: 1970.88 | M66: 1928.85 | N66: 1894.3 | O66: 1648000 | P66: 0.55%
A67: 57 | B67: Chemical | C67: DEEPAKNTR | D67: 2023-02-23 | E67: 1801.55 | F67: 1790.47 | G67: 1765.93 | H67: 1730.32 | I67: 1705.78 | J67: 1826.08 | K67: 1850.62 | L67: 1886.23 | M67: 1815 | N67: 1754.85 | O67: 1742750 | P67: -0.87%
A68: 58 | B68: Others | C68: DELTACORP | D68: 2023-02-23 | E68: 204.20 | F68: 203.78 | G68: 202.47 | H68: 200.73 | I68: 199.42 | J68: 205.52 | K68: 206.83 | L68: 208.57 | M68: 205.1 | N68: 202.05 | O68: 19320000 | P68: -1.41%
A69: 59 | B69: Pharma | C69: DIVISLAB | D69: 2023-02-23 | E69: 2827.00 | F69: 2811.83 | G69: 2793.82 | H69: 2760.63 | I69: 2742.62 | J69: 2845.02 | K69: 2863.03 | L69: 2896.22 | M69: 2829.85 | N69: 2778.65 | O69: 3814200 | P69: -0.99%
A70: 60 | B70: Others | C70: DIXON | D70: 2023-02-23 | E70: 2712.65 | F70: 2698.35 | G70: 2670.95 | H70: 2629.25 | I70: 2601.85 | J70: 2740.05 | K70: 2767.45 | L70: 2809.15 | M70: 2725.75 | N70: 2656.65 | O70: 1158125 | P70: 2.25%
A71: 61 | B71: Realty | C71: DLF | D71: 2023-02-23 | E71: 361.10 | F71: 358.42 | G71: 354.53 | H71: 347.97 | I71: 344.08 | J71: 364.98 | K71: 368.87 | L71: 375.43 | M71: 362.3 | N71: 351.85 | O71: 46709850 | P71: 1.96%
A72: 62 | B72: Pharma | C72: DRREDDY | D72: 2023-02-23 | E72: 4529.30 | F72: 4534.02 | G72: 4501.78 | H72: 4474.27 | I72: 4442.03 | J72: 4561.53 | K72: 4593.77 | L72: 4621.28 | M72: 4566.25 | N72: 4506.5 | O72: 2197000 | P72: -1.05%
A73: 63 | B73: Automobile | C73: EICHERMOT | D73: 2023-02-23 | E73: 3323.10 | F73: 3291.27 | G73: 3229.83 | H73: 3136.57 | I73: 3075.13 | J73: 3384.53 | K73: 3445.97 | L73: 3539.23 | M73: 3352.7 | N73: 3198 | O73: 3299800 | P73: -6.06%
A74: 64 | B74: Automobile | C74: ESCORTS | D74: 2023-02-23 | E74: 2036.00 | F74: 2030.78 | G74: 1996.22 | H74: 1956.43 | I74: 1921.87 | J74: 2070.57 | K74: 2105.13 | L74: 2144.92 | M74: 2065.35 | N74: 1991 | O74: 1021625 | P74: 4.83%
A75: 65 | B75: Automobile | C75: EXIDEIND | D75: 2023-02-23 | E75: 181.60 | F75: 181.63 | G75: 179.92 | H75: 178.23 | I75: 176.52 | J75: 183.32 | K75: 185.03 | L75: 186.72 | M75: 183.35 | N75: 179.95 | O75: 23184000 | P75: -0.09%
A76: 66 | B76: Banking | C76: FEDERALBNK | D76: 2023-02-23 | E76: 130.25 | F76: 129.93 | G76: 129.27 | H76: 128.28 | I76: 127.62 | J76: 130.92 | K76: 131.58 | L76: 132.57 | M76: 130.6 | N76: 128.95 | O76: 72915000 | P76: 2.54%
A77: 67 | B77: Technology | C77: FSL | D77: 2023-02-23 | E77: 120.10 | F77: 119.57 | G77: 118.43 | H77: 116.77 | I77: 115.63 | J77: 121.23 | K77: 122.37 | L77: 124.03 | M77: 120.7 | N77: 117.9 | O77: 16853200 | P77: 3.51%
A78: 68 | B78: Oil_Gas | C78: GAIL | D78: 2023-02-23 | E78: 95.65 | F78: 95.40 | G78: 94.95 | H78: 94.25 | I78: 93.80 | J78: 96.10 | K78: 96.55 | L78: 97.25 | M78: 95.85 | N78: 94.7 | O78: 50453100 | P78: 2.66%
A79: 69 | B79: Pharma | C79: GLENMARK | D79: 2023-02-23 | E79: 429.35 | F79: 425.05 | G79: 419.60 | H79: 409.85 | I79: 404.40 | J79: 434.80 | K79: 440.25 | L79: 450.00 | M79: 430.5 | N79: 415.3 | O79: 5668050 | P79: -1.54%
A80: 70 | B80: Infrastructure | C80: GMRINFRA | D80: 2023-02-23 | E80: 38.60 | F80: 38.65 | G80: 38.05 | H80: 37.50 | I80: 36.90 | J80: 39.20 | K80: 39.80 | L80: 40.35 | M80: 39.25 | N80: 38.1 | O80: 136800000 | P80: 1.59%
A81: 71 | B81: Others | C81: GNFC | D81: 2023-02-23 | E81: 537.50 | F81: 534.87 | G81: 530.33 | H81: 523.17 | I81: 518.63 | J81: 542.03 | K81: 546.57 | L81: 553.73 | M81: 539.4 | N81: 527.7 | O81: 7902700 | P81: -1.06%
A82: 72 | B82: FMCG | C82: GODREJCP | D82: 2023-02-23 | E82: 937.55 | F82: 935.63 | G82: 929.37 | H82: 921.18 | I82: 914.92 | J82: 943.82 | K82: 950.08 | L82: 958.27 | M82: 941.9 | N82: 927.45 | O82: 5867000 | P82: 0.74%
A83: 73 | B83: Realty | C83: GODREJPROP | D83: 2023-02-23 | E83: 1171.80 | F83: 1164.65 | G83: 1153.60 | H83: 1135.40 | I83: 1124.35 | J83: 1182.85 | K83: 1193.90 | L83: 1212.10 | M83: 1175.7 | N83: 1146.45 | O83: 4575550 | P83: -0.40%
A84: 74 | B84: Pharma | C84: GRANULES | D84: 2023-02-23 | E84: 290.50 | F84: 289.58 | G84: 288.07 | H84: 285.63 | I84: 284.12 | J84: 292.02 | K84: 293.53 | L84: 295.97 | M84: 291.1 | N84: 287.15 | O84: 7894000 | P84: 1.08%
A85: 75 | B85: Cement | C85: GRASIM | D85: 2023-02-23 | E85: 1627.45 | F85: 1619.83 | G85: 1608.07 | H85: 1588.68 | I85: 1576.92 | J85: 1639.22 | K85: 1650.98 | L85: 1670.37 | M85: 1631.6 | N85: 1600.45 | O85: 9245875 | P85: -1.39%
A86: 76 | B86: Oil_Gas | C86: GUJGASLTD | D86: 2023-02-23 | E86: 484.45 | F86: 482.35 | G86: 477.20 | H86: 469.95 | I86: 464.80 | J86: 489.60 | K86: 494.75 | L86: 502.00 | M86: 487.5 | N86: 475.1 | O86: 3793750 | P86: -7.10%
A87: 77 | B87: Others | C87: HAL | D87: 2023-02-23 | E87: 2488.10 | F87: 2479.95 | G87: 2465.00 | H87: 2441.90 | I87: 2426.95 | J87: 2503.05 | K87: 2518.00 | L87: 2541.10 | M87: 2494.9 | N87: 2456.85 | O87: 2860200 | P87: -1.05%
A88: 78 | B88: Capital_Goods | C88: HAVELLS | D88: 2023-02-23 | E88: 1219.50 | F88: 1211.22 | G88: 1200.23 | H88: 1180.97 | I88: 1169.98 | J88: 1230.48 | K88: 1241.47 | L88: 1260.73 | M88: 1222.2 | N88: 1191.95 | O88: 4726000 | P88: 2.82%
A89: 79 | B89: Technology | C89: HCLTECH | D89: 2023-02-23 | E89: 1133.75 | F89: 1129.63 | G89: 1123.67 | H89: 1113.58 | I89: 1107.62 | J89: 1139.72 | K89: 1145.68 | L89: 1155.77 | M89: 1135.6 | N89: 1119.55 | O89: 10947300 | P89: 4.04%
A90: 80 | B90: Finance | C90: HDFC | D90: 2023-02-23 | E90: 2711.55 | F90: 2709.28 | G90: 2693.57 | H90: 2675.58 | I90: 2659.87 | J90: 2727.27 | K90: 2742.98 | L90: 2760.97 | M90: 2725 | N90: 2691.3 | O90: 21574500 | P90: 3.84%
A91: 81 | B91: Finance | C91: HDFCAMC | D91: 2023-02-23 | E91: 1907.60 | F91: 1901.23 | G91: 1890.47 | H91: 1873.33 | I91: 1862.57 | J91: 1918.37 | K91: 1929.13 | L91: 1946.27 | M91: 1912 | N91: 1884.1 | O91: 2006400 | P91: -0.67%
A92: 82 | B92: Banking | C92: HDFCBANK | D92: 2023-02-23 | E92: 1669.95 | F92: 1669.08 | G92: 1659.27 | H92: 1648.58 | I92: 1638.77 | J92: 1679.77 | K92: 1689.58 | L92: 1700.27 | M92: 1678.9 | N92: 1658.4 | O92: 60300900 | P92: -0.02%
A93: 83 | B93: Finance | C93: HDFCLIFE | D93: 2023-02-23 | E93: 519.50 | F93: 516.97 | G93: 513.53 | H93: 507.57 | I93: 504.13 | J93: 522.93 | K93: 526.37 | L93: 532.33 | M93: 520.4 | N93: 511 | O93: 22844800 | P93: 0.38%
A94: 84 | B94: Automobile | C94: HEROMOTOCO | D94: 2023-02-23 | E94: 2578.75 | F94: 2568.83 | G94: 2556.12 | H94: 2533.48 | I94: 2520.77 | J94: 2591.47 | K94: 2604.18 | L94: 2626.82 | M94: 2581.55 | N94: 2546.2 | O94: 3168000 | P94: 1.12%
A95: 85 | B95: Metals | C95: HINDALCO | D95: 2023-02-23 | E95: 434.90 | F95: 434.73 | G95: 431.52 | H95: 428.13 | I95: 424.92 | J95: 438.12 | K95: 441.33 | L95: 444.72 | M95: 437.95 | N95: 431.35 | O95: 26251400 | P95: 0.98%
A96: 86 | B96: Metals | C96: HINDCOPPER | D96: 2023-02-23 | E96: 106.80 | F96: 106.62 | G96: 105.28 | H96: 103.77 | I96: 102.43 | J96: 108.13 | K96: 109.47 | L96: 110.98 | M96: 107.95 | N96: 105.1 | O96: 23227200 | P96: 1.81%
A97: 87 | B97: Oil_Gas | C97: HINDPETRO | D97: 2023-02-23 | E97: 235.75 | F97: 234.68 | G97: 233.12 | H97: 230.48 | I97: 228.92 | J97: 237.32 | K97: 238.88 | L97: 241.52 | M97: 236.25 | N97: 232.05 | O97: 19936800 | P97: 0.39%
A98: 88 | B98: FMCG | C98: HINDUNILVR | D98: 2023-02-23 | E98: 2555.60 | F98: 2557.98 | G98: 2541.02 | H98: 2526.43 | I98: 2509.47 | J98: 2572.57 | K98: 2589.53 | L98: 2604.12 | M98: 2574.95 | N98: 2543.4 | O98: 8476200 | P98: 4.65%
A99: 89 | B99: Others | C99: HONAUT | D99: 2023-02-23 | E99: 37425.30 | F99: 37578.42 | G99: 37056.88 | H99: 36688.47 | I99: 36166.93 | J99: 37946.83 | K99: 38468.37 | L99: 38836.78 | M99: 38099.95 | N99: 37210 | O99: 25860 | P99: 7.95%
A100: 90 | B100: Finance | C100: IBULHSGFIN | D100: 2023-02-23 | E100: 117.05 | F100: 114.02 | G100: 110.53 | H100: 104.02 | I100: 100.53 | J100: 120.53 | K100: 124.02 | L100: 130.53 | M100: 117.5 | N100: 107.5 | O100: 48800000 | P100: -1.77%
A101: 91 | B101: Banking | C101: ICICIBANK | D101: 2023-02-23 | E101: 871.50 | F101: 869.00 | G101: 863.90 | H101: 856.30 | I101: 851.20 | J101: 876.60 | K101: 881.70 | L101: 889.30 | M101: 874.1 | N101: 861.4 | O101: 80245900 | P101: -0.05%
A102: 92 | B102: Finance | C102: ICICIGI | D102: 2023-02-23 | E102: 1135.40 | F102: 1136.30 | G102: 1127.60 | H102: 1119.80 | I102: 1111.10 | J102: 1144.10 | K102: 1152.80 | L102: 1160.60 | M102: 1145 | N102: 1128.5 | O102: 3396600 | P102: -0.35%
A103: 93 | B103: Finance | C103: ICICIPRULI | D103: 2023-02-23 | E103: 440.20 | F103: 438.50 | G103: 436.25 | H103: 432.30 | I103: 430.05 | J103: 442.45 | K103: 444.70 | L103: 448.65 | M103: 440.75 | N103: 434.55 | O103: 13714500 | P103: 1.02%
A104: 94 | B104: Telecom | C104: IDEA | D104: 2023-02-23 | E104: 7.75 | F104: 7.73 | G104: 7.67 | H104: 7.58 | I104: 7.52 | J104: 7.82 | K104: 7.88 | L104: 7.97 | M104: 7.8 | N104: 7.65 | O104: 645890000 | P104: 1.40%
A105: 95 | B105: Finance | C105: IDFC | D105: 2023-02-23 | E105: 77.45 | F105: 77.30 | G105: 76.60 | H105: 75.75 | I105: 75.05 | J105: 78.15 | K105: 78.85 | L105: 79.70 | M105: 78 | N105: 76.45 | O105: 159580000 | P105: 2.22%
A106: 96 | B106: Banking | C106: IDFCFIRSTB | D106: 2023-02-23 | E106: 57.45 | F106: 57.25 | G106: 56.95 | H106: 56.45 | I106: 56.15 | J106: 57.75 | K106: 58.05 | L106: 58.55 | M106: 57.55 | N106: 56.75 | O106: 179235000 | P106: 2.66%
A107: 97 | B107: Others | C107: IEX | D107: 2023-02-23 | E107: 134.80 | F107: 134.90 | G107: 133.65 | H107: 132.50 | I107: 131.25 | J107: 136.05 | K107: 137.30 | L107: 138.45 | M107: 136.15 | N107: 133.75 | O107: 42446250 | P107: 0.60%
A108: 98 | B108: Oil_Gas | C108: IGL | D108: 2023-02-23 | E108: 435.85 | F108: 433.77 | G108: 430.58 | H108: 425.32 | I108: 422.13 | J108: 439.03 | K108: 442.22 | L108: 447.48 | M108: 436.95 | N108: 428.5 | O108: 7436000 | P108: 0.78%
A109: 99 | B109: Infrastructure | C109: INDHOTEL | D109: 2023-02-23 | E109: 315.65 | F109: 315.38 | G109: 312.77 | H109: 309.88 | I109: 307.27 | J109: 318.27 | K109: 320.88 | L109: 323.77 | M109: 318 | N109: 312.5 | O109: 28644000 | P109: -1.49%
A110: 100 | B110: Cement | C110: INDIACEM | D110: 2023-02-23 | E110: 196.10 | F110: 195.68 | G110: 193.67 | H110: 191.23 | I110: 189.22 | J110: 198.12 | K110: 200.13 | L110: 202.57 | M110: 197.7 | N110: 193.25 | O110: 16660500 | P110: 1.30%
A111: 101 | B111: Others | C111: INDIAMART | D111: 2023-02-23 | E111: 4750.80 | F111: 4763.15 | G111: 4694.60 | H111: 4638.40 | I111: 4569.85 | J111: 4819.35 | K111: 4887.90 | L111: 4944.10 | M111: 4831.7 | N111: 4706.95 | O111: 340800 | P111: -0.35%
A112: 102 | B112: Others | C112: INDIGO | D112: 2023-02-23 | E112: 1971.35 | F112: 1984.57 | G112: 1940.68 | H112: 1910.02 | I112: 1866.13 | J112: 2015.23 | K112: 2059.12 | L112: 2089.78 | M112: 2028.45 | N112: 1953.9 | O112: 4128900 | P112: 22.77%
A113: 103 | B113: Banking | C113: INDUSINDBK | D113: 2023-02-23 | E113: 1152.80 | F113: 1154.57 | G113: 1146.08 | H113: 1139.37 | I113: 1130.88 | J113: 1161.28 | K113: 1169.77 | L113: 1176.48 | M113: 1163.05 | N113: 1147.85 | O113: 24615450 | P113: 0.62%
A114: 104 | B114: Telecom | C114: INDUSTOWER | D114: 2023-02-23 | E114: 167.85 | F114: 166.83 | G114: 165.37 | H114: 162.88 | I114: 161.42 | J114: 169.32 | K114: 170.78 | L114: 173.27 | M114: 168.3 | N114: 164.35 | O114: 31231200 | P114: 2.47%
A115: 105 | B115: Technology | C115: INFY | D115: 2023-02-23 | E115: 1596.55 | F115: 1590.52 | G115: 1582.13 | H115: 1567.72 | I115: 1559.33 | J115: 1604.93 | K115: 1613.32 | L115: 1627.73 | M115: 1598.9 | N115: 1576.1 | O115: 33221600 | P115: 0.26%
A116: 106 | B116: Technology | C116: INTELLECT | D116: 2023-02-23 | E116: 464.70 | F116: 462.12 | G116: 457.53 | H116: 450.37 | I116: 445.78 | J116: 469.28 | K116: 473.87 | L116: 481.03 | M116: 466.7 | N116: 454.95 | O116: 4411000 | P116: -0.25%
A117: 107 | B117: Oil_Gas | C117: IOC | D117: 2023-02-23 | E117: 79.60 | F117: 79.42 | G117: 79.08 | H117: 78.57 | I117: 78.23 | J117: 79.93 | K117: 80.27 | L117: 80.78 | M117: 79.75 | N117: 78.9 | O117: 75699000 | P117: 0.49%
A118: 108 | B118: Pharma | C118: IPCALAB | D118: 2023-02-23 | E118: 844.10 | F118: 841.53 | G118: 831.57 | H118: 819.03 | I118: 809.07 | J118: 854.07 | K118: 864.03 | L118: 876.57 | M118: 851.5 | N118: 829 | O118: 2151500 | P118: -1.14%
A119: 109 | B119: Others | C119: IRCTC | D119: 2023-02-23 | E119: 645.80 | F119: 643.88 | G119: 641.27 | H119: 636.73 | I119: 634.12 | J119: 648.42 | K119: 651.03 | L119: 655.57 | M119: 646.5 | N119: 639.35 | O119: 13993000 | P119: -3.14%
A120: 110 | B120: FMCG | C120: ITC | D120: 2023-02-23 | E120: 381.95 | F120: 381.02 | G120: 379.48 | H120: 377.02 | I120: 375.48 | J120: 383.48 | K120: 385.02 | L120: 387.48 | M120: 382.55 | N120: 378.55 | O120: 66244800 | P120: -1.16%
A121: 111 | B121: Metals | C121: JINDALSTEL | D121: 2023-02-23 | E121: 588.90 | F121: 589.95 | G121: 581.95 | H121: 575.00 | I121: 567.00 | J121: 596.90 | K121: 604.90 | L121: 611.85 | M121: 597.95 | N121: 583 | O121: 19957500 | P121: 2.07%
A122: 112 | B122: Cement | C122: JKCEMENT | D122: 2023-02-23 | E122: 2778.00 | F122: 2764.45 | G122: 2744.90 | H122: 2711.80 | I122: 2692.25 | J122: 2797.55 | K122: 2817.10 | L122: 2850.20 | M122: 2784 | N122: 2731.35 | O122: 557000 | P122: 1.92%
A123: 113 | B123: Metals | C123: JSWSTEEL | D123: 2023-02-23 | E123: 726.55 | F123: 725.47 | G123: 721.53 | H123: 716.52 | I123: 712.58 | J123: 730.48 | K123: 734.42 | L123: 739.43 | M123: 729.4 | N123: 720.45 | O123: 24397200 | P123: -0.65%
A124: 114 | B124: Others | C124: JUBLFOOD | D124: 2023-02-23 | E124: 455.50 | F124: 453.47 | G124: 450.03 | H124: 444.57 | I124: 441.13 | J124: 458.93 | K124: 462.37 | L124: 467.83 | M124: 456.9 | N124: 448 | O124: 13115000 | P124: 0.51%
A125: 115 | B125: Banking | C125: KOTAKBANK | D125: 2023-02-23 | E125: 1786.00 | F125: 1778.78 | G125: 1768.17 | H125: 1750.33 | I125: 1739.72 | J125: 1796.62 | K125: 1807.23 | L125: 1825.07 | M125: 1789.4 | N125: 1760.95 | O125: 40380400 | P125: -0.50%
A126: 116 | B126: Finance | C126: L&TFH | D126: 2023-02-23 | E126: 94.85 | F126: 94.47 | G126: 93.93 | H126: 93.02 | I126: 92.48 | J126: 95.38 | K126: 95.92 | L126: 96.83 | M126: 95 | N126: 93.55 | O126: 66947848 | P126: 0.17%
A127: 117 | B127: Others | C127: LALPATHLAB | D127: 2023-02-23 | E127: 1963.65 | F127: 1965.43 | G127: 1953.37 | H127: 1943.08 | I127: 1931.02 | J127: 1975.72 | K127: 1987.78 | L127: 1998.07 | M127: 1977.5 | N127: 1955.15 | O127: 1233000 | P127: 1.86%
A128: 118 | B128: Pharma | C128: LAURUSLABS | D128: 2023-02-23 | E128: 335.60 | F128: 333.48 | G128: 330.67 | H128: 325.73 | I128: 322.92 | J128: 338.42 | K128: 341.23 | L128: 346.17 | M128: 336.3 | N128: 328.55 | O128: 9768000 | P128: -1.04%
A129: 119 | B129: Finance | C129: LICHSGFIN | D129: 2023-02-23 | E129: 373.90 | F129: 372.90 | G129: 370.35 | H129: 366.80 | I129: 364.25 | J129: 376.45 | K129: 379.00 | L129: 382.55 | M129: 375.45 | N129: 369.35 | O129: 13378000 | P129: 3.98%
A130: 120 | B130: Capital_Goods | C130: LT | D130: 2023-02-23 | E130: 2181.10 | F130: 2178.55 | G130: 2164.00 | H130: 2146.90 | I130: 2132.35 | J130: 2195.65 | K130: 2210.20 | L130: 2227.30 | M130: 2193.1 | N130: 2161.45 | O130: 8098500 | P130: 1.44%
A131: 121 | B131: Technology | C131: LTIM | D131: 2023-02-23 | E131: 4742.75 | F131: 4695.88 | G131: 4640.22 | H131: 4537.68 | I131: 4482.02 | J131: 4798.42 | K131: 4854.08 | L131: 4956.62 | M131: 4751.55 | N131: 4593.35 | O131: 1402500 | P131: -1.99%
A132: 122 | B132: Technology | C132: LTTS | D132: 2023-02-23 | E132: 3613.75 | F132: 3599.70 | G132: 3574.40 | H132: 3535.05 | I132: 3509.75 | J132: 3639.05 | K132: 3664.35 | L132: 3703.70 | M132: 3625 | N132: 3560.35 | O132: 1106200 | P132: 3.87%
A133: 123 | B133: Pharma | C133: LUPIN | D133: 2023-02-23 | E133: 669.00 | F133: 665.42 | G133: 660.48 | H133: 651.97 | I133: 647.03 | J133: 673.93 | K133: 678.87 | L133: 687.38 | M133: 670.35 | N133: 656.9 | O133: 9229300 | P133: 0.94%
A134: 124 | B134: Automobile | C134: M&M | D134: 2023-02-23 | E134: 1380.05 | F134: 1374.38 | G134: 1366.37 | H134: 1352.68 | I134: 1344.67 | J134: 1388.07 | K134: 1396.08 | L134: 1409.77 | M134: 1382.4 | N134: 1360.7 | O134: 12681200 | P134: 0.17%
A135: 125 | B135: Finance | C135: M&MFIN | D135: 2023-02-23 | E135: 262.95 | F135: 262.17 | G135: 260.43 | H135: 257.92 | I135: 256.18 | J135: 264.68 | K135: 266.42 | L135: 268.93 | M135: 263.9 | N135: 259.65 | O135: 28016000 | P135: -0.31%
A136: 126 | B136: Finance | C136: MANAPPURAM | D136: 2023-02-23 | E136: 112.65 | F136: 112.37 | G136: 111.73 | H136: 110.82 | I136: 110.18 | J136: 113.28 | K136: 113.92 | L136: 114.83 | M136: 113 | N136: 111.45 | O136: 43332000 | P136: -0.39%
A137: 127 | B137: FMCG | C137: MARICO | D137: 2023-02-23 | E137: 494.55 | F137: 493.82 | G137: 491.88 | H137: 489.22 | I137: 487.28 | J137: 496.48 | K137: 498.42 | L137: 501.08 | M137: 495.75 | N137: 491.15 | O137: 8002800 | P137: 1.93%
A138: 128 | B138: Automobile | C138: MARUTI | D138: 2023-02-23 | E138: 8873.30 | F138: 8851.38 | G138: 8789.17 | H138: 8705.03 | I138: 8642.82 | J138: 8935.52 | K138: 8997.73 | L138: 9081.87 | M138: 8913.6 | N138: 8767.25 | O138: 2256400 | P138: 2.36%
A139: 129 | B139: FMCG | C139: MCDOWELL-N | D139: 2023-02-23 | E139: 788.65 | F139: 784.78 | G139: 777.57 | H139: 766.48 | I139: 759.27 | J139: 795.87 | K139: 803.08 | L139: 814.17 | M139: 792 | N139: 773.7 | O139: 14458125 | P139: -0.33%
A140: 130 | B140: Others | C140: MCX | D140: 2023-02-23 | E140: 1351.55 | F140: 1370.37 | G140: 1324.63 | H140: 1297.72 | I140: 1251.98 | J140: 1397.28 | K140: 1443.02 | L140: 1469.93 | M140: 1416.1 | N140: 1343.45 | O140: 1284000 | P140: 24.52%
A141: 131 | B141: Pharma | C141: METROPOLIS | D141: 2023-02-23 | E141: 1300.80 | F141: 1304.75 | G141: 1283.05 | H141: 1265.30 | I141: 1243.60 | J141: 1322.50 | K141: 1344.20 | L141: 1361.95 | M141: 1326.45 | N141: 1287 | O141: 1038000 | P141: -1.26%
A142: 132 | B142: Finance | C142: MFSL | D142: 2023-02-23 | E142: 745.00 | F142: 735.22 | G142: 719.43 | H142: 693.87 | I142: 678.08 | J142: 760.78 | K142: 776.57 | L142: 802.13 | M142: 751 | N142: 709.65 | O142: 3382600 | P142: 8.62%
A143: 133 | B143: Oil_Gas | C143: MGL | D143: 2023-02-23 | E143: 904.40 | F143: 900.52 | G143: 893.03 | H143: 881.67 | I143: 874.18 | J143: 911.88 | K143: 919.37 | L143: 930.73 | M143: 908 | N143: 889.15 | O143: 2462400 | P143: 1.72%
A144: 134 | B144: Automobile | C144: MOTHERSON | D144: 2023-02-23 | E144: 80.15 | F144: 80.20 | G144: 79.55 | H144: 78.95 | I144: 78.30 | J144: 80.80 | K144: 81.45 | L144: 82.05 | M144: 80.85 | N144: 79.6 | O144: 67689000 | P144: -1.63%
A145: 135 | B145: Technology | C145: MPHASIS | D145: 2023-02-23 | E145: 2163.90 | F145: 2154.98 | G145: 2137.02 | H145: 2110.13 | I145: 2092.17 | J145: 2181.87 | K145: 2199.83 | L145: 2226.72 | M145: 2172.95 | N145: 2128.1 | O145: 1308175 | P145: 1.54%
A146: 136 | B146: Automobile | C146: MRF | D146: 2023-02-23 | E146: 88617.60 | F146: 88419.70 | G146: 87993.85 | H146: 87370.10 | I146: 86944.25 | J146: 89043.45 | K146: 89469.30 | L146: 90093.05 | M146: 88845.55 | N146: 87795.95 | O146: 72030 | P146: 0.85%
A147: 137 | B147: Finance | C147: MUTHOOTFIN | D147: 2023-02-23 | E147: 1001.40 | F147: 999.07 | G147: 993.38 | H147: 985.37 | I147: 979.68 | J147: 1007.08 | K147: 1012.77 | L147: 1020.78 | M147: 1004.75 | N147: 991.05 | O147: 7107100 | P147: 2.19%
A148: 138 | B148: Metals | C148: NATIONALUM | D148: 2023-02-23 | E148: 79.15 | F148: 79.20 | G148: 78.30 | H148: 77.45 | I148: 76.55 | J148: 80.05 | K148: 80.95 | L148: 81.80 | M148: 80.1 | N148: 78.35 | O148: 59385000 | P148: -0.29%
A149: 139 | B149: Others | C149: NAUKRI | D149: 2023-02-23 | E149: 3588.35 | F149: 3558.48 | G149: 3519.92 | H149: 3451.48 | I149: 3412.92 | J149: 3626.92 | K149: 3665.48 | L149: 3733.92 | M149: 3597.05 | N149: 3490.05 | O149: 1903875 | P149: -6.75%
A150: 140 | B150: Chemical | C150: NAVINFLUOR | D150: 2023-02-23 | E150: 4097.95 | F150: 4107.47 | G150: 4069.38 | H150: 4040.82 | I150: 4002.73 | J150: 4136.03 | K150: 4174.12 | L150: 4202.68 | M150: 4145.55 | N150: 4078.9 | O150: 500100 | P150: 1.58%
A151: 141 | B151: FMCG | C151: NESTLEIND | D151: 2023-02-23 | E151: 19270.20 | F151: 19176.08 | G151: 19058.22 | H151: 18846.23 | I151: 18728.37 | J151: 19388.07 | K151: 19505.93 | L151: 19717.92 | M151: 19293.95 | N151: 18964.1 | O151: 279600 | P151: -3.35%
A152: 142 | B152: Metals | C152: NMDC | D152: 2023-02-23 | E152: 118.40 | F152: 118.43 | G152: 115.82 | H152: 113.23 | I152: 110.62 | J152: 121.02 | K152: 123.63 | L152: 126.22 | M152: 121.05 | N152: 115.85 | O152: 40270500 | P152: 1.89%
A153: 143 | B153: Power | C153: NTPC | D153: 2023-02-23 | E153: 165.90 | F153: 165.77 | G153: 164.58 | H153: 163.27 | I153: 162.08 | J153: 167.08 | K153: 168.27 | L153: 169.58 | M153: 166.95 | N153: 164.45 | O153: 70759800 | P153: -0.61%
A154: 144 | B154: Realty | C154: OBEROIRLTY | D154: 2023-02-23 | E154: 864.35 | F154: 860.57 | G154: 853.18 | H154: 842.02 | I154: 834.63 | J154: 871.73 | K154: 879.12 | L154: 890.28 | M154: 867.95 | N154: 849.4 | O154: 5933900 | P154: -0.63%
A155: 145 | B155: Technology | C155: OFSS | D155: 2023-02-23 | E155: 3178.10 | F155: 3163.57 | G155: 3142.18 | H155: 3106.27 | I155: 3084.88 | J155: 3199.48 | K155: 3220.87 | L155: 3256.78 | M155: 3184.95 | N155: 3127.65 | O155: 408000 | P155: 1.59%
A156: 146 | B156: Oil_Gas | C156: ONGC | D156: 2023-02-23 | E156: 147.85 | F156: 147.67 | G156: 145.93 | H156: 144.02 | I156: 142.28 | J156: 149.58 | K156: 151.32 | L156: 153.23 | M156: 149.4 | N156: 145.75 | O156: 37171750 | P156: 2.43%
A157: 147 | B157: Textile | C157: PAGEIND | D157: 2023-02-23 | E157: 38459.85 | F157: 38343.48 | G157: 37986.97 | H157: 37514.08 | I157: 37157.57 | J157: 38816.37 | K157: 39172.88 | L157: 39645.77 | M157: 38700 | N157: 37870.6 | O157: 137055 | P157: 1.34%
A158: 148 | B158: Pharma | C158: PEL | D158: 2023-02-23 | E158: 878.60 | F158: 875.65 | G158: 870.35 | H158: 862.10 | I158: 856.80 | J158: 883.90 | K158: 889.20 | L158: 897.45 | M158: 880.95 | N158: 867.4 | O158: 5015450 | P158: 0.26%
A159: 149 | B159: Technology | C159: PERSISTENT | D159: 2023-02-23 | E159: 4839.65 | F159: 4804.03 | G159: 4752.07 | H159: 4664.48 | I159: 4612.52 | J159: 4891.62 | K159: 4943.58 | L159: 5031.17 | M159: 4856 | N159: 4716.45 | O159: 811125 | P159: 6.31%
A160: 150 | B160: Oil_Gas | C160: PETRONET | D160: 2023-02-23 | E160: 221.95 | F160: 221.38 | G160: 219.97 | H160: 217.98 | I160: 216.57 | J160: 223.37 | K160: 224.78 | L160: 226.77 | M160: 222.8 | N160: 219.4 | O160: 11883000 | P160: 0.46%
A161: 151 | B161: Finance | C161: PFC | D161: 2023-02-23 | E161: 148.65 | F161: 147.13 | G161: 144.67 | H161: 140.68 | I161: 138.22 | J161: 151.12 | K161: 153.58 | L161: 157.57 | M161: 149.6 | N161: 143.15 | O161: 55601600 | P161: 3.65%
A162: 152 | B162: FMCG | C162: PIDILITIND | D162: 2023-02-23 | E162: 2319.40 | F162: 2311.13 | G162: 2296.87 | H162: 2274.33 | I162: 2260.07 | J162: 2333.67 | K162: 2347.93 | L162: 2370.47 | M162: 2325.4 | N162: 2288.6 | O162: 2758750 | P162: 1.36%
A163: 153 | B163: Chemical | C163: PIIND | D163: 2023-02-23 | E163: 3134.45 | F163: 3156.08 | G163: 3053.17 | H163: 2971.88 | I163: 2868.97 | J163: 3237.37 | K163: 3340.28 | L163: 3421.57 | M163: 3259 | N163: 3074.8 | O163: 2260750 | P163: 11.74%
A164: 154 | B164: Banking | C164: PNB | D164: 2023-02-23 | E164: 51.10 | F164: 50.90 | G164: 50.60 | H164: 50.10 | I164: 49.80 | J164: 51.40 | K164: 51.70 | L164: 52.20 | M164: 51.2 | N164: 50.4 | O164: 244256000 | P164: -0.95%
A165: 155 | B165: Others | C165: POLYCAB | D165: 2023-02-23 | E165: 3019.00 | F165: 3006.65 | G165: 2974.05 | H165: 2929.10 | I165: 2896.50 | J165: 3051.60 | K165: 3084.20 | L165: 3129.15 | M165: 3039.25 | N165: 2961.7 | O165: 898800 | P165: 9.30%
A166: 156 | B166: Power | C166: POWERGRID | D166: 2023-02-23 | E166: 215.20 | F166: 214.80 | G166: 214.10 | H166: 213.00 | I166: 212.30 | J166: 215.90 | K166: 216.60 | L166: 217.70 | M166: 215.5 | N166: 213.7 | O166: 30410100 | P166: 0.71%
A167: 157 | B167: Media | C167: PVR | D167: 2023-02-23 | E167: 1719.85 | F167: 1716.52 | G167: 1703.03 | H167: 1686.22 | I167: 1672.73 | J167: 1733.33 | K167: 1746.82 | L167: 1763.63 | M167: 1730 | N167: 1699.7 | O167: 2519737 | P167: -2.92%
A168: 158 | B168: Others | C168: RAIN | D168: 2023-02-23 | E168: 168.10 | F168: 167.48 | G168: 166.37 | H168: 164.63 | I168: 163.52 | J168: 169.22 | K168: 170.33 | L168: 172.07 | M168: 168.6 | N168: 165.75 | O168: 10801000 | P168: -1.78%
A169: 159 | B169: Cement | C169: RAMCOCEM | D169: 2023-02-23 | E169: 736.95 | F169: 732.00 | G169: 724.70 | H169: 712.45 | I169: 705.15 | J169: 744.25 | K169: 751.55 | L169: 763.80 | M169: 739.3 | N169: 719.75 | O169: 3762950 | P169: 1.35%
A170: 160 | B170: Banking | C170: RBLBANK | D170: 2023-02-23 | E170: 164.05 | F170: 164.85 | G170: 162.40 | H170: 160.75 | I170: 158.30 | J170: 166.50 | K170: 168.95 | L170: 170.60 | M170: 167.3 | N170: 163.2 | O170: 27920000 | P170: 4.00%
A171: 161 | B171: Power | C171: RECLTD | D171: 2023-02-23 | E171: 115.95 | F171: 115.23 | G171: 114.27 | H171: 112.58 | I171: 111.62 | J171: 116.92 | K171: 117.88 | L171: 119.57 | M171: 116.2 | N171: 113.55 | O171: 51104000 | P171: -1.59%
A172: 162 | B172: Oil_Gas | C172: RELIANCE | D172: 2023-02-23 | E172: 2432.90 | F172: 2413.73 | G172: 2390.47 | H172: 2348.03 | I172: 2324.77 | J172: 2456.17 | K172: 2479.43 | L172: 2521.87 | M172: 2437 | N172: 2371.3 | O172: 40953500 | P172: -11.73%
A173: 163 | B173: Metals | C173: SAIL | D173: 2023-02-23 | E173: 84.20 | F173: 84.50 | G173: 83.35 | H173: 82.50 | I173: 81.35 | J173: 85.35 | K173: 86.50 | L173: 87.35 | M173: 85.65 | N173: 83.65 | O173: 117136000 | P173: 4.99%
A174: 164 | B174: Banking | C174: SBICARD | D174: 2023-02-23 | E174: 756.95 | F174: 752.47 | G174: 747.18 | H174: 737.42 | I174: 732.13 | J174: 762.23 | K174: 767.52 | L174: 777.28 | M174: 757.75 | N174: 742.7 | O174: 8232000 | P174: -0.38%
A175: 165 | B175: Finance | C175: SBILIFE | D175: 2023-02-23 | E175: 1180.75 | F175: 1172.48 | G175: 1162.07 | H175: 1143.38 | I175: 1132.97 | J175: 1191.17 | K175: 1201.58 | L175: 1220.27 | M175: 1182.9 | N175: 1153.8 | O175: 6975750 | P175: 1.30%
A176: 166 | B176: Banking | C176: SBIN | D176: 2023-02-23 | E176: 544.15 | F176: 542.70 | G176: 539.60 | H176: 535.05 | I176: 531.95 | J176: 547.25 | K176: 550.35 | L176: 554.90 | M176: 545.8 | N176: 538.15 | O176: 87378000 | P176: 0.78%
A177: 167 | B177: Cement | C177: SHREECEM | D177: 2023-02-23 | E177: 24695.75 | F177: 24570.45 | G177: 24376.90 | H177: 24058.05 | I177: 23864.50 | J177: 24889.30 | K177: 25082.85 | L177: 25401.70 | M177: 24764 | N177: 24251.6 | O177: 317225 | P177: 5.84%
A178: 168 | B178: Capital_Goods | C178: SIEMENS | D178: 2023-02-23 | E178: 3235.55 | F178: 3191.90 | G178: 3136.80 | H178: 3038.05 | I178: 2982.95 | J178: 3290.65 | K178: 3345.75 | L178: 3444.50 | M178: 3247 | N178: 3093.15 | O178: 2181300 | P178: -6.30%
A179: 169 | B179: Textile | C179: SRF | D179: 2023-02-23 | E179: 2257.50 | F179: 2250.32 | G179: 2238.98 | H179: 2220.47 | I179: 2209.13 | J179: 2268.83 | K179: 2280.17 | L179: 2298.68 | M179: 2261.65 | N179: 2231.8 | O179: 4689000 | P179: -0.08%
A180: 170 | B180: Finance | C180: SHRIRAMFIN | D180: 2023-02-23 | E180: 1276.05 | F180: 1272.40 | G180: 1263.65 | H180: 1251.25 | I180: 1242.50 | J180: 1284.80 | K180: 1293.55 | L180: 1305.95 | M180: 1281.15 | N180: 1260 | O180: 5220600 | P180: 0.76%
A181: 171 | B181: Pharma | C181: SUNPHARMA | D181: 2023-02-23 | E181: 998.65 | F181: 999.90 | G181: 990.95 | H181: 983.25 | I181: 974.30 | J181: 1007.60 | K181: 1016.55 | L181: 1024.25 | M181: 1008.85 | N181: 992.2 | O181: 16370900 | P181: 1.60%
A182: 172 | B182: Media | C182: SUNTV | D182: 2023-02-23 | E182: 453.30 | F182: 451.50 | G182: 448.40 | H182: 443.50 | I182: 440.40 | J182: 456.40 | K182: 459.50 | L182: 464.40 | M182: 454.6 | N182: 446.6 | O182: 8704500 | P182: 0.26%
A183: 173 | B183: Pharma | C183: SYNGENE | D183: 2023-02-23 | E183: 568.95 | F183: 565.80 | G183: 561.40 | H183: 553.85 | I183: 549.45 | J183: 573.35 | K183: 577.75 | L183: 585.30 | M183: 570.2 | N183: 558.25 | O183: 2923000 | P183: -3.21%
A184: 174 | B184: Chemical | C184: TATACHEM | D184: 2023-02-23 | E184: 1014.15 | F184: 1014.43 | G184: 1006.72 | H184: 999.28 | I184: 991.57 | J184: 1021.87 | K184: 1029.58 | L184: 1037.02 | M184: 1022.15 | N184: 1007 | O184: 6486500 | P184: 0.86%
A185: 175 | B185: Telecom | C185: TATACOMM | D185: 2023-02-23 | E185: 1249.35 | F185: 1246.08 | G185: 1239.32 | H185: 1229.28 | I185: 1222.52 | J185: 1256.12 | K185: 1262.88 | L185: 1272.92 | M185: 1252.85 | N185: 1236.05 | O185: 2563500 | P185: -0.77%
A186: 176 | B186: FMCG | C186: TATACONSUM | D186: 2023-02-23 | E186: 729.30 | F186: 726.12 | G186: 721.73 | H186: 714.17 | I186: 709.78 | J186: 733.68 | K186: 738.07 | L186: 745.63 | M186: 730.5 | N186: 718.55 | O186: 11318400 | P186: 0.40%
A187: 177 | B187: Automobile | C187: TATAMOTORS | D187: 2023-02-23 | E187: 445.80 | F187: 444.07 | G187: 441.43 | H187: 437.07 | I187: 434.43 | J187: 448.43 | K187: 451.07 | L187: 455.43 | M187: 446.7 | N187: 439.7 | O187: 70647225 | P187: 1.60%
A188: 178 | B188: Power | C188: TATAPOWER | D188: 2023-02-23 | E188: 205.75 | F188: 204.83 | G188: 203.47 | H188: 201.18 | I188: 199.82 | J188: 207.12 | K188: 208.48 | L188: 210.77 | M188: 206.2 | N188: 202.55 | O188: 115549875 | P188: 1.26%
A189: 179 | B189: Metals | C189: TATASTEEL | D189: 2023-02-23 | E189: 110.50 | F189: 110.15 | G189: 109.40 | H189: 108.30 | I189: 107.55 | J189: 111.25 | K189: 112.00 | L189: 113.10 | M189: 110.9 | N189: 109.05 | O189: 198473000 | P189: 0.21%
A190: 180 | B190: Technology | C190: TCS | D190: 2023-02-23 | E190: 3522.95 | F190: 3505.15 | G190: 3484.30 | H190: 3445.65 | I190: 3424.80 | J190: 3543.80 | K190: 3564.65 | L190: 3603.30 | M190: 3526 | N190: 3466.5 | O190: 9427075 | P190: -2.02%
A191: 181 | B191: Technology | C191: TECHM | D191: 2023-02-23 | E191: 1071.55 | F191: 1052.68 | G191: 1029.12 | H191: 986.68 | I191: 963.12 | J191: 1095.12 | K191: 1118.68 | L191: 1161.12 | M191: 1076.25 | N191: 1010.25 | O191: 14752200 | P191: -3.32%
A192: 182 | B192: FMCG | C192: TITAN | D192: 2023-02-23 | E192: 2525.80 | F192: 2514.28 | G192: 2499.82 | H192: 2473.83 | I192: 2459.37 | J192: 2540.27 | K192: 2554.73 | L192: 2580.72 | M192: 2528.75 | N192: 2488.3 | O192: 6561375 | P192: -0.28%
A193: 183 | B193: Pharma | C193: TORNTPHARM | D193: 2023-02-23 | E193: 1516.55 | F193: 1509.10 | G193: 1498.45 | H193: 1480.35 | I193: 1469.70 | J193: 1527.20 | K193: 1537.85 | L193: 1555.95 | M193: 1519.75 | N193: 1491 | O193: 1939500 | P193: 4.58%
A194: 184 | B194: Power | C194: TORNTPOWER | D194: 2023-02-23 | E194: 505.45 | F194: 498.50 | G194: 489.15 | H194: 472.85 | I194: 463.50 | J194: 514.80 | K194: 524.15 | L194: 540.45 | M194: 507.85 | N194: 482.2 | O194: 4462500 | P194: 33.65%
A195: 185 | B195: Others | C195: TRENT | D195: 2023-02-23 | E195: 1347.50 | F195: 1338.70 | G195: 1325.20 | H195: 1302.90 | I195: 1289.40 | J195: 1361.00 | K195: 1374.50 | L195: 1396.80 | M195: 1352.2 | N195: 1316.4 | O195: 4320000 | P195: -2.17%
A196: 186 | B196: Automobile | C196: TVSMOTOR | D196: 2023-02-23 | E196: 1108.85 | F196: 1106.53 | G196: 1087.17 | H196: 1065.48 | I196: 1046.12 | J196: 1128.22 | K196: 1147.58 | L196: 1169.27 | M196: 1125.9 | N196: 1084.85 | O196: 8050700 | P196: 7.59%
A197: 187 | B197: FMCG | C197: UBL | D197: 2023-02-23 | E197: 1466.45 | F197: 1461.13 | G197: 1451.02 | H197: 1435.58 | I197: 1425.47 | J197: 1476.57 | K197: 1486.68 | L197: 1502.12 | M197: 1471.25 | N197: 1445.7 | O197: 1902000 | P197: 3.28%
A198: 188 | B198: Cement | C198: ULTRACEMCO | D198: 2023-02-23 | E198: 7169.85 | F198: 7142.15 | G198: 7099.30 | H198: 7028.75 | I198: 6985.90 | J198: 7212.70 | K198: 7255.55 | L198: 7326.10 | M198: 7185 | N198: 7071.6 | O198: 2181300 | P198: 2.80%
A199: 189 | B199: Chemical | C199: UPL | D199: 2023-02-23 | E199: 769.10 | F199: 766.35 | G199: 762.70 | H199: 756.30 | I199: 752.65 | J199: 772.75 | K199: 776.40 | L199: 782.80 | M199: 770 | N199: 759.95 | O199: 14562600 | P199: -2.32%
A200: 190 | B200: Metals | C200: VEDL | D200: 2023-02-23 | E200: 313.60 | F200: 313.62 | G200: 311.23 | H200: 308.87 | I200: 306.48 | J200: 315.98 | K200: 318.37 | L200: 320.73 | M200: 316 | N200: 311.25 | O200: 33680000 | P200: 3.48%
A201: 191 | B201: Capital_Goods | C201: VOLTAS | D201: 2023-02-23 | E201: 860.95 | F201: 858.32 | G201: 852.68 | H201: 844.42 | I201: 838.78 | J201: 866.58 | K201: 872.22 | L201: 880.48 | M201: 863.95 | N201: 850.05 | O201: 6398400 | P201: 1.01%
A202: 192 | B202: Capital_Goods | C202: WHIRLPOOL | D202: 2023-02-23 | E202: 1310.85 | F202: 1305.02 | G202: 1293.03 | H202: 1275.22 | I202: 1263.23 | J202: 1322.83 | K202: 1334.82 | L202: 1352.63 | M202: 1317 | N202: 1287.2 | O202: 988750 | P202: -3.42%
A203: 193 | B203: Technology | C203: WIPRO | D203: 2023-02-23 | E203: 407.90 | F203: 405.62 | G203: 403.08 | H203: 398.27 | I203: 395.73 | J203: 410.43 | K203: 412.97 | L203: 417.78 | M203: 408.15 | N203: 400.8 | O203: 37281000 | P203: 0.09%
A204: 194 | B204: Media | C204: ZEEL | D204: 2023-02-23 | E204: 214.95 | F204: 215.82 | G204: 213.03 | H204: 211.12 | I204: 208.33 | J204: 217.73 | K204: 220.52 | L204: 222.43 | M204: 218.6 | N204: 213.9 | O204: 82206000 | P204: -0.66%
A205: 195 | B205: Pharma | C205: ZYDUSLIFE | D205: 2023-02-23 | E205: 471.00 | F205: 471.05 | G205: 467.55 | H205: 464.10 | I205: 460.60 | J205: 474.50 | K205: 478.00 | L205: 481.45 | M205: 474.55 | N205: 467.6 | O205: 8499600 | P205: -1.91%
A222: Pivot Point: This is trigger point for intra day buy/sell based on the price range of the previous day
... 14 more rows

Sheet Cash Intra
M5: Back to Main Page
A6: FOR INTRA DAY TRADING | K6: =Main!B10 -> 2023-02-16
A8: Sr.no | C8: CLOSE RATE | D8: Pivot Point | E8: Supports | H8: Resistances
E9: S1 | F9: S2 | G9: S3 | H9: R1 | I9: R2 | J9: R3 | K9: HIGH | L9: LOW | M9: Total Trade Quanity in Lakhs
A10: 1 | B10: Nifty 50 | C10: 18015.85 | D10: 17967.92 | E10: 17901.73 | F10: 17787.62 | G10: 17721.43 | H10: 18082.03 | I10: 18148.22 | J10: 18262.33 | K10: 18034.10 | L10: 17853.80
A11: 2 | B11: Nifty Bank | C11: 41731.05 | D11: 41660.70 | E11: 41525.95 | F11: 41320.85 | G11: 41186.10 | H11: 41865.80 | I11: 42000.55 | J11: 42205.65 | K11: 41795.45 | L11: 41455.60
A12: 3 | B12: Nifty CPSE | C12: 2804.55 | D12: 2800.45 | E12: 2789.85 | F12: 2775.15 | G12: 2764.55 | H12: 2815.15 | I12: 2825.75 | J12: 2840.45 | K12: 2811.05 | L12: 2785.75
A13: 4 | B13: Nifty Infra | C13: 5118.45 | D13: 5102.12 | E13: 5076.83 | F13: 5035.22 | G13: 5009.93 | H13: 5143.73 | I13: 5169.02 | J13: 5210.63 | K13: 5127.40 | L13: 5060.50
A14: 5 | B14: Nifty IT | C14: 30934.35 | D14: 30739.28 | E14: 30519.27 | F14: 30104.18 | G14: 29884.17 | H14: 31154.37 | I14: 31374.38 | J14: 31789.47 | K14: 30959.30 | L14: 30324.20
A15: 6 | B15: Nifty PSE | C15: 4352.70 | D15: 4345.60 | E15: 4331.80 | F15: 4310.90 | G15: 4297.10 | H15: 4366.50 | I15: 4380.30 | J15: 4401.20 | K15: 4359.40 | L15: 4324.70
A16: 7 | B16: Nifty Midcap 50 | C16: 8688.85 | D16: 8663.30 | E16: 8628.40 | F16: 8567.95 | G16: 8533.05 | H16: 8723.75 | I16: 8758.65 | J16: 8819.10 | K16: 8698.20 | L16: 8602.85
A17: 8 | B17: ABB | C17: 3149.6 | D17: 3138.02 | E17: 3086.03 | F17: 3022.47 | G17: 2970.48 | H17: 3201.58 | I17: 3253.57 | J17: 3317.13 | K17: 3190 | L17: 3074.45 | M17: 6.19722
A18: 9 | B18: ACC | C18: 1852.15 | D18: 1842.70 | E18: 1820.65 | F18: 1789.15 | G18: 1767.10 | H18: 1874.20 | I18: 1896.25 | J18: 1927.75 | K18: 1864.75 | L18: 1811.2 | M18: 7.23678
A19: 10 | B19: AUBANK | C19: 633.95 | D19: 634.08 | E19: 629.42 | F19: 624.88 | G19: 620.22 | H19: 638.62 | I19: 643.28 | J19: 647.82 | K19: 638.75 | L19: 629.55 | M19: 8.48205
A20: 11 | B20: ABBOTINDIA | C20: 20399.3 | D20: 20357.57 | E20: 20229.33 | F20: 20059.37 | G20: 19931.13 | H20: 20527.53 | I20: 20655.77 | J20: 20825.73 | K20: 20485.8 | L20: 20187.6 | M20: 0.06398
A21: 12 | B21: ADANIENT | C21: 1779.1 | D21: 1784.50 | E21: 1744.60 | F21: 1710.10 | G21: 1670.20 | H21: 1819.00 | I21: 1858.90 | J21: 1893.40 | K21: 1824.4 | L21: 1750 | M21: 76.36578
A22: 13 | B22: ADANIGREEN | C22: 621 | D22: 621.00 | E22: 621.00 | F22: 621.00 | G22: 621.00 | H22: 621.00 | I22: 621.00 | J22: 621.00 | K22: 621 | L22: 621 | M22: 3.07402
A23: 14 | B23: ADANIPORTS | C23: 569.05 | D23: 569.93 | E23: 561.02 | F23: 552.98 | G23: 544.07 | H23: 577.97 | I23: 586.88 | J23: 594.92 | K23: 578.85 | L23: 561.9 | M23: 92.59895
A24: 15 | B24: ATGL | C24: 1076.4 | D24: 1076.40 | E24: 1076.40 | F24: 1076.40 | G24: 1076.40 | H24: 1076.40 | I24: 1076.40 | J24: 1076.40 | K24: 1076.4 | L24: 1076.4 | M24: 0.7478
A25: 16 | B25: ADANITRANS | C25: 1017.45 | D25: 1017.45 | E25: 1017.45 | F25: 1017.45 | G25: 1017.45 | H25: 1017.45 | I25: 1017.45 | J25: 1017.45 | K25: 1017.45 | L25: 1017.45 | M25: 0.75876
A26: 17 | B26: AWL | C26: 397.55 | D26: 396.57 | E26: 384.23 | F26: 370.92 | G26: 358.58 | H26: 409.88 | I26: 422.22 | J26: 435.53 | K26: 408.9 | L26: 383.25 | M26: 52.81042
A27: 18 | B27: ABCAPITAL | C27: 145.3 | D27: 145.22 | E27: 143.93 | F27: 142.57 | G27: 141.28 | H27: 146.58 | I27: 147.87 | J27: 149.23 | K27: 146.5 | L27: 143.85 | M27: 12.07511
A28: 19 | B28: ABFRL | C28: 256.85 | D28: 253.62 | E28: 249.73 | F28: 242.62 | G28: 238.73 | H28: 260.73 | I28: 264.62 | J28: 271.73 | K28: 257.5 | L28: 246.5 | M28: 36.98763
A29: 20 | B29: ALKEM | C29: 3313.85 | D29: 3308.90 | E29: 3267.80 | F29: 3221.75 | G29: 3180.65 | H29: 3354.95 | I29: 3396.05 | J29: 3442.10 | K29: 3350 | L29: 3262.85 | M29: 0.95582
A30: 21 | B30: AMBUJACEM | C30: 344.85 | D30: 343.60 | E30: 336.25 | F30: 327.65 | G30: 320.30 | H30: 352.20 | I30: 359.55 | J30: 368.15 | K30: 350.95 | L30: 335 | M30: 145.04126
A31: 22 | B31: APOLLOHOSP | C31: 4487.9 | D31: 4390.63 | E31: 4267.27 | F31: 4046.63 | G31: 3923.27 | H31: 4611.27 | I31: 4734.63 | J31: 4955.27 | K31: 4514 | L31: 4170 | M31: 27.24361
A32: 23 | B32: ASHOKLEY | C32: 149.95 | D32: 150.15 | E32: 148.40 | F32: 146.85 | G32: 145.10 | H32: 151.70 | I32: 153.45 | J32: 155.00 | K32: 151.9 | L32: 148.6 | M32: 85.82737
A33: 24 | B33: ASIANPAINT | C33: 2786.15 | D33: 2779.48 | E33: 2760.67 | F33: 2735.18 | G33: 2716.37 | H33: 2804.97 | I33: 2823.78 | J33: 2849.27 | K33: 2798.3 | L33: 2754 | M33: 8.17717
A34: 25 | B34: ASTRAL | C34: 1901.7 | D34: 1902.98 | E34: 1890.97 | F34: 1880.23 | G34: 1868.22 | H34: 1913.72 | I34: 1925.73 | J34: 1936.47 | K34: 1915 | L34: 1892.25 | M34: 2.59634
A35: 26 | B35: AUROPHARMA | C35: 474 | D35: 472.32 | E35: 469.28 | F35: 464.57 | G35: 461.53 | H35: 477.03 | I35: 480.07 | J35: 484.78 | K35: 475.35 | L35: 467.6 | M35: 10.96959
A36: 27 | B36: DMART | C36: 3545.6 | D36: 3526.18 | E36: 3483.72 | F36: 3421.83 | G36: 3379.37 | H36: 3588.07 | I36: 3630.53 | J36: 3692.42 | K36: 3568.65 | L36: 3464.3 | M36: 2.11636
A37: 28 | B37: AXISBANK | C37: 868.3 | D37: 867.37 | E37: 862.53 | F37: 856.77 | G37: 851.93 | H37: 873.13 | I37: 877.97 | J37: 883.73 | K37: 872.2 | L37: 861.6 | M37: 73.22266
A38: 29 | B38: BAJAJ-AUTO | C38: 3905.4 | D38: 3889.10 | E38: 3866.30 | F38: 3827.20 | G38: 3804.40 | H38: 3928.20 | I38: 3951.00 | J38: 3990.10 | K38: 3911.9 | L38: 3850 | M38: 2.14072
A39: 30 | B39: BAJFINANCE | C39: 6489.95 | D39: 6461.08 | E39: 6426.17 | F39: 6362.38 | G39: 6327.47 | H39: 6524.87 | I39: 6559.78 | J39: 6623.57 | K39: 6496 | L39: 6397.3 | M39: 6.18979
A40: 31 | B40: BAJAJFINSV | C40: 1420.8 | D40: 1410.93 | E40: 1397.92 | F40: 1375.03 | G40: 1362.02 | H40: 1433.82 | I40: 1446.83 | J40: 1469.72 | K40: 1423.95 | L40: 1388.05 | M40: 15.18171
A41: 32 | B41: BAJAJHLDNG | C41: 6010.75 | D41: 6015.03 | E41: 5983.72 | F41: 5956.68 | G41: 5925.37 | H41: 6042.07 | I41: 6073.38 | J41: 6100.42 | K41: 6046.35 | L41: 5988 | M41: 0.17161
A42: 33 | B42: BALKRISIND | C42: 2019.65 | D42: 2006.23 | E42: 1987.47 | F42: 1955.28 | G42: 1936.52 | H42: 2038.42 | I42: 2057.18 | J42: 2089.37 | K42: 2025 | L42: 1974.05 | M42: 4.12836
A43: 34 | B43: BANDHANBNK | C43: 242.3 | D43: 240.20 | E43: 237.60 | F43: 232.90 | G43: 230.30 | H43: 244.90 | I43: 247.50 | J43: 252.20 | K43: 242.8 | L43: 235.5 | M43: 71.9696
A44: 35 | B44: BANKBARODA | C44: 169.55 | D44: 169.05 | E44: 168.10 | F44: 166.65 | G44: 165.70 | H44: 170.50 | I44: 171.45 | J44: 172.90 | K44: 170 | L44: 167.6 | M44: 156.62905
A45: 36 | B45: BANKINDIA | C45: 78.2 | D45: 77.88 | E45: 77.17 | F45: 76.13 | G45: 75.42 | H45: 78.92 | I45: 79.63 | J45: 80.67 | K45: 78.6 | L45: 76.85 | M45: 55.09405
A46: 37 | B46: BATAINDIA | C46: 1475.5 | D46: 1493.00 | E46: 1446.15 | F46: 1416.80 | G46: 1369.95 | H46: 1522.35 | I46: 1569.20 | J46: 1598.55 | K46: 1539.85 | L46: 1463.65 | M46: 13.0085
A47: 38 | B47: BERGEPAINT | C47: 558.65 | D47: 556.53 | E47: 553.37 | F47: 548.08 | G47: 544.92 | H47: 561.82 | I47: 564.98 | J47: 570.27 | K47: 559.7 | L47: 551.25 | M47: 3.45677
A48: 39 | B48: BEL | C48: 94.65 | D48: 94.28 | E48: 93.77 | F48: 92.88 | G48: 92.37 | H48: 95.17 | I48: 95.68 | J48: 96.57 | K48: 94.8 | L48: 93.4 | M48: 115.75131
A49: 40 | B49: BHARATFORG | C49: 835.7 | D49: 834.78 | E49: 812.57 | F49: 789.43 | G49: 767.22 | H49: 857.92 | I49: 880.13 | J49: 903.27 | K49: 857 | L49: 811.65 | M49: 59.95432
A50: 41 | B50: BHEL | C50: 71.75 | D50: 71.20 | E50: 70.35 | F50: 68.95 | G50: 68.10 | H50: 72.60 | I50: 73.45 | J50: 74.85 | K50: 72.05 | L50: 69.8 | M50: 113.58552
A51: 42 | B51: BPCL | C51: 331.15 | D51: 330.77 | E51: 328.88 | F51: 326.62 | G51: 324.73 | H51: 333.03 | I51: 334.92 | J51: 337.18 | K51: 332.65 | L51: 328.5 | M51: 17.6465
A52: 43 | B52: BHARTIARTL | C52: 785.4 | D52: 781.58 | E52: 776.02 | F52: 766.63 | G52: 761.07 | H52: 790.97 | I52: 796.53 | J52: 805.92 | K52: 787.15 | L52: 772.2 | M52: 36.02838
A53: 44 | B53: BIOCON | C53: 238.1 | D53: 236.05 | E53: 232.65 | F53: 227.20 | G53: 223.80 | H53: 241.50 | I53: 244.90 | J53: 250.35 | K53: 239.45 | L53: 230.6 | M53: 57.89278
A54: 45 | B54: BOSCHLTD | C54: 17855.25 | D54: 17713.45 | E54: 17376.90 | F54: 16898.55 | G54: 16562.00 | H54: 18191.80 | I54: 18528.35 | J54: 19006.70 | K54: 18050 | L54: 17235.1 | M54: 0.70046
A55: 46 | B55: BRITANNIA | C55: 4588.45 | D55: 4572.83 | E55: 4545.82 | F55: 4503.18 | G55: 4476.17 | H55: 4615.47 | I55: 4642.48 | J55: 4685.12 | K55: 4599.85 | L55: 4530.2 | M55: 1.97822
A56: 47 | B56: CANBK | C56: 295.9 | D56: 293.82 | E56: 290.63 | F56: 285.37 | G56: 282.18 | H56: 299.08 | I56: 302.27 | J56: 307.53 | K56: 297 | L56: 288.55 | M56: 53.82881
A57: 48 | B57: CHOLAFIN | C57: 782.65 | D57: 779.87 | E57: 774.78 | F57: 766.92 | G57: 761.83 | H57: 787.73 | I57: 792.82 | J57: 800.68 | K57: 784.95 | L57: 772 | M57: 6.57492
A58: 49 | B58: CIPLA | C58: 1030.8 | D58: 1026.78 | E58: 1020.12 | F58: 1009.43 | G58: 1002.77 | H58: 1037.47 | I58: 1044.13 | J58: 1054.82 | K58: 1033.45 | L58: 1016.1 | M58: 6.62924
A59: 50 | B59: CLEAN | C59: 1445.55 | D59: 1444.82 | E59: 1430.73 | F59: 1415.92 | G59: 1401.83 | H59: 1459.63 | I59: 1473.72 | J59: 1488.53 | K59: 1458.9 | L59: 1430 | M59: 0.21623
A60: 51 | B60: COALINDIA | C60: 212.9 | D60: 212.33 | E60: 210.87 | F60: 208.83 | G60: 207.37 | H60: 214.37 | I60: 215.83 | J60: 217.87 | K60: 213.8 | L60: 210.3 | M60: 96.12884
A61: 52 | B61: COFORGE | C61: 4115 | D61: 4101.65 | E61: 4078.35 | F61: 4041.70 | G61: 4018.40 | H61: 4138.30 | I61: 4161.60 | J61: 4198.25 | K61: 4124.95 | L61: 4065 | M61: 3.74514
A62: 53 | B62: COLPAL | C62: 1458.65 | D62: 1452.27 | E62: 1444.38 | F62: 1430.12 | G62: 1422.23 | H62: 1466.53 | I62: 1474.42 | J62: 1488.68 | K62: 1460.15 | L62: 1438 | M62: 1.10458
A63: 54 | B63: CONCOR | C63: 621.25 | D63: 620.17 | E63: 616.43 | F63: 611.62 | G63: 607.88 | H63: 624.98 | I63: 628.72 | J63: 633.53 | K63: 623.9 | L63: 615.35 | M63: 9.04807
A64: 55 | B64: COROMANDEL | C64: 912.95 | D64: 911.25 | E64: 904.75 | F64: 896.55 | G64: 890.05 | H64: 919.45 | I64: 925.95 | J64: 934.15 | K64: 917.75 | L64: 903.05 | M64: 1.97364
A65: 56 | B65: CROMPTON | C65: 305.05 | D65: 302.62 | E65: 298.93 | F65: 292.82 | G65: 289.13 | H65: 308.73 | I65: 312.42 | J65: 318.53 | K65: 306.3 | L65: 296.5 | M65: 20.52305
A66: 57 | B66: CUMMINSIND | C66: 1628.8 | D66: 1617.95 | E66: 1602.90 | F66: 1577.00 | G66: 1561.95 | H66: 1643.85 | I66: 1658.90 | J66: 1684.80 | K66: 1633 | L66: 1592.05 | M66: 6.10762
A67: 58 | B67: DLF | C67: 361 | D67: 357.77 | E67: 353.43 | F67: 345.87 | G67: 341.53 | H67: 365.33 | I67: 369.67 | J67: 377.23 | K67: 362.1 | L67: 350.2 | M67: 25.48073
A68: 59 | B68: DABUR | C68: 534.85 | D68: 531.78 | E68: 527.07 | F68: 519.28 | G68: 514.57 | H68: 539.57 | I68: 544.28 | J68: 552.07 | K68: 536.5 | L68: 524 | M68: 15.30576
A69: 60 | B69: DALBHARAT | C69: 1920.35 | D69: 1911.35 | E69: 1895.00 | F69: 1869.65 | G69: 1853.30 | H69: 1936.70 | I69: 1953.05 | J69: 1978.40 | K69: 1927.7 | L69: 1886 | M69: 2.08282
A70: 61 | B70: DEEPAKNTR | C70: 1797.95 | D70: 1785.32 | E70: 1761.63 | F70: 1725.32 | G70: 1701.63 | H70: 1821.63 | I70: 1845.32 | J70: 1881.63 | K70: 1809 | L70: 1749 | M70: 4.46448
A71: 62 | B71: DELHIVERY | C71: 319.9 | D71: 319.70 | E71: 316.90 | F71: 313.90 | G71: 311.10 | H71: 322.70 | I71: 325.50 | J71: 328.50 | K71: 322.5 | L71: 316.7 | M71: 5.98595
A72: 63 | B72: DIVISLAB | C72: 2822.55 | D72: 2807.13 | E72: 2787.42 | F72: 2752.28 | G72: 2732.57 | H72: 2842.27 | I72: 2861.98 | J72: 2897.12 | K72: 2826.85 | L72: 2772 | M72: 2.14098
A73: 64 | B73: DIXON | C73: 2701.55 | D73: 2690.42 | E73: 2662.33 | F73: 2623.12 | G73: 2595.03 | H73: 2729.63 | I73: 2757.72 | J73: 2796.93 | K73: 2718.5 | L73: 2651.2 | M73: 2.26606
A74: 65 | B74: LALPATHLAB | C74: 1964.45 | D74: 1970.50 | E74: 1951.00 | F74: 1937.55 | G74: 1918.05 | H74: 1983.95 | I74: 2003.45 | J74: 2016.90 | K74: 1990 | L74: 1957.05 | M74: 0.79626
A75: 66 | B75: DRREDDY | C75: 4519.85 | D75: 4529.08 | E75: 4494.97 | F75: 4470.08 | G75: 4435.97 | H75: 4553.97 | I75: 4588.08 | J75: 4612.97 | K75: 4563.2 | L75: 4504.2 | M75: 2.56737
A76: 67 | B76: EICHERMOT | C76: 3311.15 | D76: 3285.37 | E76: 3228.78 | F76: 3146.42 | G76: 3089.83 | H76: 3367.73 | I76: 3424.32 | J76: 3506.68 | K76: 3341.95 | L76: 3203 | M76: 20.93492
A77: 68 | B77: EMAMILTD | C77: 389.65 | D77: 392.68 | E77: 383.97 | F77: 378.28 | G77: 369.57 | H77: 398.37 | I77: 407.08 | J77: 412.77 | K77: 401.4 | L77: 387 | M77: 6.02105
A78: 69 | B78: ESCORTS | C78: 2043.65 | D78: 2036.53 | E78: 1998.27 | F78: 1952.88 | G78: 1914.62 | H78: 2081.92 | I78: 2120.18 | J78: 2165.57 | K78: 2074.8 | L78: 1991.15 | M78: 4.46114
A79: 70 | B79: NYKAA | C79: 142.95 | D79: 142.98 | E79: 140.27 | F79: 137.58 | G79: 134.87 | H79: 145.67 | I79: 148.38 | J79: 151.07 | K79: 145.7 | L79: 140.3 | M79: 54.8981
A80: 71 | B80: FEDERALBNK | C80: 129.65 | D80: 129.52 | E80: 128.68 | F80: 127.72 | G80: 126.88 | H80: 130.48 | I80: 131.32 | J80: 132.28 | K80: 130.35 | L80: 128.55 | M80: 62.66944
A81: 72 | B81: FORTIS | C81: 269.7 | D81: 270.32 | E81: 266.63 | F81: 263.57 | G81: 259.88 | H81: 273.38 | I81: 277.07 | J81: 280.13 | K81: 274 | L81: 267.25 | M81: 6.66229
A82: 73 | B82: GAIL | C82: 95.3 | D82: 95.15 | E82: 94.65 | F82: 94.00 | G82: 93.50 | H82: 95.80 | I82: 96.30 | J82: 96.95 | K82: 95.65 | L82: 94.5 | M82: 68.87911
A83: 74 | B83: GLAND | C83: 1339.4 | D83: 1343.30 | E83: 1318.60 | F83: 1297.80 | G83: 1273.10 | H83: 1364.10 | I83: 1388.80 | J83: 1409.60 | K83: 1368 | L83: 1322.5 | M83: 2.48705
A84: 75 | B84: GODREJCP | C84: 935.5 | D84: 932.50 | E84: 927.15 | F84: 918.80 | G84: 913.45 | H84: 940.85 | I84: 946.20 | J84: 954.55 | K84: 937.85 | L84: 924.15 | M84: 5.64718
A85: 76 | B85: GODREJPROP | C85: 1170.55 | D85: 1162.30 | E85: 1151.35 | F85: 1132.15 | G85: 1121.20 | H85: 1181.50 | I85: 1192.45 | J85: 1211.65 | K85: 1173.25 | L85: 1143.1 | M85: 5.77077
A86: 77 | B86: GRASIM | C86: 1626.15 | D86: 1621.43 | E86: 1602.87 | F86: 1579.58 | G86: 1561.02 | H86: 1644.72 | I86: 1663.28 | J86: 1686.57 | K86: 1640 | L86: 1598.15 | M86: 6.41985
A87: 78 | B87: GUJGASLTD | C87: 483.25 | D87: 480.82 | E87: 474.93 | F87: 466.62 | G87: 460.73 | H87: 489.13 | I87: 495.02 | J87: 503.33 | K87: 486.7 | L87: 472.5 | M87: 8.63643
A88: 79 | B88: GSPL | C88: 269.45 | D88: 271.55 | E88: 263.50 | F88: 257.55 | G88: 249.50 | H88: 277.50 | I88: 285.55 | J88: 291.50 | K88: 279.6 | L88: 265.6 | M88: 10.14406
A89: 80 | B89: HCLTECH | C89: 1132.9 | D89: 1129.03 | E89: 1123.47 | F89: 1114.03 | G89: 1108.47 | H89: 1138.47 | I89: 1144.03 | J89: 1153.47 | K89: 1134.6 | L89: 1119.6 | M89: 16.48954
A90: 81 | B90: HDFCAMC | C90: 1903.25 | D90: 1897.73 | E90: 1887.52 | F90: 1871.78 | G90: 1861.57 | H90: 1913.47 | I90: 1923.68 | J90: 1939.42 | K90: 1907.95 | L90: 1882 | M90: 0.89727
A91: 82 | B91: HDFCBANK | C91: 1670.3 | D91: 1668.35 | E91: 1658.70 | F91: 1647.10 | G91: 1637.45 | H91: 1679.95 | I91: 1689.60 | J91: 1701.20 | K91: 1678 | L91: 1656.75 | M91: 57.19356
A92: 83 | B92: HDFCLIFE | C92: 519.1 | D92: 516.25 | E92: 512.50 | F92: 505.90 | G92: 502.15 | H92: 522.85 | I92: 526.60 | J92: 533.20 | K92: 520 | L92: 509.65 | M92: 24.97424
A93: 84 | B93: HAVELLS | C93: 1218.15 | D93: 1209.97 | E93: 1198.18 | F93: 1178.22 | G93: 1166.43 | H93: 1229.93 | I93: 1241.72 | J93: 1261.68 | K93: 1221.75 | L93: 1190 | M93: 7.28523
A94: 85 | B94: HEROMOTOCO | C94: 2572 | D94: 2561.33 | E94: 2547.67 | F94: 2523.33 | G94: 2509.67 | H94: 2585.67 | I94: 2599.33 | J94: 2623.67 | K94: 2575 | L94: 2537 | M94: 6.43367
A95: 86 | B95: HINDALCO | C95: 433.95 | D95: 433.93 | E95: 430.62 | F95: 427.28 | G95: 423.97 | H95: 437.27 | I95: 440.58 | J95: 443.92 | K95: 437.25 | L95: 430.6 | M95: 36.2345
A96: 87 | B96: HAL | C96: 2482.55 | D96: 2477.82 | E96: 2460.68 | F96: 2438.82 | G96: 2421.68 | H96: 2499.68 | I96: 2516.82 | J96: 2538.68 | K96: 2494.95 | L96: 2455.95 | M96: 6.48029
A97: 88 | B97: HINDPETRO | C97: 235.05 | D97: 234.12 | E97: 232.73 | F97: 230.42 | G97: 229.03 | H97: 236.43 | I97: 237.82 | J97: 240.13 | K97: 235.5 | L97: 231.8 | M97: 11.86525
A98: 89 | B98: HINDUNILVR | C98: 2548.45 | D98: 2552.42 | E98: 2533.03 | F98: 2517.62 | G98: 2498.23 | H98: 2567.83 | I98: 2587.22 | J98: 2602.63 | K98: 2571.8 | L98: 2537 | M98: 20.09134
A99: 90 | B99: HINDZINC | C99: 322.75 | D99: 323.52 | E99: 320.08 | F99: 317.42 | G99: 313.98 | H99: 326.18 | I99: 329.62 | J99: 332.28 | K99: 326.95 | L99: 320.85 | M99: 2.68049
A100: 91 | B100: HONAUT | C100: 37299.9 | D100: 37536.85 | E100: 36973.75 | F100: 36647.60 | G100: 36084.50 | H100: 37863.00 | I100: 38426.10 | J100: 38752.25 | K100: 38099.95 | L100: 37210.7 | M100: 0.06214
A101: 92 | B101: HDFC | C101: 2703.9 | D101: 2701.97 | E101: 2685.08 | F101: 2666.27 | G101: 2649.38 | H101: 2720.78 | I101: 2737.67 | J101: 2756.48 | K101: 2718.85 | L101: 2683.15 | M101: 33.6715
A102: 93 | B102: ICICIBANK | C102: 870.8 | D102: 868.22 | E102: 863.18 | F102: 855.57 | G102: 850.53 | H102: 875.83 | I102: 880.87 | J102: 888.48 | K102: 873.25 | L102: 860.6 | M102: 120.70288
A103: 94 | B103: ICICIGI | C103: 1135.2 | D103: 1135.40 | E103: 1127.00 | F103: 1118.80 | G103: 1110.40 | H103: 1143.60 | I103: 1152.00 | J103: 1160.20 | K103: 1143.8 | L103: 1127.2 | M103: 3.06763
A104: 95 | B104: ICICIPRULI | C104: 438.75 | D104: 437.17 | E104: 434.53 | F104: 430.32 | G104: 427.68 | H104: 441.38 | I104: 444.02 | J104: 448.23 | K104: 439.8 | L104: 432.95 | M104: 15.30243
A105: 96 | B105: ISEC | C105: 474 | D105: 470.63 | E105: 462.37 | F105: 450.73 | G105: 442.47 | H105: 482.27 | I105: 490.53 | J105: 502.17 | K105: 478.9 | L105: 459 | M105: 2.0027
A106: 97 | B106: IDFCFIRSTB | C106: 57.5 | D106: 57.30 | E106: 57.00 | F106: 56.50 | G106: 56.20 | H106: 57.80 | I106: 58.10 | J106: 58.60 | K106: 57.6 | L106: 56.8 | M106: 172.37521
A107: 98 | B107: ITC | C107: 382.2 | D107: 381.20 | E107: 379.55 | F107: 376.90 | G107: 375.25 | H107: 383.85 | I107: 385.50 | J107: 388.15 | K107: 382.85 | L107: 378.55 | M107: 122.0935
A108: 99 | B108: INDIAMART | C108: 4743.4 | D108: 4766.55 | E108: 4676.85 | F108: 4610.30 | G108: 4520.60 | H108: 4833.10 | I108: 4922.80 | J108: 4989.35 | K108: 4856.25 | L108: 4700 | M108: 0.9892
A109: 100 | B109: INDIANB | C109: 288.55 | D109: 288.13 | E109: 284.47 | F109: 280.38 | G109: 276.72 | H109: 292.22 | I109: 295.88 | J109: 299.97 | K109: 291.8 | L109: 284.05 | M109: 5.81135
A110: 101 | B110: IEX | C110: 134.35 | D110: 134.45 | E110: 133.10 | F110: 131.85 | G110: 130.50 | H110: 135.70 | I110: 137.05 | J110: 138.30 | K110: 135.8 | L110: 133.2 | M110: 46.14181
A111: 102 | B111: INDHOTEL | C111: 315.05 | D111: 314.72 | E111: 311.98 | F111: 308.92 | G111: 306.18 | H111: 317.78 | I111: 320.52 | J111: 323.58 | K111: 317.45 | L111: 311.65 | M111: 13.53334
A112: 103 | B112: IOC | C112: 79.5 | D112: 79.23 | E112: 78.72 | F112: 77.93 | G112: 77.42 | H112: 80.02 | I112: 80.53 | J112: 81.32 | K112: 79.75 | L112: 78.45 | M112: 36.86045
A113: 104 | B113: IRCTC | C113: 647.25 | D113: 642.08 | E113: 636.17 | F113: 625.08 | G113: 619.17 | H113: 653.17 | I113: 659.08 | J113: 670.17 | K113: 648 | L113: 631 | M113: 8.26243
A114: 105 | B114: IGL | C114: 435.4 | D114: 433.22 | E114: 429.83 | F114: 424.27 | G114: 420.88 | H114: 438.78 | I114: 442.17 | J114: 447.73 | K114: 436.6 | L114: 427.65 | M114: 18.46368
A115: 106 | B115: INDUSTOWER | C115: 169.7 | D115: 168.43 | E115: 166.27 | F115: 162.83 | G115: 160.67 | H115: 171.87 | I115: 174.03 | J115: 177.47 | K115: 170.6 | L115: 165 | M115: 39.98752
A116: 107 | B116: INDUSINDBK | C116: 1149.6 | D116: 1151.68 | E116: 1142.92 | F116: 1136.23 | G116: 1127.47 | H116: 1158.37 | I116: 1167.13 | J116: 1173.82 | K116: 1160.45 | L116: 1145 | M116: 20.50158
A117: 108 | B117: NAUKRI | C117: 3576.1 | D117: 3546.50 | E117: 3508.60 | F117: 3441.10 | G117: 3403.20 | H117: 3614.00 | I117: 3651.90 | J117: 3719.40 | K117: 3584.4 | L117: 3479 | M117: 4.32401
A118: 109 | B118: INFY | C118: 1597.05 | D118: 1590.68 | E118: 1582.37 | F118: 1567.68 | G118: 1559.37 | H118: 1605.37 | I118: 1613.68 | J118: 1628.37 | K118: 1599 | L118: 1576 | M118: 34.65747
A119: 110 | B119: INDIGO | C119: 1986.05 | D119: 1997.00 | E119: 1957.60 | F119: 1929.15 | G119: 1889.75 | H119: 2025.45 | I119: 2064.85 | J119: 2093.30 | K119: 2036.4 | L119: 1968.55 | M119: 14.65671
A120: 111 | B120: IPCALAB | C120: 843.55 | D120: 843.55 | E120: 835.10 | F120: 826.65 | G120: 818.20 | H120: 852.00 | I120: 860.45 | J120: 868.90 | K120: 852 | L120: 835.1 | M120: 3.27261
A121: 112 | B121: JSWENERGY | C121: 227.65 | D121: 226.35 | E121: 223.30 | F121: 218.95 | G121: 215.90 | H121: 230.70 | I121: 233.75 | J121: 238.10 | K121: 229.4 | L121: 222 | M121: 7.76323
A122: 113 | B122: JSWSTEEL | C122: 727.15 | D122: 725.28 | E122: 721.97 | F122: 716.78 | G122: 713.47 | H122: 730.47 | I122: 733.78 | J122: 738.97 | K122: 728.6 | L122: 720.1 | M122: 8.59372
A123: 114 | B123: JINDALSTEL | C123: 587.6 | D123: 588.87 | E123: 581.23 | F123: 574.87 | G123: 567.23 | H123: 595.23 | I123: 602.87 | J123: 609.23 | K123: 596.5 | L123: 582.5 | M123: 14.35993
A124: 115 | B124: JUBLFOOD | C124: 454.25 | D124: 452.52 | E124: 448.48 | F124: 442.72 | G124: 438.68 | H124: 458.28 | I124: 462.32 | J124: 468.08 | K124: 456.55 | L124: 446.75 | M124: 13.24967
A125: 116 | B125: KOTAKBANK | C125: 1785.5 | D125: 1778.58 | E125: 1767.17 | F125: 1748.83 | G125: 1737.42 | H125: 1796.92 | I125: 1808.33 | J125: 1826.67 | K125: 1790 | L125: 1760.25 | M125: 24.09292
A126: 117 | B126: L&TFH | C126: 94.5 | D126: 94.15 | E126: 93.65 | F126: 92.80 | G126: 92.30 | H126: 95.00 | I126: 95.50 | J126: 96.35 | K126: 94.65 | L126: 93.3 | M126: 29.04674
A127: 118 | B127: LTTS | C127: 3621.5 | D127: 3612.83 | E127: 3584.67 | F127: 3547.83 | G127: 3519.67 | H127: 3649.67 | I127: 3677.83 | J127: 3714.67 | K127: 3641 | L127: 3576 | M127: 0.89925
A128: 119 | B128: LICHSGFIN | C128: 372.7 | D128: 371.97 | E128: 369.73 | F128: 366.77 | G128: 364.53 | H128: 374.93 | I128: 377.17 | J128: 380.13 | K128: 374.2 | L128: 369 | M128: 12.97604
A129: 120 | B129: LTIM | C129: 4742.85 | D129: 4692.95 | E129: 4636.90 | F129: 4530.95 | G129: 4474.90 | H129: 4798.90 | I129: 4854.95 | J129: 4960.90 | K129: 4749 | L129: 4587 | M129: 4.88248
A130: 121 | B130: LT | C130: 2175.05 | D130: 2173.38 | E130: 2158.92 | F130: 2142.78 | G130: 2128.32 | H130: 2189.52 | I130: 2203.98 | J130: 2220.12 | K130: 2187.85 | L130: 2157.25 | M130: 19.46344
A131: 122 | B131: LAURUSLABS | C131: 334.75 | D131: 332.77 | E131: 330.03 | F131: 325.32 | G131: 322.58 | H131: 337.48 | I131: 340.22 | J131: 344.93 | K131: 335.5 | L131: 328.05 | M131: 6.41628
A132: 123 | B132: LICI | C132: 601 | D132: 600.02 | E132: 596.08 | F132: 591.17 | G132: 587.23 | H132: 604.93 | I132: 608.87 | J132: 613.78 | K132: 603.95 | L132: 595.1 | M132: 9.33878
A133: 124 | B133: LINDEINDIA | C133: 3622.05 | D133: 3590.20 | E133: 3505.30 | F133: 3388.55 | G133: 3303.65 | H133: 3706.95 | I133: 3791.85 | J133: 3908.60 | K133: 3675.1 | L133: 3473.45 | M133: 1.56115
A134: 125 | B134: LUPIN | C134: 669.1 | D134: 665.50 | E134: 660.45 | F134: 651.80 | G134: 646.75 | H134: 674.15 | I134: 679.20 | J134: 687.85 | K134: 670.55 | L134: 656.85 | M134: 8.20913
A135: 126 | B135: MRF | C135: 88855.45 | D135: 88659.88 | E135: 88245.57 | F135: 87635.68 | G135: 87221.37 | H135: 89269.77 | I135: 89684.08 | J135: 90293.97 | K135: 89074.2 | L135: 88050 | M135: 0.06123
A136: 127 | B136: M&MFIN | C136: 262.9 | D136: 262.17 | E136: 260.33 | F136: 257.77 | G136: 255.93 | H136: 264.73 | I136: 266.57 | J136: 269.13 | K136: 264 | L136: 259.6 | M136: 13.78706
A137: 128 | B137: M&M | C137: 1379.35 | D137: 1374.18 | E137: 1365.22 | F137: 1351.08 | G137: 1342.12 | H137: 1388.32 | I137: 1397.28 | J137: 1411.42 | K137: 1383.15 | L137: 1360.05 | M137: 20.07214
A138: 129 | B138: MARICO | C138: 493.35 | D138: 492.67 | E138: 490.08 | F138: 486.82 | G138: 484.23 | H138: 495.93 | I138: 498.52 | J138: 501.78 | K138: 495.25 | L138: 489.4 | M138: 8.04095
A139: 130 | B139: MARUTI | C139: 8845.35 | D139: 8827.68 | E139: 8759.67 | F139: 8673.98 | G139: 8605.97 | H139: 8913.37 | I139: 8981.38 | J139: 9067.07 | K139: 8895.7 | L139: 8742 | M139: 4.52568
A140: 131 | B140: MFSL | C140: 745.25 | D140: 734.42 | E140: 718.43 | F140: 691.62 | G140: 675.63 | H140: 761.23 | I140: 777.22 | J140: 804.03 | K140: 750.4 | L140: 707.6 | M140: 21.92098
A141: 132 | B141: MAXHEALTH | C141: 423.55 | D141: 423.63 | E141: 421.07 | F141: 418.58 | G141: 416.02 | H141: 426.12 | I141: 428.68 | J141: 431.17 | K141: 426.2 | L141: 421.15 | M141: 8.49521
A142: 133 | B142: MSUMI | C142: 51.7 | D142: 51.67 | E142: 51.23 | F142: 50.77 | G142: 50.33 | H142: 52.13 | I142: 52.57 | J142: 53.03 | K142: 52.1 | L142: 51.2 | M142: 20.17611
A143: 134 | B143: MPHASIS | C143: 2158.7 | D143: 2151.38 | E143: 2130.77 | F143: 2102.83 | G143: 2082.22 | H143: 2179.32 | I143: 2199.93 | J143: 2227.87 | K143: 2172 | L143: 2123.45 | M143: 2.32991
A144: 135 | B144: MUTHOOTFIN | C144: 998.9 | D144: 998.07 | E144: 994.13 | F144: 989.37 | G144: 985.43 | H144: 1002.83 | I144: 1006.77 | J144: 1011.53 | K144: 1002 | L144: 993.3 | M144: 2.33823
A145: 136 | B145: NTPC | C145: 165.8 | D145: 165.50 | E145: 164.50 | F145: 163.20 | G145: 162.20 | H145: 166.80 | I145: 167.80 | J145: 169.10 | K145: 166.5 | L145: 164.2 | M145: 118.55678
A146: 137 | B146: NATIONALUM | C146: 79.1 | D146: 79.12 | E146: 78.28 | F146: 77.47 | G146: 76.63 | H146: 79.93 | I146: 80.77 | J146: 81.58 | K146: 79.95 | L146: 78.3 | M146: 112.45876
A147: 138 | B147: NAVINFLUOR | C147: 4082.8 | D147: 4093.57 | E147: 4050.28 | F147: 4017.77 | G147: 3974.48 | H147: 4126.08 | I147: 4169.37 | J147: 4201.88 | K147: 4136.85 | L147: 4061.05 | M147: 2.13847
A148: 139 | B148: NESTLEIND | C148: 19260.95 | D148: 19163.27 | E148: 19027.73 | F148: 18794.52 | G148: 18658.98 | H148: 19396.48 | I148: 19532.02 | J148: 19765.23 | K148: 19298.8 | L148: 18930.05 | M148: 0.31998
A149: 140 | B149: NAM-INDIA | C149: 226.2 | D149: 226.10 | E149: 224.70 | F149: 223.20 | G149: 221.80 | H149: 227.60 | I149: 229.00 | J149: 230.50 | K149: 227.5 | L149: 224.6 | M149: 1.98816
A150: 141 | B150: OBEROIRLTY | C150: 864 | D150: 859.37 | E150: 850.23 | F150: 836.47 | G150: 827.33 | H150: 873.13 | I150: 882.27 | J150: 896.03 | K150: 868.5 | L150: 845.6 | M150: 3.1996
A151: 142 | B151: ONGC | C151: 147.5 | D151: 147.47 | E151: 145.53 | F151: 143.57 | G151: 141.63 | H151: 149.43 | I151: 151.37 | J151: 153.33 | K151: 149.4 | L151: 145.5 | M151: 126.31259
A152: 143 | B152: OIL | C152: 247.9 | D152: 249.38 | E152: 244.62 | F152: 241.33 | G152: 236.57 | H152: 252.67 | I152: 257.43 | J152: 260.72 | K152: 254.15 | L152: 246.1 | M152: 38.42795
A153: 144 | B153: PAYTM | C153: 640.05 | D153: 641.13 | E153: 632.27 | F153: 624.48 | G153: 615.62 | H153: 648.92 | I153: 657.78 | J153: 665.57 | K153: 650 | L153: 633.35 | M153: 23.00566
A154: 145 | B154: OFSS | C154: 3165.05 | D154: 3156.43 | E154: 3138.22 | F154: 3111.38 | G154: 3093.17 | H154: 3183.27 | I154: 3201.48 | J154: 3228.32 | K154: 3174.65 | L154: 3129.6 | M154: 0.23904
A155: 146 | B155: POLICYBZR | C155: 496.45 | D155: 498.58 | E155: 488.47 | F155: 480.48 | G155: 470.37 | H155: 506.57 | I155: 516.68 | J155: 524.67 | K155: 508.7 | L155: 490.6 | M155: 16.62947
A156: 147 | B156: PIIND | C156: 3121.95 | D156: 3147.65 | E156: 3040.30 | F156: 2958.65 | G156: 2851.30 | H156: 3229.30 | I156: 3336.65 | J156: 3418.30 | K156: 3255 | L156: 3066 | M156: 24.38491
A157: 148 | B157: PAGEIND | C157: 38377.8 | D157: 38309.23 | E157: 37918.57 | F157: 37459.33 | G157: 37068.67 | H157: 38768.47 | I157: 39159.13 | J157: 39618.37 | K157: 38699.9 | L157: 37850 | M157: 0.34233
A158: 149 | B158: PATANJALI | C158: 915.95 | D158: 913.35 | E158: 902.70 | F158: 889.45 | G158: 878.80 | H158: 926.60 | I158: 937.25 | J158: 950.50 | K158: 924 | L158: 900.1 | M158: 2.13189
A159: 150 | B159: PERSISTENT | C159: 4830.95 | D159: 4797.30 | E159: 4745.70 | F159: 4660.45 | G159: 4608.85 | H159: 4882.55 | I159: 4934.15 | J159: 5019.40 | K159: 4848.9 | L159: 4712.05 | M159: 2.35688
A160: 151 | B160: PETRONET | C160: 221.8 | D160: 221.07 | E160: 219.43 | F160: 217.07 | G160: 215.43 | H160: 223.43 | I160: 225.07 | J160: 227.43 | K160: 222.7 | L160: 218.7 | M160: 11.85065
A161: 152 | B161: PIDILITIND | C161: 2311.3 | D161: 2305.12 | E161: 2288.18 | F161: 2265.07 | G161: 2248.13 | H161: 2328.23 | I161: 2345.17 | J161: 2368.28 | K161: 2322.05 | L161: 2282 | M161: 1.91808
A162: 153 | B162: POLYCAB | C162: 3006.45 | D162: 2996.18 | E162: 2962.27 | F162: 2918.08 | G162: 2884.17 | H162: 3040.37 | I162: 3074.28 | J162: 3118.47 | K162: 3030.1 | L162: 2952 | M162: 2.16658
A163: 154 | B163: POONAWALLA | C163: 315.1 | D163: 314.78 | E163: 311.67 | F163: 308.23 | G163: 305.12 | H163: 318.22 | I163: 321.33 | J163: 324.77 | K163: 317.9 | L163: 311.35 | M163: 30.5727
A164: 155 | B164: PFC | C164: 148.35 | D164: 146.85 | E164: 144.45 | F164: 140.55 | G164: 138.15 | H164: 150.75 | I164: 153.15 | J164: 157.05 | K164: 149.25 | L164: 142.95 | M164: 64.27779
A165: 156 | B165: POWERGRID | C165: 214.5 | D165: 214.23 | E165: 213.27 | F165: 212.03 | G165: 211.07 | H165: 215.47 | I165: 216.43 | J165: 217.67 | K165: 215.2 | L165: 213 | M165: 60.80623
A166: 157 | B166: PRESTIGE | C166: 405.8 | D166: 406.83 | E166: 400.17 | F166: 394.53 | G166: 387.87 | H166: 412.47 | I166: 419.13 | J166: 424.77 | K166: 413.5 | L166: 401.2 | M166: 9.09051
A167: 158 | B167: PGHH | C167: 13688.2 | D167: 13650.13 | E167: 13529.07 | F167: 13369.93 | G167: 13248.87 | H167: 13809.27 | I167: 13930.33 | J167: 14089.47 | K167: 13771.2 | L167: 13491 | M167: 0.02644
A168: 159 | B168: PNB | C168: 50.9 | D168: 50.73 | E168: 50.42 | F168: 49.93 | G168: 49.62 | H168: 51.22 | I168: 51.53 | J168: 52.02 | K168: 51.05 | L168: 50.25 | M168: 267.11967
A169: 160 | B169: RECLTD | C169: 115.85 | D169: 115.07 | E169: 113.88 | F169: 111.92 | G169: 110.73 | H169: 117.03 | I169: 118.22 | J169: 120.18 | K169: 116.25 | L169: 113.1 | M169: 55.73008
A170: 161 | B170: RELIANCE | C170: 2431.95 | D170: 2414.05 | E170: 2390.90 | F170: 2349.85 | G170: 2326.70 | H170: 2455.10 | I170: 2478.25 | J170: 2519.30 | K170: 2437.2 | L170: 2373 | M170: 154.61902
A171: 162 | B171: SBICARD | C171: 756.4 | D171: 753.00 | E171: 748.65 | F171: 740.90 | G171: 736.55 | H171: 760.75 | I171: 765.10 | J171: 772.85 | K171: 757.35 | L171: 745.25 | M171: 3.2389
A172: 163 | B172: SBILIFE | C172: 1180.35 | D172: 1171.40 | E172: 1158.95 | F172: 1137.55 | G172: 1125.10 | H172: 1192.80 | I172: 1205.25 | J172: 1226.65 | K172: 1183.85 | L172: 1150 | M172: 12.43115
A173: 164 | B173: SRF | C173: 2255.3 | D173: 2245.23 | E173: 2230.67 | F173: 2206.03 | G173: 2191.47 | H173: 2269.87 | I173: 2284.43 | J173: 2309.07 | K173: 2259.8 | L173: 2220.6 | M173: 4.34256
A174: 165 | B174: MOTHERSON | C174: 80.1 | D174: 80.22 | E174: 79.48 | F174: 78.87 | G174: 78.13 | H174: 80.83 | I174: 81.57 | J174: 82.18 | K174: 80.95 | L174: 79.6 | M174: 55.49411
A175: 166 | B175: SHREECEM | C175: 24890.55 | D175: 24726.87 | E175: 24453.73 | F175: 24016.92 | G175: 23743.78 | H175: 25163.68 | I175: 25436.82 | J175: 25873.63 | K175: 25000 | L175: 24290.05 | M175: 0.54111
A176: 167 | B176: SRTRANSFIN
A177: 168 | B177: SIEMENS | C177: 3229.4 | D177: 3189.57 | E177: 3131.08 | F177: 3032.77 | G177: 2974.28 | H177: 3287.88 | I177: 3346.37 | J177: 3444.68 | K177: 3248.05 | L177: 3091.25 | M177: 14.61243
A178: 169 | B178: SONACOMS | C178: 461.3 | D178: 457.73 | E178: 450.77 | F178: 440.23 | G178: 433.27 | H178: 468.27 | I178: 475.23 | J178: 485.77 | K178: 464.7 | L178: 447.2 | M178: 12.47283
A179: 170 | B179: SBIN | C179: 542.25 | D179: 541.23 | E179: 537.82 | F179: 533.38 | G179: 529.97 | H179: 545.67 | I179: 549.08 | J179: 553.52 | K179: 544.65 | L179: 536.8 | M179: 127.96579
A180: 171 | B180: SAIL | C180: 84.15 | D180: 84.37 | E180: 83.38 | F180: 82.62 | G180: 81.63 | H180: 85.13 | I180: 86.12 | J180: 86.88 | K180: 85.35 | L180: 83.6 | M180: 122.66197
A181: 172 | B181: SUNPHARMA | C181: 995.4 | D181: 997.45 | E181: 988.50 | F181: 981.60 | G181: 972.65 | H181: 1004.35 | I181: 1013.30 | J181: 1020.20 | K181: 1006.4 | L181: 990.55 | M181: 22.5135
A182: 173 | B182: SUNTV | C182: 452.8 | D182: 450.63 | E182: 447.27 | F182: 441.73 | G182: 438.37 | H182: 456.17 | I182: 459.53 | J182: 465.07 | K182: 454 | L182: 445.1 | M182: 4.82978
A183: 174 | B183: SYNGENE | C183: 568.1 | D183: 565.22 | E183: 560.88 | F183: 553.67 | G183: 549.33 | H183: 572.43 | I183: 576.77 | J183: 583.98 | K183: 569.55 | L183: 558 | M183: 2.8736
A184: 175 | B184: TVSMOTOR | C184: 1106.5 | D184: 1104.50 | E184: 1086.00 | F184: 1065.50 | G184: 1047.00 | H184: 1125.00 | I184: 1143.50 | J184: 1164.00 | K184: 1123 | L184: 1084 | M184: 30.16998
A185: 176 | B185: TATACHEM | C185: 1010.65 | D185: 1011.55 | E185: 1003.20 | F185: 995.75 | G185: 987.40 | H185: 1019.00 | I185: 1027.35 | J185: 1034.80 | K185: 1019.9 | L185: 1004.1 | M185: 6.26181
A186: 177 | B186: TATACOMM | C186: 1245.45 | D186: 1242.32 | E186: 1235.68 | F186: 1225.92 | G186: 1219.28 | H186: 1252.08 | I186: 1258.72 | J186: 1268.48 | K186: 1248.95 | L186: 1232.55 | M186: 1.31612
A187: 178 | B187: TCS | C187: 3520.65 | D187: 3502.27 | E187: 3478.53 | F187: 3436.42 | G187: 3412.68 | H187: 3544.38 | I187: 3568.12 | J187: 3610.23 | K187: 3526 | L187: 3460.15 | M187: 14.29449
A188: 179 | B188: TATACONSUM | C188: 728.1 | D188: 725.03 | E188: 720.27 | F188: 712.43 | G188: 707.67 | H188: 732.87 | I188: 737.63 | J188: 745.47 | K188: 729.8 | L188: 717.2 | M188: 7.27403
A189: 180 | B189: TATAELXSI | C189: 6649.95 | D189: 6623.35 | E189: 6586.65 | F189: 6523.35 | G189: 6486.65 | H189: 6686.65 | I189: 6723.35 | J189: 6786.65 | K189: 6660.05 | L189: 6560.05 | M189: 1.21266
A190: 181 | B190: TATAMOTORS | C190: 444.15 | D190: 442.40 | E190: 439.90 | F190: 435.65 | G190: 433.15 | H190: 446.65 | I190: 449.15 | J190: 453.40 | K190: 444.9 | L190: 438.15 | M190: 98.57016
A191: 182 | B191: TATAPOWER | C191: 205.25 | D191: 204.42 | E191: 203.18 | F191: 201.12 | G191: 199.88 | H191: 206.48 | I191: 207.72 | J191: 209.78 | K191: 205.65 | L191: 202.35 | M191: 63.23738
A192: 183 | B192: TATASTEEL | C192: 110.3 | D192: 109.90 | E192: 109.20 | F192: 108.10 | G192: 107.40 | H192: 111.00 | I192: 111.70 | J192: 112.80 | K192: 110.6 | L192: 108.8 | M192: 355.4419
A193: 184 | B193: TTML | C193: 66.35 | D193: 66.23 | E193: 65.12 | F193: 63.88 | G193: 62.77 | H193: 67.47 | I193: 68.58 | J193: 69.82 | K193: 67.35 | L193: 65 | M193: 24.13143
A194: 185 | B194: TECHM | C194: 1071.4 | D194: 1051.57 | E194: 1028.13 | F194: 984.87 | G194: 961.43 | H194: 1094.83 | I194: 1118.27 | J194: 1161.53 | K194: 1075 | L194: 1008.3 | M194: 67.12218
A195: 186 | B195: RAMCOCEM | C195: 740.4 | D195: 734.10 | E195: 724.30 | F195: 708.20 | G195: 698.40 | H195: 750.20 | I195: 760.00 | J195: 776.10 | K195: 743.9 | L195: 718 | M195: 2.69691
A196: 187 | B196: TITAN | C196: 2524.3 | D196: 2511.95 | E196: 2495.65 | F196: 2467.00 | G196: 2450.70 | H196: 2540.60 | I196: 2556.90 | J196: 2585.55 | K196: 2528.25 | L196: 2483.3 | M196: 7.07224
A197: 188 | B197: TORNTPHARM | C197: 1512.3 | D197: 1505.40 | E197: 1491.90 | F197: 1471.50 | G197: 1458.00 | H197: 1525.80 | I197: 1539.30 | J197: 1559.70 | K197: 1518.9 | L197: 1485 | M197: 4.37202
A198: 189 | B198: TORNTPOWER | C198: 504.4 | D198: 497.75 | E198: 488.35 | F198: 472.30 | G198: 462.90 | H198: 513.80 | I198: 523.20 | J198: 539.25 | K198: 507.15 | L198: 481.7 | M198: 130.87706
A199: 190 | B199: TRENT | C199: 1347.45 | D199: 1336.90 | E199: 1321.80 | F199: 1296.15 | G199: 1281.05 | H199: 1362.55 | I199: 1377.65 | J199: 1403.30 | K199: 1352 | L199: 1311.25 | M199: 8.21781
A200: 191 | B200: TRIDENT | C200: 31.75 | D200: 31.70 | E200: 31.45 | F200: 31.15 | G200: 30.90 | H200: 32.00 | I200: 32.25 | J200: 32.55 | K200: 31.95 | L200: 31.4 | M200: 25.69334
A201: 192 | B201: TIINDIA | C201: 2431.6 | D201: 2450.45 | E201: 2387.80 | F201: 2344.00 | G201: 2281.35 | H201: 2494.25 | I201: 2556.90 | J201: 2600.70 | K201: 2513.1 | L201: 2406.65 | M201: 2.68674
A202: 193 | B202: UPL | C202: 769.35 | D202: 766.32 | E202: 762.23 | F202: 755.12 | G202: 751.03 | H202: 773.43 | I202: 777.52 | J202: 784.63 | K202: 770.4 | L202: 759.2 | M202: 27.86352
A203: 194 | B203: ULTRACEMCO | C203: 7151.85 | D203: 7125.50 | E203: 7074.00 | F203: 6996.15 | G203: 6944.65 | H203: 7203.35 | I203: 7254.85 | J203: 7332.70 | K203: 7177 | L203: 7047.65 | M203: 4.04971
A204: 195 | B204: UNIONBANK | C204: 72.2 | D204: 72.00 | E204: 71.30 | F204: 70.40 | G204: 69.70 | H204: 72.90 | I204: 73.60 | J204: 74.50 | K204: 72.7 | L204: 71.1 | M204: 60.6447
A205: 196 | B205: UBL | C205: 1468.95 | D205: 1464.72 | E205: 1456.68 | F205: 1444.42 | G205: 1436.38 | H205: 1476.98 | I205: 1485.02 | J205: 1497.28 | K205: 1472.75 | L205: 1452.45 | M205: 1.9654
... 29 more rows

Sheet MidCap Intra
L5: Back To Main Page
A6: FOR INTRA DAY TRADING | K6: =Main!B10 -> 2023-02-16
A9: Sr.no | B9: Scrip | C9: CLOSE RATE | D9: Pivot Point | E9: Supports | H9: Resistances
E10: S1 | F10: S2 | G10: S3 | H10: R1 | I10: R2 | J10: R3 | K10: HIGH | L10: LOW | M10: Total Trade Quanity in Lakhs
A11: 1 | B11: 3MINDIA | C11: 21554 | D11: 21877.98 | E11: 21176.02 | F11: 20798.03 | G11: 20096.07 | H11: 22255.97 | I11: 22957.93 | J11: 23335.92 | K11: 22579.95 | L11: 21500 | M11: 0.4859
A12: 2 | B12: ABB | C12: 3149.6 | D12: 3138.02 | E12: 3086.03 | F12: 3022.47 | G12: 2970.48 | H12: 3201.58 | I12: 3253.57 | J12: 3317.13 | K12: 3190 | L12: 3074.45 | M12: 6.19722
A13: 3 | B13: ACC | C13: 1852.15 | D13: 1842.70 | E13: 1820.65 | F13: 1789.15 | G13: 1767.10 | H13: 1874.20 | I13: 1896.25 | J13: 1927.75 | K13: 1864.75 | L13: 1811.2 | M13: 7.23678
A14: 4 | B14: AIAENG | C14: 2818.25 | D14: 2810.53 | E14: 2792.87 | F14: 2767.48 | G14: 2749.82 | H14: 2835.92 | I14: 2853.58 | J14: 2878.97 | K14: 2828.2 | L14: 2785.15 | M14: 0.40772
A15: 5 | B15: APLAPOLLO | C15: 1231.35 | D15: 1227.03 | E15: 1216.27 | F15: 1201.18 | G15: 1190.42 | H15: 1242.12 | I15: 1252.88 | J15: 1267.97 | K15: 1237.8 | L15: 1211.95 | M15: 7.40298
A16: 6 | B16: AUBANK | C16: 633.95 | D16: 634.08 | E16: 629.42 | F16: 624.88 | G16: 620.22 | H16: 638.62 | I16: 643.28 | J16: 647.82 | K16: 638.75 | L16: 629.55 | M16: 8.48205
A17: 7 | B17: AARTIDRUGS | C17: 378.5 | D17: 379.80 | E17: 376.55 | F17: 374.60 | G17: 371.35 | H17: 381.75 | I17: 385.00 | J17: 386.95 | K17: 383.05 | L17: 377.85 | M17: 0.4159
A18: 8 | B18: AAVAS | C18: 1945.7 | D18: 1960.58 | E18: 1911.17 | F18: 1876.63 | G18: 1827.22 | H18: 1995.12 | I18: 2044.53 | J18: 2079.07 | K18: 2010 | L18: 1926.05 | M18: 2.25796
A19: 9 | B19: ABBOTINDIA | C19: 20399.3 | D19: 20357.57 | E19: 20229.33 | F19: 20059.37 | G19: 19931.13 | H19: 20527.53 | I19: 20655.77 | J19: 20825.73 | K19: 20485.8 | L19: 20187.6 | M19: 0.06398
A20: 10 | B20: ADANIENT | C20: 1779.1 | D20: 1784.50 | E20: 1744.60 | F20: 1710.10 | G20: 1670.20 | H20: 1819.00 | I20: 1858.90 | J20: 1893.40 | K20: 1824.4 | L20: 1750 | M20: 76.36578
A21: 11 | B21: ADANIGREEN | C21: 621 | D21: 621.00 | E21: 621.00 | F21: 621.00 | G21: 621.00 | H21: 621.00 | I21: 621.00 | J21: 621.00 | K21: 621 | L21: 621 | M21: 3.07402
A22: 12 | B22: ADANIPORTS | C22: 569.05 | D22: 569.93 | E22: 561.02 | F22: 552.98 | G22: 544.07 | H22: 577.97 | I22: 586.88 | J22: 594.92 | K22: 578.85 | L22: 561.9 | M22: 92.59895
A23: 13 | B23: ATGL | C23: 1076.4 | D23: 1076.40 | E23: 1076.40 | F23: 1076.40 | G23: 1076.40 | H23: 1076.40 | I23: 1076.40 | J23: 1076.40 | K23: 1076.4 | L23: 1076.4 | M23: 0.7478
A24: 14 | B24: ADANITRANS | C24: 1017.45 | D24: 1017.45 | E24: 1017.45 | F24: 1017.45 | G24: 1017.45 | H24: 1017.45 | I24: 1017.45 | J24: 1017.45 | K24: 1017.45 | L24: 1017.45 | M24: 0.75876
A25: 15 | B25: AWL | C25: 397.55 | D25: 396.57 | E25: 384.23 | F25: 370.92 | G25: 358.58 | H25: 409.88 | I25: 422.22 | J25: 435.53 | K25: 408.9 | L25: 383.25 | M25: 52.81042
A26: 16 | B26: ABCAPITAL | C26: 145.3 | D26: 145.22 | E26: 143.93 | F26: 142.57 | G26: 141.28 | H26: 146.58 | I26: 147.87 | J26: 149.23 | K26: 146.5 | L26: 143.85 | M26: 12.07511
A27: 17 | B27: ABFRL | C27: 256.85 | D27: 253.62 | E27: 249.73 | F27: 242.62 | G27: 238.73 | H27: 260.73 | I27: 264.62 | J27: 271.73 | K27: 257.5 | L27: 246.5 | M27: 36.98763
A28: 18 | B28: ABSLAMC | C28: 399.6 | D28: 399.07 | E28: 397.83 | F28: 396.07 | G28: 394.83 | H28: 400.83 | I28: 402.07 | J28: 403.83 | K28: 400.3 | L28: 397.3 | M28: 0.3262
A29: 19 | B29: AEGISCHEM | C29: 342.85 | D29: 347.17 | E29: 336.68 | F29: 330.52 | G29: 320.03 | H29: 353.33 | I29: 363.82 | J29: 369.98 | K29: 357.65 | L29: 341 | M29: 3.73057
A30: 20 | B30: AETHER | C30: 860.85 | D30: 861.75 | E30: 853.50 | F30: 846.15 | G30: 837.90 | H30: 869.10 | I30: 877.35 | J30: 884.70 | K30: 870 | L30: 854.4 | M30: 0.17605
A31: 21 | B31: AFFLE | C31: 1020.8 | D31: 1025.25 | E31: 1013.55 | F31: 1006.30 | G31: 994.60 | H31: 1032.50 | I31: 1044.20 | J31: 1051.45 | K31: 1036.95 | L31: 1018 | M31: 1.32993
A32: 22 | B32: AJANTPHARM | C32: 1222.05 | D32: 1219.40 | E32: 1208.70 | F32: 1195.35 | G32: 1184.65 | H32: 1232.75 | I32: 1243.45 | J32: 1256.80 | K32: 1230.1 | L32: 1206.05 | M32: 0.1845
A33: 23 | B33: APLLTD | C33: 501.4 | D33: 501.73 | E33: 494.47 | F33: 487.53 | G33: 480.27 | H33: 508.67 | I33: 515.93 | J33: 522.87 | K33: 509 | L33: 494.8 | M33: 1.17136
A34: 24 | B34: ALKEM | C34: 3313.85 | D34: 3308.90 | E34: 3267.80 | F34: 3221.75 | G34: 3180.65 | H34: 3354.95 | I34: 3396.05 | J34: 3442.10 | K34: 3350 | L34: 3262.85 | M34: 0.95582
A35: 25 | B35: ALKYLAMINE | C35: 2506.25 | D35: 2511.65 | E35: 2481.60 | F35: 2456.95 | G35: 2426.90 | H35: 2536.30 | I35: 2566.35 | J35: 2591.00 | K35: 2541.7 | L35: 2487 | M35: 0.15648
A36: 26 | B36: ALLCARGO | C36: 354.7 | D36: 357.42 | E36: 349.13 | F36: 343.57 | G36: 335.28 | H36: 362.98 | I36: 371.27 | J36: 376.83 | K36: 365.7 | L36: 351.85 | M36: 10.79366
A37: 27 | B37: ALOKINDS | C37: 12.35 | D37: 12.32 | E37: 12.08 | F37: 11.82 | G37: 11.58 | H37: 12.58 | I37: 12.82 | J37: 13.08 | K37: 12.55 | L37: 12.05 | M37: 11.56508
A38: 28 | B38: AMARAJABAT | C38: 607.65 | D38: 606.18 | E38: 602.57 | F38: 597.48 | G38: 593.87 | H38: 611.27 | I38: 614.88 | J38: 619.97 | K38: 609.8 | L38: 601.1 | M38: 2.01969
A39: 29 | B39: AMBER | C39: 1856.75 | D39: 1861.27 | E39: 1843.98 | F39: 1831.22 | G39: 1813.93 | H39: 1874.03 | I39: 1891.32 | J39: 1904.08 | K39: 1878.55 | L39: 1848.5 | M39: 0.26286
A40: 30 | B40: AMBUJACEM | C40: 344.85 | D40: 343.60 | E40: 336.25 | F40: 327.65 | G40: 320.30 | H40: 352.20 | I40: 359.55 | J40: 368.15 | K40: 350.95 | L40: 335 | M40: 145.04126
A41: 31 | B41: ANGELONE | C41: 1126.4 | D41: 1122.82 | E41: 1113.28 | F41: 1100.17 | G41: 1090.63 | H41: 1135.93 | I41: 1145.47 | J41: 1158.58 | K41: 1132.35 | L41: 1109.7 | M41: 1.19793
A42: 32 | B42: ANURAS | C42: 612.85 | D42: 614.57 | E42: 609.28 | F42: 605.72 | G42: 600.43 | H42: 618.13 | I42: 623.42 | J42: 626.98 | K42: 619.85 | L42: 611 | M42: 0.69717
A43: 33 | B43: APOLLOHOSP | C43: 4487.9 | D43: 4390.63 | E43: 4267.27 | F43: 4046.63 | G43: 3923.27 | H43: 4611.27 | I43: 4734.63 | J43: 4955.27 | K43: 4514 | L43: 4170 | M43: 27.24361
A44: 34 | B44: APOLLOTYRE | C44: 327.8 | D44: 327.82 | E44: 325.73 | F44: 323.67 | G44: 321.58 | H44: 329.88 | I44: 331.97 | J44: 334.03 | K44: 329.9 | L44: 325.75 | M44: 20.24744
A45: 35 | B45: APTUS | C45: 270.4 | D45: 268.20 | E45: 263.70 | F45: 257.00 | G45: 252.50 | H45: 274.90 | I45: 279.40 | J45: 286.10 | K45: 272.7 | L45: 261.5 | M45: 1.5623
A46: 36 | B46: ASAHIINDIA | C46: 511.35 | D46: 510.63 | E46: 505.72 | F46: 500.08 | G46: 495.17 | H46: 516.27 | I46: 521.18 | J46: 526.82 | K46: 515.55 | L46: 505 | M46: 0.55489
A47: 37 | B47: ASHOKLEY | C47: 149.95 | D47: 150.15 | E47: 148.40 | F47: 146.85 | G47: 145.10 | H47: 151.70 | I47: 153.45 | J47: 155.00 | K47: 151.9 | L47: 148.6 | M47: 85.82737
A48: 38 | B48: ASIANPAINT | C48: 2786.15 | D48: 2779.48 | E48: 2760.67 | F48: 2735.18 | G48: 2716.37 | H48: 2804.97 | I48: 2823.78 | J48: 2849.27 | K48: 2798.3 | L48: 2754 | M48: 8.17717
A49: 39 | B49: ASTERDM | C49: 214.7 | D49: 214.25 | E49: 213.00 | F49: 211.30 | G49: 210.05 | H49: 215.95 | I49: 217.20 | J49: 218.90 | K49: 215.5 | L49: 212.55 | M49: 1.06289
A50: 40 | B50: ASTRAZEN | C50: 3315.75 | D50: 3304.93 | E50: 3263.12 | F50: 3210.48 | G50: 3168.67 | H50: 3357.57 | I50: 3399.38 | J50: 3452.02 | K50: 3346.75 | L50: 3252.3 | M50: 0.04537
A51: 41 | B51: ASTRAL | C51: 1901.7 | D51: 1902.98 | E51: 1890.97 | F51: 1880.23 | G51: 1868.22 | H51: 1913.72 | I51: 1925.73 | J51: 1936.47 | K51: 1915 | L51: 1892.25 | M51: 2.59634
A52: 42 | B52: ATUL | C52: 7188.3 | D52: 7185.63 | E52: 7114.97 | F52: 7041.63 | G52: 6970.97 | H52: 7258.97 | I52: 7329.63 | J52: 7402.97 | K52: 7256.3 | L52: 7112.3 | M52: 0.21745
A53: 43 | B53: AUROPHARMA | C53: 474 | D53: 472.32 | E53: 469.28 | F53: 464.57 | G53: 461.53 | H53: 477.03 | I53: 480.07 | J53: 484.78 | K53: 475.35 | L53: 467.6 | M53: 10.96959
A54: 44 | B54: AVANTIFEED | C54: 387.35 | D54: 386.80 | E54: 384.10 | F54: 380.85 | G54: 378.15 | H54: 390.05 | I54: 392.75 | J54: 396.00 | K54: 389.5 | L54: 383.55 | M54: 0.77112
A55: 45 | B55: DMART | C55: 3545.6 | D55: 3526.18 | E55: 3483.72 | F55: 3421.83 | G55: 3379.37 | H55: 3588.07 | I55: 3630.53 | J55: 3692.42 | K55: 3568.65 | L55: 3464.3 | M55: 2.11636
A56: 46 | B56: AXISBANK | C56: 868.3 | D56: 867.37 | E56: 862.53 | F56: 856.77 | G56: 851.93 | H56: 873.13 | I56: 877.97 | J56: 883.73 | K56: 872.2 | L56: 861.6 | M56: 73.22266
A57: 47 | B57: BASF | C57: 2212.55 | D57: 2213.52 | E57: 2192.03 | F57: 2171.52 | G57: 2150.03 | H57: 2234.03 | I57: 2255.52 | J57: 2276.03 | K57: 2235 | L57: 2193 | M57: 0.3902
A58: 48 | B58: BSE | C58: 482.75 | D58: 484.33 | E58: 478.72 | F58: 474.68 | G58: 469.07 | H58: 488.37 | I58: 493.98 | J58: 498.02 | K58: 489.95 | L58: 480.3 | M58: 3.67966
A59: 49 | B59: BAJAJ-AUTO | C59: 3905.4 | D59: 3889.10 | E59: 3866.30 | F59: 3827.20 | G59: 3804.40 | H59: 3928.20 | I59: 3951.00 | J59: 3990.10 | K59: 3911.9 | L59: 3850 | M59: 2.14072
A60: 50 | B60: BAJAJELEC | C60: 1139.1 | D60: 1149.33 | E60: 1124.77 | F60: 1110.43 | G60: 1085.87 | H60: 1163.67 | I60: 1188.23 | J60: 1202.57 | K60: 1173.9 | L60: 1135 | M60: 0.96884
A61: 51 | B61: BAJFINANCE | C61: 6489.95 | D61: 6461.08 | E61: 6426.17 | F61: 6362.38 | G61: 6327.47 | H61: 6524.87 | I61: 6559.78 | J61: 6623.57 | K61: 6496 | L61: 6397.3 | M61: 6.18979
A62: 52 | B62: BAJAJFINSV | C62: 1420.8 | D62: 1410.93 | E62: 1397.92 | F62: 1375.03 | G62: 1362.02 | H62: 1433.82 | I62: 1446.83 | J62: 1469.72 | K62: 1423.95 | L62: 1388.05 | M62: 15.18171
A63: 53 | B63: BAJAJHLDNG | C63: 6010.75 | D63: 6015.03 | E63: 5983.72 | F63: 5956.68 | G63: 5925.37 | H63: 6042.07 | I63: 6073.38 | J63: 6100.42 | K63: 6046.35 | L63: 5988 | M63: 0.17161
A64: 54 | B64: BALAMINES | C64: 2133.9 | D64: 2140.72 | E64: 2118.18 | F64: 2102.47 | G64: 2079.93 | H64: 2156.43 | I64: 2178.97 | J64: 2194.68 | K64: 2163.25 | L64: 2125 | M64: 0.31135
A65: 55 | B65: BALKRISIND | C65: 2019.65 | D65: 2006.23 | E65: 1987.47 | F65: 1955.28 | G65: 1936.52 | H65: 2038.42 | I65: 2057.18 | J65: 2089.37 | K65: 2025 | L65: 1974.05 | M65: 4.12836
A66: 56 | B66: BALRAMCHIN | C66: 369.65 | D66: 365.80 | E66: 361.20 | F66: 352.75 | G66: 348.15 | H66: 374.25 | I66: 378.85 | J66: 387.30 | K66: 370.4 | L66: 357.35 | M66: 10.40033
A67: 57 | B67: BANDHANBNK | C67: 242.3 | D67: 240.20 | E67: 237.60 | F67: 232.90 | G67: 230.30 | H67: 244.90 | I67: 247.50 | J67: 252.20 | K67: 242.8 | L67: 235.5 | M67: 71.9696
A68: 58 | B68: BANKBARODA | C68: 169.55 | D68: 169.05 | E68: 168.10 | F68: 166.65 | G68: 165.70 | H68: 170.50 | I68: 171.45 | J68: 172.90 | K68: 170 | L68: 167.6 | M68: 156.62905
A69: 59 | B69: BANKINDIA | C69: 78.2 | D69: 77.88 | E69: 77.17 | F69: 76.13 | G69: 75.42 | H69: 78.92 | I69: 79.63 | J69: 80.67 | K69: 78.6 | L69: 76.85 | M69: 55.09405
A70: 60 | B70: MAHABANK | C70: 27.25 | D70: 27.23 | E70: 26.92 | F70: 26.58 | G70: 26.27 | H70: 27.57 | I70: 27.88 | J70: 28.22 | K70: 27.55 | L70: 26.9 | M70: 80.80383
A71: 61 | B71: BATAINDIA | C71: 1475.5 | D71: 1493.00 | E71: 1446.15 | F71: 1416.80 | G71: 1369.95 | H71: 1522.35 | I71: 1569.20 | J71: 1598.55 | K71: 1539.85 | L71: 1463.65 | M71: 13.0085
A72: 62 | B72: BAYERCROP | C72: 4487 | D72: 4470.18 | E72: 4442.37 | F72: 4397.73 | G72: 4369.92 | H72: 4514.82 | I72: 4542.63 | J72: 4587.27 | K72: 4498 | L72: 4425.55 | M72: 0.06155
A73: 63 | B73: BERGEPAINT | C73: 558.65 | D73: 556.53 | E73: 553.37 | F73: 548.08 | G73: 544.92 | H73: 561.82 | I73: 564.98 | J73: 570.27 | K73: 559.7 | L73: 551.25 | M73: 3.45677
A74: 64 | B74: BDL | C74: 800.1 | D74: 797.03 | E74: 790.07 | F74: 780.03 | G74: 773.07 | H74: 807.07 | I74: 814.03 | J74: 824.07 | K74: 804 | L74: 787 | M74: 6.03867
A75: 65 | B75: BEL | C75: 94.65 | D75: 94.28 | E75: 93.77 | F75: 92.88 | G75: 92.37 | H75: 95.17 | I75: 95.68 | J75: 96.57 | K75: 94.8 | L75: 93.4 | M75: 115.75131
A76: 66 | B76: BHARATFORG | C76: 835.7 | D76: 834.78 | E76: 812.57 | F76: 789.43 | G76: 767.22 | H76: 857.92 | I76: 880.13 | J76: 903.27 | K76: 857 | L76: 811.65 | M76: 59.95432
A77: 67 | B77: BHEL | C77: 71.75 | D77: 71.20 | E77: 70.35 | F77: 68.95 | G77: 68.10 | H77: 72.60 | I77: 73.45 | J77: 74.85 | K77: 72.05 | L77: 69.8 | M77: 113.58552
A78: 68 | B78: BPCL | C78: 331.15 | D78: 330.77 | E78: 328.88 | F78: 326.62 | G78: 324.73 | H78: 333.03 | I78: 334.92 | J78: 337.18 | K78: 332.65 | L78: 328.5 | M78: 17.6465
A79: 69 | B79: BHARATRAS | C79: 8558.7 | D79: 8544.42 | E79: 8513.83 | F79: 8468.97 | G79: 8438.38 | H79: 8589.28 | I79: 8619.87 | J79: 8664.73 | K79: 8575 | L79: 8499.55 | M79: 0.00861
A80: 70 | B80: BHARTIARTL | C80: 785.4 | D80: 781.58 | E80: 776.02 | F80: 766.63 | G80: 761.07 | H80: 790.97 | I80: 796.53 | J80: 805.92 | K80: 787.15 | L80: 772.2 | M80: 36.02838
A81: 71 | B81: BIOCON | C81: 238.1 | D81: 236.05 | E81: 232.65 | F81: 227.20 | G81: 223.80 | H81: 241.50 | I81: 244.90 | J81: 250.35 | K81: 239.45 | L81: 230.6 | M81: 57.89278
A82: 72 | B82: BIRLACORPN | C82: 888.55 | D82: 888.97 | E82: 882.23 | F82: 875.92 | G82: 869.18 | H82: 895.28 | I82: 902.02 | J82: 908.33 | K82: 895.7 | L82: 882.65 | M82: 0.38788
A83: 73 | B83: BSOFT | C83: 293.05 | D83: 291.07 | E83: 286.48 | F83: 279.92 | G83: 275.33 | H83: 297.63 | I83: 302.22 | J83: 308.78 | K83: 295.65 | L83: 284.5 | M83: 15.18654
A84: 74 | B84: BLUEDART | C84: 6204.85 | D84: 6156.63 | E84: 6088.27 | F84: 5971.68 | G84: 5903.32 | H84: 6273.22 | I84: 6341.58 | J84: 6458.17 | K84: 6225 | L84: 6040.05 | M84: 0.08229
A85: 75 | B85: BLUESTARCO | C85: 1384.6 | D85: 1378.82 | E85: 1345.43 | F85: 1306.27 | G85: 1272.88 | H85: 1417.98 | I85: 1451.37 | J85: 1490.53 | K85: 1412.2 | L85: 1339.65 | M85: 0.46228
A86: 76 | B86: BBTC | C86: 918.6 | D86: 908.13 | E86: 891.47 | F86: 864.33 | G86: 847.67 | H86: 935.27 | I86: 951.93 | J86: 979.07 | K86: 924.8 | L86: 881 | M86: 0.33753
A87: 77 | B87: BORORENEW | C87: 463.4 | D87: 457.53 | E87: 442.22 | F87: 421.03 | G87: 405.72 | H87: 478.72 | I87: 494.03 | J87: 515.22 | K87: 472.85 | L87: 436.35 | M87: 6.44856
A88: 78 | B88: BOSCHLTD | C88: 17855.25 | D88: 17713.45 | E88: 17376.90 | F88: 16898.55 | G88: 16562.00 | H88: 18191.80 | I88: 18528.35 | J88: 19006.70 | K88: 18050 | L88: 17235.1 | M88: 0.70046
A89: 79 | B89: BRIGADE | C89: 489.8 | D89: 486.28 | E89: 479.57 | F89: 469.33 | G89: 462.62 | H89: 496.52 | I89: 503.23 | J89: 513.47 | K89: 493 | L89: 476.05 | M89: 0.64604
A90: 80 | B90: BCG | C90: 26.45 | D90: 25.62 | E90: 24.33 | F90: 22.22 | G90: 20.93 | H90: 27.73 | I90: 29.02 | J90: 31.13 | K90: 26.9 | L90: 23.5 | M90: 919.16617
A91: 81 | B91: BRITANNIA | C91: 4588.45 | D91: 4572.83 | E91: 4545.82 | F91: 4503.18 | G91: 4476.17 | H91: 4615.47 | I91: 4642.48 | J91: 4685.12 | K91: 4599.85 | L91: 4530.2 | M91: 1.97822
A92: 82 | B92: MAPMYINDIA | C92: 1128.45 | D92: 1119.28 | E92: 1106.07 | F92: 1083.68 | G92: 1070.47 | H92: 1141.67 | I92: 1154.88 | J92: 1177.27 | K92: 1132.5 | L92: 1096.9 | M92: 0.34433
A93: 83 | B93: CCL | C93: 535 | D93: 536.28 | E93: 529.97 | F93: 524.93 | G93: 518.62 | H93: 541.32 | I93: 547.63 | J93: 552.67 | K93: 542.6 | L93: 531.25 | M93: 0.75893
A94: 84 | B94: CESC | C94: 77.4 | D94: 76.87 | E94: 75.83 | F94: 74.27 | G94: 73.23 | H94: 78.43 | I94: 79.47 | J94: 81.03 | K94: 77.9 | L94: 75.3 | M94: 36.30258
A95: 85 | B95: CGPOWER | C95: 320.75 | D95: 324.18 | E95: 312.02 | F95: 303.28 | G95: 291.12 | H95: 332.92 | I95: 345.08 | J95: 353.82 | K95: 336.35 | L95: 315.45 | M95: 40.85177
A96: 86 | B96: CRISIL | C96: 3155.45 | D96: 3145.37 | E96: 3130.73 | F96: 3106.02 | G96: 3091.38 | H96: 3170.08 | I96: 3184.72 | J96: 3209.43 | K96: 3160 | L96: 3120.65 | M96: 0.11308
A97: 87 | B97: CSBBANK | C97: 240.3 | D97: 239.30 | E97: 237.60 | F97: 234.90 | G97: 233.20 | H97: 242.00 | I97: 243.70 | J97: 246.40 | K97: 241 | L97: 236.6 | M97: 1.13014
A98: 88 | B98: CAMPUS | C98: 386.7 | D98: 392.00 | E98: 379.25 | F98: 371.80 | G98: 359.05 | H98: 399.45 | I98: 412.20 | J98: 419.65 | K98: 404.75 | L98: 384.55 | M98: 5.13943
A99: 89 | B99: CANFINHOME | C99: 594.8 | D99: 593.93 | E99: 587.87 | F99: 580.93 | G99: 574.87 | H99: 600.87 | I99: 606.93 | J99: 613.87 | K99: 600 | L99: 587 | M99: 4.846
A100: 90 | B100: CANBK | C100: 295.9 | D100: 293.82 | E100: 290.63 | F100: 285.37 | G100: 282.18 | H100: 299.08 | I100: 302.27 | J100: 307.53 | K100: 297 | L100: 288.55 | M100: 53.82881
A101: 91 | B101: CAPLIPOINT | C101: 683.75 | D101: 687.77 | E101: 676.53 | F101: 669.32 | G101: 658.08 | H101: 694.98 | I101: 706.22 | J101: 713.43 | K101: 699 | L101: 680.55 | M101: 1.98356
A102: 92 | B102: CGCL | C102: 755.2 | D102: 751.75 | E102: 744.50 | F102: 733.80 | G102: 726.55 | H102: 762.45 | I102: 769.70 | J102: 780.40 | K102: 759 | L102: 741.05 | M102: 0.87013
A103: 93 | B103: CARBORUNIV | C103: 972.2 | D103: 976.33 | E103: 960.67 | F103: 949.13 | G103: 933.47 | H103: 987.87 | I103: 1003.53 | J103: 1015.07 | K103: 992 | L103: 964.8 | M103: 0.50011
A104: 94 | B104: CASTROLIND | C104: 119.35 | D104: 119.48 | E104: 118.27 | F104: 117.18 | G104: 115.97 | H104: 120.57 | I104: 121.78 | J104: 122.87 | K104: 120.7 | L104: 118.4 | M104: 3.23856
A105: 95 | B105: CEATLTD | C105: 1485.9 | D105: 1494.67 | E105: 1472.33 | F105: 1458.77 | G105: 1436.43 | H105: 1508.23 | I105: 1530.57 | J105: 1544.13 | K105: 1517 | L105: 1481.1 | M105: 0.7217
A106: 96 | B106: CENTRALBK | C106: 27.05 | D106: 26.98 | E106: 26.57 | F106: 26.08 | G106: 25.67 | H106: 27.47 | I106: 27.88 | J106: 28.37 | K106: 27.4 | L106: 26.5 | M106: 41.85673
A107: 97 | B107: CDSL | C107: 988.1 | D107: 988.17 | E107: 981.93 | F107: 975.77 | G107: 969.53 | H107: 994.33 | I107: 1000.57 | J107: 1006.73 | K107: 994.4 | L107: 982 | M107: 2.24981
A108: 98 | B108: CENTURYPLY | C108: 513.05 | D108: 511.88 | E108: 504.77 | F108: 496.48 | G108: 489.37 | H108: 520.17 | I108: 527.28 | J108: 535.57 | K108: 519 | L108: 503.6 | M108: 0.75483
A109: 99 | B109: CENTURYTEX | C109: 651.6 | D109: 649.57 | E109: 642.48 | F109: 633.37 | G109: 626.28 | H109: 658.68 | I109: 665.77 | J109: 674.88 | K109: 656.65 | L109: 640.45 | M109: 0.92692
A110: 100 | B110: CERA | C110: 6021.85 | D110: 5987.30 | E110: 5907.60 | F110: 5793.35 | G110: 5713.65 | H110: 6101.55 | I110: 6181.25 | J110: 6295.50 | K110: 6067 | L110: 5873.05 | M110: 0.17981
A111: 101 | B111: CHALET | C111: 364.85 | D111: 363.50 | E111: 357.55 | F111: 350.25 | G111: 344.30 | H111: 370.80 | I111: 376.75 | J111: 384.05 | K111: 369.45 | L111: 356.2 | M111: 0.5788
A112: 102 | B112: CHAMBLFERT | C112: 303.7 | D112: 302.43 | E112: 299.37 | F112: 295.03 | G112: 291.97 | H112: 306.77 | I112: 309.83 | J112: 314.17 | K112: 305.5 | L112: 298.1 | M112: 6.84286
A113: 103 | B113: CHEMPLASTS | C113: 419.35 | D113: 418.52 | E113: 413.68 | F113: 408.02 | G113: 403.18 | H113: 424.18 | I113: 429.02 | J113: 434.68 | K113: 423.35 | L113: 412.85 | M113: 12.09451
A114: 104 | B114: CHOLAHLDNG | C114: 599.85 | D114: 601.10 | E114: 595.20 | F114: 590.55 | G114: 584.65 | H114: 605.75 | I114: 611.65 | J114: 616.30 | K114: 607 | L114: 596.45 | M114: 0.38649
A115: 105 | B115: CHOLAFIN | C115: 782.65 | D115: 779.87 | E115: 774.78 | F115: 766.92 | G115: 761.83 | H115: 787.73 | I115: 792.82 | J115: 800.68 | K115: 784.95 | L115: 772 | M115: 6.57492
A116: 106 | B116: CIPLA | C116: 1030.8 | D116: 1026.78 | E116: 1020.12 | F116: 1009.43 | G116: 1002.77 | H116: 1037.47 | I116: 1044.13 | J116: 1054.82 | K116: 1033.45 | L116: 1016.1 | M116: 6.62924
A117: 107 | B117: CUB | C117: 137.85 | D117: 137.68 | E117: 135.37 | F117: 132.88 | G117: 130.57 | H117: 140.17 | I117: 142.48 | J117: 144.97 | K117: 140 | L117: 135.2 | M117: 72.90156
A118: 108 | B118: CLEAN | C118: 1445.55 | D118: 1444.82 | E118: 1430.73 | F118: 1415.92 | G118: 1401.83 | H118: 1459.63 | I118: 1473.72 | J118: 1488.53 | K118: 1458.9 | L118: 1430 | M118: 0.21623
A119: 109 | B119: COALINDIA | C119: 212.9 | D119: 212.33 | E119: 210.87 | F119: 208.83 | G119: 207.37 | H119: 214.37 | I119: 215.83 | J119: 217.87 | K119: 213.8 | L119: 210.3 | M119: 96.12884
A120: 110 | B120: COCHINSHIP | C120: 492.95 | D120: 492.35 | E120: 485.75 | F120: 478.55 | G120: 471.95 | H120: 499.55 | I120: 506.15 | J120: 513.35 | K120: 498.95 | L120: 485.15 | M120: 5.76573
A121: 111 | B121: COFORGE | C121: 4115 | D121: 4101.65 | E121: 4078.35 | F121: 4041.70 | G121: 4018.40 | H121: 4138.30 | I121: 4161.60 | J121: 4198.25 | K121: 4124.95 | L121: 4065 | M121: 3.74514
A122: 112 | B122: COLPAL | C122: 1458.65 | D122: 1452.27 | E122: 1444.38 | F122: 1430.12 | G122: 1422.23 | H122: 1466.53 | I122: 1474.42 | J122: 1488.68 | K122: 1460.15 | L122: 1438 | M122: 1.10458
A123: 113 | B123: CAMS | C123: 2289.8 | D123: 2279.72 | E123: 2253.43 | F123: 2217.07 | G123: 2190.78 | H123: 2316.08 | I123: 2342.37 | J123: 2378.73 | K123: 2306 | L123: 2243.35 | M123: 0.83217
A124: 114 | B124: CONCOR | C124: 621.25 | D124: 620.17 | E124: 616.43 | F124: 611.62 | G124: 607.88 | H124: 624.98 | I124: 628.72 | J124: 633.53 | K124: 623.9 | L124: 615.35 | M124: 9.04807
A125: 115 | B125: COROMANDEL | C125: 912.95 | D125: 911.25 | E125: 904.75 | F125: 896.55 | G125: 890.05 | H125: 919.45 | I125: 925.95 | J125: 934.15 | K125: 917.75 | L125: 903.05 | M125: 1.97364
A126: 116 | B126: CREDITACC | C126: 931.1 | D126: 921.92 | E126: 907.83 | F126: 884.57 | G126: 870.48 | H126: 945.18 | I126: 959.27 | J126: 982.53 | K126: 936 | L126: 898.65 | M126: 0.4057
A127: 117 | B127: CROMPTON | C127: 305.05 | D127: 302.62 | E127: 298.93 | F127: 292.82 | G127: 289.13 | H127: 308.73 | I127: 312.42 | J127: 318.53 | K127: 306.3 | L127: 296.5 | M127: 20.52305
A128: 118 | B128: CUMMINSIND | C128: 1628.8 | D128: 1617.95 | E128: 1602.90 | F128: 1577.00 | G128: 1561.95 | H128: 1643.85 | I128: 1658.90 | J128: 1684.80 | K128: 1633 | L128: 1592.05 | M128: 6.10762
A129: 119 | B129: CYIENT | C129: 917.05 | D129: 922.58 | E129: 903.17 | F129: 889.28 | G129: 869.87 | H129: 936.47 | I129: 955.88 | J129: 969.77 | K129: 942 | L129: 908.7 | M129: 2.27633
A130: 120 | B130: DCMSHRIRAM | C130: 862.75 | D130: 858.57 | E130: 852.13 | F130: 841.52 | G130: 835.08 | H130: 869.18 | I130: 875.62 | J130: 886.23 | K130: 865 | L130: 847.95 | M130: 0.15021
A131: 121 | B131: DLF | C131: 361 | D131: 357.77 | E131: 353.43 | F131: 345.87 | G131: 341.53 | H131: 365.33 | I131: 369.67 | J131: 377.23 | K131: 362.1 | L131: 350.2 | M131: 25.48073
A132: 122 | B132: DABUR | C132: 534.85 | D132: 531.78 | E132: 527.07 | F132: 519.28 | G132: 514.57 | H132: 539.57 | I132: 544.28 | J132: 552.07 | K132: 536.5 | L132: 524 | M132: 15.30576
A133: 123 | B133: DALBHARAT | C133: 1920.35 | D133: 1911.35 | E133: 1895.00 | F133: 1869.65 | G133: 1853.30 | H133: 1936.70 | I133: 1953.05 | J133: 1978.40 | K133: 1927.7 | L133: 1886 | M133: 2.08282
A134: 124 | B134: DEEPAKFERT | C134: 613.75 | D134: 615.32 | E134: 609.98 | F134: 606.22 | G134: 600.88 | H134: 619.08 | I134: 624.42 | J134: 628.18 | K134: 620.65 | L134: 611.55 | M134: 2.25907
A135: 125 | B135: DEEPAKNTR | C135: 1797.95 | D135: 1785.32 | E135: 1761.63 | F135: 1725.32 | G135: 1701.63 | H135: 1821.63 | I135: 1845.32 | J135: 1881.63 | K135: 1809 | L135: 1749 | M135: 4.46448
A136: 126 | B136: DELHIVERY | C136: 319.9 | D136: 319.70 | E136: 316.90 | F136: 313.90 | G136: 311.10 | H136: 322.70 | I136: 325.50 | J136: 328.50 | K136: 322.5 | L136: 316.7 | M136: 5.98595
A137: 127 | B137: DELTACORP | C137: 203.6 | D137: 203.03 | E137: 201.62 | F137: 199.63 | G137: 198.22 | H137: 205.02 | I137: 206.43 | J137: 208.42 | K137: 204.45 | L137: 201.05 | M137: 13.26636
A138: 128 | B138: DEVYANI | C138: 153.05 | D138: 152.97 | E138: 152.08 | F138: 151.12 | G138: 150.23 | H138: 153.93 | I138: 154.82 | J138: 155.78 | K138: 153.85 | L138: 152 | M138: 10.45567
A139: 129 | B139: DHANI | C139: 33.35 | D139: 33.33 | E139: 32.87 | F139: 32.38 | G139: 31.92 | H139: 33.82 | I139: 34.28 | J139: 34.77 | K139: 33.8 | L139: 32.85 | M139: 16.15766
A140: 130 | B140: DBL | C140: 209.65 | D140: 210.32 | E140: 208.28 | F140: 206.92 | G140: 204.88 | H140: 211.68 | I140: 213.72 | J140: 215.08 | K140: 212.35 | L140: 208.95 | M140: 1.15519
A141: 131 | B141: DIVISLAB | C141: 2822.55 | D141: 2807.13 | E141: 2787.42 | F141: 2752.28 | G141: 2732.57 | H141: 2842.27 | I141: 2861.98 | J141: 2897.12 | K141: 2826.85 | L141: 2772 | M141: 2.14098
A142: 132 | B142: DIXON | C142: 2701.55 | D142: 2690.42 | E142: 2662.33 | F142: 2623.12 | G142: 2595.03 | H142: 2729.63 | I142: 2757.72 | J142: 2796.93 | K142: 2718.5 | L142: 2651.2 | M142: 2.26606
A143: 133 | B143: LALPATHLAB | C143: 1964.45 | D143: 1970.50 | E143: 1951.00 | F143: 1937.55 | G143: 1918.05 | H143: 1983.95 | I143: 2003.45 | J143: 2016.90 | K143: 1990 | L143: 1957.05 | M143: 0.79626
A144: 134 | B144: DRREDDY | C144: 4519.85 | D144: 4529.08 | E144: 4494.97 | F144: 4470.08 | G144: 4435.97 | H144: 4553.97 | I144: 4588.08 | J144: 4612.97 | K144: 4563.2 | L144: 4504.2 | M144: 2.56737
A145: 135 | B145: EIDPARRY | C145: 522.1 | D145: 520.08 | E145: 513.67 | F145: 505.23 | G145: 498.82 | H145: 528.52 | I145: 534.93 | J145: 543.37 | K145: 526.5 | L145: 511.65 | M145: 2.0389
A146: 136 | B146: EIHOTEL | C146: 164.6 | D146: 164.37 | E146: 162.73 | F146: 160.87 | G146: 159.23 | H146: 166.23 | I146: 167.87 | J146: 169.73 | K146: 166 | L146: 162.5 | M146: 1.98124
A147: 137 | B147: EPL | C147: 157.05 | D147: 155.98 | E147: 153.97 | F147: 150.88 | G147: 148.87 | H147: 159.07 | I147: 161.08 | J147: 164.17 | K147: 158 | L147: 152.9 | M147: 2.4696
A148: 138 | B148: EASEMYTRIP | C148: 49.6 | D148: 49.92 | E148: 48.88 | F148: 48.17 | G148: 47.13 | H148: 50.63 | I148: 51.67 | J148: 52.38 | K148: 50.95 | L148: 49.2 | M148: 147.13323
A149: 139 | B149: EDELWEISS | C149: 65.2 | D149: 65.12 | E149: 64.63 | F149: 64.07 | G149: 63.58 | H149: 65.68 | I149: 66.17 | J149: 66.73 | K149: 65.6 | L149: 64.55 | M149: 4.35792
A150: 140 | B150: EICHERMOT | C150: 3311.15 | D150: 3285.37 | E150: 3228.78 | F150: 3146.42 | G150: 3089.83 | H150: 3367.73 | I150: 3424.32 | J150: 3506.68 | K150: 3341.95 | L150: 3203 | M150: 20.93492
A151: 141 | B151: ELGIEQUIP | C151: 441.8 | D151: 444.42 | E151: 432.43 | F151: 423.07 | G151: 411.08 | H151: 453.78 | I151: 465.77 | J151: 475.13 | K151: 456.4 | L151: 435.05 | M151: 2.86883
A152: 142 | B152: EMAMILTD | C152: 389.65 | D152: 392.68 | E152: 383.97 | F152: 378.28 | G152: 369.57 | H152: 398.37 | I152: 407.08 | J152: 412.77 | K152: 401.4 | L152: 387 | M152: 6.02105
A153: 143 | B153: ENDURANCE | C153: 1348.15 | D153: 1347.98 | E153: 1327.97 | F153: 1307.78 | G153: 1287.77 | H153: 1368.17 | I153: 1388.18 | J153: 1408.37 | K153: 1368 | L153: 1327.8 | M153: 0.20925
A154: 144 | B154: ENGINERSIN | C154: 76.4 | D154: 76.70 | E154: 75.50 | F154: 74.60 | G154: 73.40 | H154: 77.60 | I154: 78.80 | J154: 79.70 | K154: 77.9 | L154: 75.8 | M154: 11.25409
A155: 145 | B155: EQUITASBNK | C155: 58.8 | D155: 58.87 | E155: 58.23 | F155: 57.67 | G155: 57.03 | H155: 59.43 | I155: 60.07 | J155: 60.63 | K155: 59.5 | L155: 58.3 | M155: 15.27229
A156: 146 | B156: ESCORTS | C156: 2043.65 | D156: 2036.53 | E156: 1998.27 | F156: 1952.88 | G156: 1914.62 | H156: 2081.92 | I156: 2120.18 | J156: 2165.57 | K156: 2074.8 | L156: 1991.15 | M156: 4.46114
A157: 147 | B157: EXIDEIND | C157: 181.4 | D157: 181.23 | E157: 179.62 | F157: 177.83 | G157: 176.22 | H157: 183.02 | I157: 184.63 | J157: 186.42 | K157: 182.85 | L157: 179.45 | M157: 11.91296
A158: 148 | B158: FDC | C158: 266.7 | D158: 265.42 | E158: 263.23 | F158: 259.77 | G158: 257.58 | H158: 268.88 | I158: 271.07 | J158: 274.53 | K158: 267.6 | L158: 261.95 | M158: 0.43971
A159: 149 | B159: NYKAA | C159: 142.95 | D159: 142.98 | E159: 140.27 | F159: 137.58 | G159: 134.87 | H159: 145.67 | I159: 148.38 | J159: 151.07 | K159: 145.7 | L159: 140.3 | M159: 54.8981
A160: 150 | B160: FEDERALBNK | C160: 129.65 | D160: 129.52 | E160: 128.68 | F160: 127.72 | G160: 126.88 | H160: 130.48 | I160: 131.32 | J160: 132.28 | K160: 130.35 | L160: 128.55 | M160: 62.66944
A161: 151 | B161: FACT | C161: 253.8 | D161: 255.88 | E161: 249.92 | F161: 246.03 | G161: 240.07 | H161: 259.77 | I161: 265.73 | J161: 269.62 | K161: 261.85 | L161: 252 | M161: 6.81766
A162: 152 | B162: FINEORG | C162: 4775.8 | D162: 4691.60 | E162: 4584.20 | F162: 4392.60 | G162: 4285.20 | H162: 4883.20 | I162: 4990.60 | J162: 5182.20 | K162: 4799 | L162: 4500 | M162: 2.20687
A163: 153 | B163: FINCABLES | C163: 671.6 | D163: 659.87 | E163: 619.73 | F163: 567.87 | G163: 527.73 | H163: 711.73 | I163: 751.87 | J163: 803.73 | K163: 700 | L163: 608 | M163: 39.84807
A164: 154 | B164: FINPIPE | C164: 179 | D164: 180.03 | E164: 176.57 | F164: 174.13 | G164: 170.67 | H164: 182.47 | I164: 185.93 | J164: 188.37 | K164: 183.5 | L164: 177.6 | M164: 7.80689
A165: 155 | B165: FSL | C165: 119.7 | D165: 119.17 | E165: 117.83 | F165: 115.97 | G165: 114.63 | H165: 121.03 | I165: 122.37 | J165: 124.23 | K165: 120.5 | L165: 117.3 | M165: 18.60957
A166: 156 | B166: FORTIS | C166: 269.7 | D166: 270.32 | E166: 266.63 | F166: 263.57 | G166: 259.88 | H166: 273.38 | I166: 277.07 | J166: 280.13 | K166: 274 | L166: 267.25 | M166: 6.66229
A167: 157 | B167: GRINFRA | C167: 1182.35 | D167: 1191.85 | E167: 1157.50 | F167: 1132.65 | G167: 1098.30 | H167: 1216.70 | I167: 1251.05 | J167: 1275.90 | K167: 1226.2 | L167: 1167 | M167: 0.42213
A168: 158 | B168: GAIL | C168: 95.3 | D168: 95.15 | E168: 94.65 | F168: 94.00 | G168: 93.50 | H168: 95.80 | I168: 96.30 | J168: 96.95 | K168: 95.65 | L168: 94.5 | M168: 68.87911
A169: 159 | B169: GMMPFAUDLR | C169: 1559.15 | D169: 1556.47 | E169: 1547.43 | F169: 1535.72 | G169: 1526.68 | H169: 1568.18 | I169: 1577.22 | J169: 1588.93 | K169: 1565.5 | L169: 1544.75 | M169: 0.49261
A170: 160 | B170: GMRINFRA | C170: 38.4 | D170: 38.53 | E170: 37.97 | F170: 37.53 | G170: 36.97 | H170: 38.97 | I170: 39.53 | J170: 39.97 | K170: 39.1 | L170: 38.1 | M170: 101.37218
A171: 161 | B171: GALAXYSURF | C171: 2448.1 | D171: 2435.75 | E171: 2413.35 | F171: 2378.60 | G171: 2356.20 | H171: 2470.50 | I171: 2492.90 | J171: 2527.65 | K171: 2458.15 | L171: 2401 | M171: 0.30352
A172: 162 | B172: GARFIBRES | C172: 2852.5 | D172: 2830.07 | E172: 2785.23 | F172: 2717.97 | G172: 2673.13 | H172: 2897.33 | I172: 2942.17 | J172: 3009.43 | K172: 2874.9 | L172: 2762.8 | M172: 0.09557
A173: 163 | B173: GICRE | C173: 156.75 | D173: 152.73 | E173: 145.87 | F173: 134.98 | G173: 128.12 | H173: 163.62 | I173: 170.48 | J173: 181.37 | K173: 159.6 | L173: 141.85 | M173: 86.63271
A174: 164 | B174: GLAND | C174: 1339.4 | D174: 1343.30 | E174: 1318.60 | F174: 1297.80 | G174: 1273.10 | H174: 1364.10 | I174: 1388.80 | J174: 1409.60 | K174: 1368 | L174: 1322.5 | M174: 2.48705
A175: 165 | B175: GLAXO | C175: 1249.75 | D175: 1249.67 | E175: 1235.33 | F175: 1220.92 | G175: 1206.58 | H175: 1264.08 | I175: 1278.42 | J175: 1292.83 | K175: 1264 | L175: 1235.25 | M175: 0.66489
A176: 166 | B176: GLENMARK | C176: 429.65 | D176: 425.22 | E176: 419.88 | F176: 410.12 | G176: 404.78 | H176: 434.98 | I176: 440.32 | J176: 450.08 | K176: 430.55 | L176: 415.45 | M176: 19.70563
A177: 167 | B177: GOCOLORS | C177: 989.2 | D177: 998.72 | E177: 973.43 | F177: 957.67 | G177: 932.38 | H177: 1014.48 | I177: 1039.77 | J177: 1055.53 | K177: 1024 | L177: 982.95 | M177: 0.26449
A178: 168 | B178: GODFRYPHLP | C178: 1762.95 | D178: 1736.82 | E178: 1701.13 | F178: 1639.32 | G178: 1603.63 | H178: 1798.63 | I178: 1834.32 | J178: 1896.13 | K178: 1772.5 | L178: 1675 | M178: 1.66334
A179: 169 | B179: GODREJAGRO | C179: 444.7 | D179: 445.92 | E179: 441.83 | F179: 438.97 | G179: 434.88 | H179: 448.78 | I179: 452.87 | J179: 455.73 | K179: 450 | L179: 443.05 | M179: 0.54585
A180: 170 | B180: GODREJCP | C180: 935.5 | D180: 932.50 | E180: 927.15 | F180: 918.80 | G180: 913.45 | H180: 940.85 | I180: 946.20 | J180: 954.55 | K180: 937.85 | L180: 924.15 | M180: 5.64718
A181: 171 | B181: GODREJIND | C181: 424 | D181: 423.43 | E181: 421.17 | F181: 418.33 | G181: 416.07 | H181: 426.27 | I181: 428.53 | J181: 431.37 | K181: 425.7 | L181: 420.6 | M181: 1.52745
A182: 172 | B182: GODREJPROP | C182: 1170.55 | D182: 1162.30 | E182: 1151.35 | F182: 1132.15 | G182: 1121.20 | H182: 1181.50 | I182: 1192.45 | J182: 1211.65 | K182: 1173.25 | L182: 1143.1 | M182: 5.77077
A183: 173 | B183: GRANULES | C183: 290.25 | D183: 288.92 | E183: 286.88 | F183: 283.52 | G183: 281.48 | H183: 292.28 | I183: 294.32 | J183: 297.68 | K183: 290.95 | L183: 285.55 | M183: 3.98051
A184: 174 | B184: GRAPHITE | C184: 317.15 | D184: 318.48 | E184: 314.17 | F184: 311.18 | G184: 306.87 | H184: 321.47 | I184: 325.78 | J184: 328.77 | K184: 322.8 | L184: 315.5 | M184: 4.12352
A185: 175 | B185: GRASIM | C185: 1626.15 | D185: 1621.43 | E185: 1602.87 | F185: 1579.58 | G185: 1561.02 | H185: 1644.72 | I185: 1663.28 | J185: 1686.57 | K185: 1640 | L185: 1598.15 | M185: 6.41985
A186: 176 | B186: GESHIP | C186: 568.45 | D186: 567.68 | E186: 558.52 | F186: 548.58 | G186: 539.42 | H186: 577.62 | I186: 586.78 | J186: 596.72 | K186: 576.85 | L186: 557.75 | M186: 3.04445
A187: 177 | B187: GREENPANEL | C187: 292.3 | D187: 291.03 | E187: 284.27 | F187: 276.23 | G187: 269.47 | H187: 299.07 | I187: 305.83 | J187: 313.87 | K187: 297.8 | L187: 283 | M187: 2.96599
A188: 178 | B188: GRINDWELL | C188: 1966.5 | D188: 1962.03 | E188: 1930.47 | F188: 1894.43 | G188: 1862.87 | H188: 1998.07 | I188: 2029.63 | J188: 2065.67 | K188: 1993.6 | L188: 1926 | M188: 0.44263
A189: 179 | B189: GUJALKALI | C189: 643.75 | D189: 644.92 | E189: 638.83 | F189: 633.92 | G189: 627.83 | H189: 649.83 | I189: 655.92 | J189: 660.83 | K189: 651 | L189: 640 | M189: 0.40543
A190: 180 | B190: GAEL | C190: 226.35 | D190: 227.38 | E190: 224.52 | F190: 222.68 | G190: 219.82 | H190: 229.22 | I190: 232.08 | J190: 233.92 | K190: 230.25 | L190: 225.55 | M190: 1.81937
A191: 181 | B191: FLUOROCHEM | C191: 2859 | D191: 2863.40 | E191: 2838.10 | F191: 2817.20 | G191: 2791.90 | H191: 2884.30 | I191: 2909.60 | J191: 2930.50 | K191: 2888.7 | L191: 2842.5 | M191: 0.78685
A192: 182 | B192: GUJGASLTD | C192: 483.25 | D192: 480.82 | E192: 474.93 | F192: 466.62 | G192: 460.73 | H192: 489.13 | I192: 495.02 | J192: 503.33 | K192: 486.7 | L192: 472.5 | M192: 8.63643
A193: 183 | B193: GNFC | C193: 535.85 | D193: 533.78 | E193: 529.57 | F193: 523.28 | G193: 519.07 | H193: 540.07 | I193: 544.28 | J193: 550.57 | K193: 538 | L193: 527.5 | M193: 4.19138
A194: 184 | B194: GPPL | C194: 98.45 | D194: 97.98 | E194: 96.02 | F194: 93.58 | G194: 91.62 | H194: 100.42 | I194: 102.38 | J194: 104.82 | K194: 99.95 | L194: 95.55 | M194: 18.81494
A195: 185 | B195: GSFC | C195: 128.1 | D195: 127.83 | E195: 126.37 | F195: 124.63 | G195: 123.17 | H195: 129.57 | I195: 131.03 | J195: 132.77 | K195: 129.3 | L195: 126.1 | M195: 12.74776
A196: 186 | B196: GSPL | C196: 269.45 | D196: 271.55 | E196: 263.50 | F196: 257.55 | G196: 249.50 | H196: 277.50 | I196: 285.55 | J196: 291.50 | K196: 279.6 | L196: 265.6 | M196: 10.14406
A197: 187 | B197: HEG | C197: 997.85 | D197: 992.20 | E197: 980.65 | F197: 963.45 | G197: 951.90 | H197: 1009.40 | I197: 1020.95 | J197: 1038.15 | K197: 1003.75 | L197: 975 | M197: 0.99605
A198: 188 | B198: HCLTECH | C198: 1132.9 | D198: 1129.03 | E198: 1123.47 | F198: 1114.03 | G198: 1108.47 | H198: 1138.47 | I198: 1144.03 | J198: 1153.47 | K198: 1134.6 | L198: 1119.6 | M198: 16.48954
A199: 189 | B199: HDFCAMC | C199: 1903.25 | D199: 1897.73 | E199: 1887.52 | F199: 1871.78 | G199: 1861.57 | H199: 1913.47 | I199: 1923.68 | J199: 1939.42 | K199: 1907.95 | L199: 1882 | M199: 0.89727
A200: 190 | B200: HDFCBANK | C200: 1670.3 | D200: 1668.35 | E200: 1658.70 | F200: 1647.10 | G200: 1637.45 | H200: 1679.95 | I200: 1689.60 | J200: 1701.20 | K200: 1678 | L200: 1656.75 | M200: 57.19356
A201: 191 | B201: HDFCLIFE | C201: 519.1 | D201: 516.25 | E201: 512.50 | F201: 505.90 | G201: 502.15 | H201: 522.85 | I201: 526.60 | J201: 533.20 | K201: 520 | L201: 509.65 | M201: 24.97424
A202: 192 | B202: HFCL | C202: 68.8 | D202: 68.67 | E202: 67.83 | F202: 66.87 | G202: 66.03 | H202: 69.63 | I202: 70.47 | J202: 71.43 | K202: 69.5 | L202: 67.7 | M202: 38.26674
A203: 193 | B203: HLEGLAS | C203: 554.75 | D203: 553.83 | E203: 549.07 | F203: 543.38 | G203: 538.62 | H203: 559.52 | I203: 564.28 | J203: 569.97 | K203: 558.6 | L203: 548.15 | M203: 0.16876
A204: 194 | B204: HAPPSTMNDS | C204: 835.7 | D204: 834.93 | E204: 830.92 | F204: 826.13 | G204: 822.12 | H204: 839.72 | I204: 843.73 | J204: 848.52 | K204: 838.95 | L204: 830.15 | M204: 1.05141
A205: 195 | B205: HATSUN | C205: 884.5 | D205: 883.25 | E205: 878.75 | F205: 873.00 | G205: 868.50 | H205: 889.00 | I205: 893.50 | J205: 899.25 | K205: 887.75 | L205: 877.5 | M205: 0.0581
A206: 196 | B206: HAVELLS | C206: 1218.15 | D206: 1209.97 | E206: 1198.18 | F206: 1178.22 | G206: 1166.43 | H206: 1229.93 | I206: 1241.72 | J206: 1261.68 | K206: 1221.75 | L206: 1190 | M206: 7.28523
... 320 more rows

Sheet Bulk Deals
E6: Back To Main Page
A7: Subject : | B7: BULK DEAL | D7: =Main!B10 -> 2023-02-16
A9: Date | B9: Scrip code | C9: Scrip Name | D9: Client Name | E9: Buy / Sell | F9: Quantity Traded | G9: Trade Price / Wt.Avg.trade price | H9: Exchange
A10: 2023-02-15 | B10: 513513 | C10: ADITYA | D10: ZODINGLIANA CHHAKCHHUAK | E10: BUY | F10: 31,345 | G10: 10.45 | H10: BSE
A11: 2023-02-15 | B11: 539773 | C11: ADVIKCA | D11: AKSHAY RAJENDRABHAI OSWAL | E11: BUY | F11: 1,978,936 | G11: 4.43 | H11: BSE
A12: 2023-02-15 | B12: 539773 | C12: ADVIKCA | D12: AKSHAY RAJENDRABHAI OSWAL | E12: SELL | F12: 1,954,181 | G12: 4.24 | H12: BSE
A13: 2023-02-15 | B13: 537492 | C13: AGRIMONY | D13: ALPHA LEON ENTERPRISES LLP | E13: SELL | F13: 70,000 | G13: 6.57 | H13: BSE
A14: 2023-02-15 | B14: 537492 | C14: AGRIMONY | D14: SIKINDARSHAIK | E14: BUY | F14: 70,000 | G14: 6.57 | H14: BSE
A15: 2023-02-15 | B15: 539546 | C15: BNL | D15: TEAM INDIA MANAGERS LTD | E15: SELL | F15: 44,978 | G15: 64.83 | H15: BSE
A16: 2023-02-15 | B16: 522231 | C16: CONART | D16: SACHIN SURYAKANT SHAH | E16: BUY | F16: 24,822 | G16: 44.87 | H16: BSE
A17: 2023-02-15 | B17: 522231 | C17: CONART | D17: SACHIN SURYAKANT SHAH | E17: SELL | F17: 3,506 | G17: 45.12 | H17: BSE
A18: 2023-02-15 | B18: 540204 | C18: EIKO | D18: KABRA LAXMIKANT RAMPRASAD HUF | E18: BUY | F18: 51,552 | G18: 68.35 | H18: BSE
A19: 2023-02-15 | B19: 538568 | C19: FRUTION | D19: NISHANT INBUILD LIMITED | E19: BUY | F19: 27,000 | G19: 36.2 | H19: BSE
A20: 2023-02-15 | B20: 538568 | C20: FRUTION | D20: SUBHLAXMI INVESTMENT ADVISORY PRIVATE LIMITED | E20: SELL | F20: 35,000 | G20: 36.18 | H20: BSE
A21: 2023-02-15 | B21: 512493 | C21: GARNETINT | D21: MANGAL SAVITRI BIZCON PRIVATE LIMITED | E21: BUY | F21: 900 | G21: 58.12 | H21: BSE
A22: 2023-02-15 | B22: 512493 | C22: GARNETINT | D22: KOPPURAVURI NAGA VENKATA SHYAM ANIRUDH | E22: BUY | F22: 126,000 | G22: 59.6 | H22: BSE
A23: 2023-02-15 | B23: 512493 | C23: GARNETINT | D23: MANGAL SAVITRI BIZCON PRIVATE LIMITED | E23: SELL | F23: 126,801 | G23: 59.6 | H23: BSE
A24: 2023-02-15 | B24: 543372 | C24: GETALONG | D24: NIKHIL JAIN | E24: BUY | F24: 10,000 | G24: 89.32 | H24: BSE
A25: 2023-02-15 | B25: 530663 | C25: GOYALASS | D25: SOMASUNDARAM KIRUTHIGAN LOKESH | E25: SELL | F25: 285,000 | G25: 2.38 | H25: BSE
A26: 2023-02-15 | B26: 530663 | C26: GOYALASS | D26: ANKURGULATI | E26: BUY | F26: 259,000 | G26: 2.38 | H26: BSE
A27: 2023-02-15 | B27: 530663 | C27: GOYALASS | D27: SMITA AGRAWAL | E27: BUY | F27: 267,900 | G27: 2.38 | H27: BSE
A28: 2023-02-15 | B28: 530663 | C28: GOYALASS | D28: USHAGULATI | E28: BUY | F28: 300,000 | G28: 2.31 | H28: BSE
A29: 2023-02-15 | B29: 530663 | C29: GOYALASS | D29: MISTERKAPOORKESHRI | E29: BUY | F29: 310,001 | G29: 2.2 | H29: BSE
A30: 2023-02-15 | B30: 530663 | C30: GOYALASS | D30: SMITA AGRAWAL | E30: SELL | F30: 364,000 | G30: 2.18 | H30: BSE
A31: 2023-02-15 | B31: 524458 | C31: INDOEURO | D31: DINKAR SONU SONAR | E31: SELL | F31: 89,000 | G31: 22.28 | H31: BSE
A32: 2023-02-15 | B32: 524458 | C32: INDOEURO | D32: SATISH TUKARAM PAWAR | E32: BUY | F32: 89,000 | G32: 22.28 | H32: BSE
A33: 2023-02-15 | B33: 538794 | C33: JETINFRA | D33: RAJUL SHAH | E33: SELL | F33: 14,000 | G33: 52.89 | H33: BSE
A34: 2023-02-15 | B34: 538794 | C34: JETINFRA | D34: NEELAM JILESH CHHEDA | E34: BUY | F34: 16,000 | G34: 52.68 | H34: BSE
A35: 2023-02-15 | B35: 543286 | C35: JETMALL | D35: AMARNATH FULCHAND SHARMA | E35: BUY | F35: 36,000 | G35: 21.83 | H35: BSE
A36: 2023-02-15 | B36: 540696 | C36: KCDGROUP | D36: TANGO COMMOSALES LLP | E36: SELL | F36: 11,820 | G36: 116.6 | H36: BSE
A37: 2023-02-15 | B37: 507474 | C37: KFBL | D37: DEEPINDER SINGH POONIAN | E37: SELL | F37: 126,715 | G37: 44.33 | H37: BSE
A38: 2023-02-15 | B38: 543624 | C38: MAAGHADV | D38: DHARMESH MALDEVBHAI GODHANIA | E38: BUY | F38: 32,000 | G38: 29.75 | H38: BSE
A39: 2023-02-15 | B39: 543624 | C39: MAAGHADV | D39: ANKIT DILIPKUMAR KAPATEL | E39: SELL | F39: 32,000 | G39: 29.75 | H39: BSE
A40: 2023-02-15 | B40: 541337 | C40: MILEFUR | D40: BP EQUITIES PVT. LTD. | E40: BUY | F40: 42,000 | G40: 8.09 | H40: BSE
A41: 2023-02-15 | B41: 541337 | C41: MILEFUR | D41: BP EQUITIES PVT. LTD. | E41: SELL | F41: 51,000 | G41: 8.09 | H41: BSE
A42: 2023-02-15 | B42: 541337 | C42: MILEFUR | D42: PRADEEP GARG | E42: BUY | F42: 105,000 | G42: 8.09 | H42: BSE
A43: 2023-02-15 | B43: 541337 | C43: MILEFUR | D43: SUSHIL KUMAR JAIN | E43: BUY | F43: 51,000 | G43: 8 | H43: BSE
A44: 2023-02-15 | B44: 541337 | C44: MILEFUR | D44: POOJA PANKAJ JAGTAP | E44: BUY | F44: 48,000 | G44: 8.07 | H44: BSE
A45: 2023-02-15 | B45: 541337 | C45: MILEFUR | D45: VIVEK KUMAR BHAUKA | E45: SELL | F45: 66,000 | G45: 8.01 | H45: BSE
A46: 2023-02-15 | B46: 541337 | C46: MILEFUR | D46: ABHINAVGOSWAMI | E46: BUY | F46: 30,000 | G46: 7.81 | H46: BSE
A47: 2023-02-15 | B47: 541337 | C47: MILEFUR | D47: ABHINAVGOSWAMI | E47: SELL | F47: 471,000 | G47: 8.05 | H47: BSE
A48: 2023-02-15 | B48: 530589 | C48: PRIMAPLA | D48: SEETHA KUMARI | E48: BUY | F48: 98,128 | G48: 109.35 | H48: BSE
A49: 2023-02-15 | B49: 536659 | C49: PVVINFRA | D49: DHIRAJSHESHMALJAIN | E49: BUY | F49: 7,825 | G49: 13.9 | H49: BSE
A50: 2023-02-15 | B50: 536659 | C50: PVVINFRA | D50: DHIRAJSHESHMALJAIN | E50: SELL | F50: 69,325 | G50: 14.61 | H50: BSE
A51: 2023-02-15 | B51: 543171 | C51: ROJL | D51: ZENAB AIYUB YACOOBALI | E51: SELL | F51: 18,443 | G51: 37.58 | H51: BSE
A52: 2023-02-15 | B52: 543171 | C52: ROJL | D52: YACOOBALI AIYUB MOHAMMED | E52: SELL | F52: 18,834 | G52: 37.65 | H52: BSE
A53: 2023-02-15 | B53: 543171 | C53: ROJL | D53: YACOOBALI AIYUB MOHAMMED | E53: BUY | F53: 115,281 | G53: 36.87 | H53: BSE
A54: 2023-02-15 | B54: 543171 | C54: ROJL | D54: ZENAB AIYUB YACOOBALI | E54: BUY | F54: 120,998 | G54: 34.26 | H54: BSE
A55: 2023-02-15 | B55: 540147 | C55: SHASHIJIT | D55: SOHITSINGH | E55: SELL | F55: 56,155 | G55: 33.02 | H55: BSE
A56: 2023-02-15 | B56: 538975 | C56: SHREESEC | D56: PLENTY NIRYAT PRIVATE LIMITED | E56: SELL | F56: 606,985 | G56: 19.84 | H56: BSE
A57: 2023-02-15 | B57: 538923 | C57: SOFCOM | D57: RITESH JITENDRA VASNAWALA | E57: BUY | F57: 51,200 | G57: 92.65 | H57: BSE
A58: 2023-02-15 | B58: 539041 | C58: SVPHOUSING | D58: ATUL SALUJA HUF | E58: BUY | F58: 60,000 | G58: 41.55 | H58: BSE
A59: 2023-02-15 | B59: 539041 | C59: SVPHOUSING | D59: ANISHA FINCAP CONSULTANTS LLP | E59: SELL | F59: 100,000 | G59: 41.56 | H59: BSE
A60: 2023-02-15 | B60: 521005 | C60: TITANIN | D60: BP EQUITIES PVT. LTD. | E60: BUY | F60: 16,600 | G60: 64.05 | H60: BSE
A61: 2023-02-15 | B61: 521005 | C61: TITANIN | D61: BP EQUITIES PVT. LTD. | E61: SELL | F61: 14,884 | G61: 63.89 | H61: BSE
A62: 2023-02-15 | B62: 521005 | C62: TITANIN | D62: BRIJESH JITENDRA PAREKH | E62: BUY | F62: 15,000 | G62: 64.02 | H62: BSE
A63: 2023-02-15 | B63: 521005 | C63: TITANIN | D63: TILOK AGARWAL | E63: SELL | F63: 20,000 | G63: 64.05 | H63: BSE
A64: 2023-02-15 | B64: 521005 | C64: TITANIN | D64: CHENNA KRISHNAIAH ANNALURU | E64: SELL | F64: 17,724 | G64: 64.04 | H64: BSE
A65: 2023-02-15 | B65: 521005 | C65: TITANIN | D65: CHENNA KRISHNAIAH ANNALURU | E65: BUY | F65: 18,812 | G65: 63.04 | H65: BSE
A66: 2023-02-15 | B66: 541228 | C66: TRL | D66: ARIJIT MUKHERJEE | E66: BUY | F66: 56,000 | G66: 100.35 | H66: BSE
A67: 2023-02-15 | B67: 541228 | C67: TRL | D67: MULTIPLIER SHARE & STOCK ADVISORS PRIVATE LIMITED | E67: SELL | F67: 56,000 | G67: 99.38 | H67: BSE
A68: 2023-02-15 | B68: 541228 | C68: TRL | D68: MULTIPLIER SHARE & STOCK ADVISORS PRIVATE LIMITED | E68: BUY | F68: 56,000 | G68: 99.35 | H68: BSE
A69: 2023-02-15 | B69: 531025 | C69: VISAGAR | D69: JAVEDBEG BABUBEG MIRZA | E69: BUY | F69: 646,585 | G69: 1.27 | H69: BSE
A70: 2023-02-15 | B70: 531025 | C70: VISAGAR | D70: ABDUL SOHAIL | E70: BUY | F70: 850,000 | G70: 1.27 | H70: BSE
A71: 2023-02-15 | B71: 531025 | C71: VISAGAR | D71: AKSHAY RAJENDRABHAI OSWAL | E71: SELL | F71: 1,955,827 | G71: 1.27 | H71: BSE
A72: 2023-02-15 | B72: BTML | C72: Bodhi Tree Multimedia Ltd | D72: HARDIK TILAK LALANI | E72: BUY | F72: 81,040 | G72: 151.03 | H72: NSE
A73: 2023-02-15 | B73: JETFREIGHT | C73: Jet Freight Logistics Ltd | D73: JILESH NAVIN CHHEDA | E73: BUY | F73: 216,856 | G73: 13.08 | H73: NSE
A74: 2023-02-15 | B74: JETFREIGHT | C74: Jet Freight Logistics Ltd | D74: HANSRAJ COMMOSALES LLP | E74: BUY | F74: 384,865 | G74: 12.92 | H74: NSE
A75: 2023-02-15 | B75: SECURCRED | C75: SecUR Credentials Limited | D75: PALAK INTERMEDIATES PRIVATE LIMITED | E75: BUY | F75: 471,304 | G75: 29.07 | H75: NSE
A76: 2023-02-15 | B76: SECURCRED | C76: SecUR Credentials Limited | D76: M/S. PRARTHANA ENTERPRISES | E76: BUY | F76: 219,487 | G76: 28.73 | H76: NSE
A77: 2023-02-15 | B77: TRU | C77: TruCap Finance Limited | D77: SAHITAY COMMOSALES LLP | E77: BUY | F77: 393,397 | G77: 62.36 | H77: NSE
A78: 2023-02-15 | B78: UGROCAP | C78: Ugro Capital Limited | D78: VARDHAMAN PATNI TRUST | E78: BUY | F78: 440,000 | G78: 152 | H78: NSE
A79: 2023-02-15 | B79: UGROCAP | C79: Ugro Capital Limited | D79: SHRUTI ARIHANT PATNI | E79: BUY | F79: 500,000 | G79: 152 | H79: NSE
A80: 2023-02-15 | B80: VCL | C80: Vaxtex Cotfab Limited | D80: BALJIT SINGH | E80: BUY | F80: 502,686 | G80: 3.6 | H80: NSE
A81: 2023-02-15 | B81: ZENTEC | C81: Zen Technologies Limited | D81: GRAVITON RESEARCH CAPITAL LLP | E81: BUY | F81: 606,005 | G81: 233.55 | H81: NSE
A82: 2023-02-15 | B82: JETFREIGHT | C82: Jet Freight Logistics Ltd | D82: HANSRAJ COMMOSALES LLP | E82: SELL | F82: 384,865 | G82: 13.01 | H82: NSE
A83: 2023-02-15 | B83: JETFREIGHT | C83: Jet Freight Logistics Ltd | D83: JILESH NAVIN CHHEDA | E83: SELL | F83: 307,022 | G83: 12.96 | H83: NSE
A84: 2023-02-15 | B84: SCAPDVR | C84: Stampede Capital Limited | D84: L7 HITECH PRIVATE LIMITED | E84: SELL | F84: 318,041 | G84: 8.8 | H84: NSE
A85: 2023-02-15 | B85: SECURCRED | C85: SecUR Credentials Limited | D85: PALAK INTERMEDIATES PRIVATE LIMITED | E85: SELL | F85: 544,212 | G85: 28.46 | H85: NSE
A86: 2023-02-15 | B86: SECURCRED | C86: SecUR Credentials Limited | D86: M/S. PRARTHANA ENTERPRISES | E86: SELL | F86: 4,487 | G86: 28.31 | H86: NSE
A87: 2023-02-15 | B87: TRU | C87: TruCap Finance Limited | D87: SAHITAY COMMOSALES LLP | E87: SELL | F87: 591,874 | G87: 61.64 | H87: NSE
A88: 2023-02-15 | B88: UGROCAP | C88: Ugro Capital Limited | D88: DBZ (CYPRUS) LIMITED | E88: SELL | F88: 2,500,000 | G88: 152 | H88: NSE
A89: 2023-02-15 | B89: VCL | C89: Vaxtex Cotfab Limited | D89: VAX ENTERPRISE PRIVATE LIMITED | E89: SELL | F89: 2,000,500 | G89: 3.6 | H89: NSE
A90: 2023-02-15 | B90: ZENTEC | C90: Zen Technologies Limited | D90: GRAVITON RESEARCH CAPITAL LLP | E90: SELL | F90: 606,005 | G90: 233.64 | H90: NSE

Sheet Call Tracker (Equity & F&O)
M5: Back To Main Page
A6: Retail Research Technical Calls & Fundamental Performance Report for the month of Feb-2023
M7: =Main!B10 -> 2023-02-16
B8: Positional Call
A9: Sr.no | B9: Date | D9: Company | E9: Rec | F9: Rec Price | G9: Stop Loss*** | H9: Call Closed At | I9: Target | J9: Remark | K9: Profit / Loss per Share | L9: All charges | M9: Net Gain / Loss % | N9: Status | O9: Closed Date | P9: Market Closing Price
A10: 1 | B10: 2022-10-27 | D10: ASHOKLEY | E10: Buy | F10: 147 | G10: 137 | H10: 154.5 | I10: 160-170 | J10: Profit of Rs.7.5/- | K10: =H10-F10 -> 7.5 | L10: =(F10*-0.7)/100 -> -1.03 | M10: =(K10+L10)/F10 -> 4.40% | N10: Successful | O10: 2022-02-02 | R10: N
A11: 2 | B11: 2022-11-25 | D11: SANOFI | E11: Buy | F11: 5670 | G11: 5250 | H11: 5905 | I11: 6200-6500 | J11: Part profit of Rs.235/- | K11: =H11-F11 -> 235 | L11: =(F11*-0.7)/100 -> -39.69 | M11: =(K11+L11)/F11 -> 3.44% | N11: Successful | O11: 2022-12-28 | R11: H
A12: 3 | B12: 2022-12-01 | D12: TCS | E12: Buy<> | F12: 3380 | G12: 3140 | I12: 3800-4000 | J12: Open | R12: H
A13: 4 | B13: 2023-01-10 | D13: BHARTIARTL | E13: Buy | F13: 780-800 | G13: 735 | I13: 870-900 | J13: Open | R13: H
A14: 5 | B14: 2023-01-16 | D14: NAVINFLUOR | E14: Buy | F14: 4025 | G14: 3770 | H14: 4260 | I14: 4300-4500 | J14: Profit of Rs.235/- | K14: =H14-F14 -> 235 | L14: =(F14*-0.7)/100 -> -28.18 | M14: =(K14+L14)/F14 -> 5.14% | N14: Successful | O14: 2023-02-07 | R14: N
A15: 6 | B15: 2023-01-19 | D15: SRF | E15: Buy | F15: 2140 | G15: 2000 | H15: 2277 | I15: 2300-2400 | J15: Profit of Rs.137/- | K15: 137 | L15: -14.98 | M15: 5.70% | N15: Successful | O15: 2023-02-10 | R15: N
A16: 7 | B16: 2023-01-24 | D16: PIIND | E16: Accu | F16: 3045 | G16: 2890 | H16: 3245 | I16: 3300-3400 | J16: Profit of Rs.200/- | K16: =H16-F16 -> 200 | L16: =(F16*-0.7)/100 -> -21.32 | M16: =(K16+L16)/F16 -> 5.87% | N16: Successful | O16: 2023-02-15 | R16: H
A17: 8 | B17: 2023-01-24 | D17: KIMS | E17: Buy | F17: 1435 | G17: 1340 | H17: 1512.5 | I17: 1580-1650 | J17: Part Profit of Rs.77.5/- | K17: =H17-F17 -> 77.5 | L17: =(F17*-0.7)/100 -> -10.05 | M17: =(K17+L17)/F17 -> 4.70% | N17: Successful | O17: 2023-01-31 | R17: N
A18: 9 | B18: 2023-01-25 | D18: REDINGTON | E18: Accu | F18: 177.5 | G18: 167 | H18: 189.5 | I18: 195-200 | J18: Profit of Rs.12/- | K18: =H18-F18 -> 12 | L18: =(F18*-0.7)/100 -> -1.24 | M18: =(K18+L18)/F18 -> 6.06% | N18: Successful | O18: 2023-02-01 | R18: H
A19: 10 | B19: 2023-01-27 | D19: HDFCAMC | E19: Accu | F19: 1930-1890 | G19: 1790 | I19: 2050-2150 | J19: Open | R19: H
A20: 11 | B20: 2023-02-01 | D20: FLUOROCHEM | E20: Accu | F20: 2645 | G20: 2480 | H20: 2840 | I20: 2900-3000 | J20: Profit of Rs.195/- | K20: =H20-F20 -> 195 | L20: =(F20*-0.7)/100 -> -18.52 | M20: =(K20+L20)/F20 -> 6.67% | N20: Successful | O20: 2023-02-07 | R20: H
A21: 12 | B21: 2023-02-01 | D21: AXISBANK | E21: Accu | F21: 825-850 | G21: 790 | I21: 900-950 | J21: Open | R21: H
A22: 13 | B22: 2023-02-02 | D22: SBIN | E22: Accu | F22: 522.5 | G22: 478 | H22: 553 | I22: 570-600 | J22: Profit of Rs.30.5/- | K22: =H22-F22 -> 30.5 | L22: =(F22*-0.7)/100 -> -3.66 | M22: =(K22+L22)/F22 -> 5.14% | N22: Successful | O22: 2023-02-10 | R22: H
A23: 14 | B23: 2023-02-06 | D23: LTIM | E23: Accu | F23: 4500 | G23: 4190 | H23: 4692.5 | I23: 4800-5000 | J23: Part profit of Rs.192.5/- | K23: =H23-F23 -> 192.5 | L23: =(F23*-0.7)/100 -> -31.50 | M23: =(K23+L23)/F23 -> 3.58% | N23: Successful | O23: 2023-02-08 | R23: H
A24: 15 | B24: 2023-02-06 | D24: JSWSTEEL | E24: Accu | F24: 717.5-695 | G24: 660 | I24: 770-800 | J24: Open | R24: H
A25: 16 | B25: 2023-02-06 | D25: ACC | E25: Accu | F25: 1890 | G25: 1745 | H25: 2025 | I25: 2100-2200 | J25: Profit of Rs.135/- | K25: =H25-F25 -> 135 | L25: =(F25*-0.7)/100 -> -13.23 | M25: =(K25+L25)/F25 -> 6.44% | N25: Successful | O25: 2023-02-07 | R25: H
A26: 17 | B26: 2023-02-08 | D26: INTELLECT | E26: Accu | F26: 452.2 | G26: 415 | H26: 474 | I26: 490-510 | J26: Profit of Rs.21.8/- | K26: =H26-F26 -> 21.8 | L26: =(F26*-0.7)/100 -> -3.17 | M26: =(K26+L26)/F26 -> 4.12% | N26: Successful | O26: 2023-02-14 | R26: H
A27: 18 | B27: 2023-02-09 | D27: ACC | E27: Accu | F27: 1895-1810 | G27: 1745 | I27: 2100-2200 | J27: Open | R27: H
A28: 19 | B28: 2023-02-15 | D28: PIIND | E28: Accu | F28: 3085-3005 | G28: 2890 | I28: 3300-3400 | J28: Open | R28: H
A33: CLBS = Closing Basis ***
A34: Dividend adjusted <> | F34: Reinitiated $
A35: Part book {} | D35: s | F35: Revised stoploss #
B37: Momentum Call
A38: Sr.no | B38: Date | D38: Company | E38: Rec | F38: Rec Price | G38: Stop Loss | H38: Call Closed At | I38: Target | J38: Remark | K38: Profit / Loss per Share/Lot | L38: All charges | M38: Net Gain / Loss % | N38: Status | O38: Closed Date
A39: 1 | B39: 2023-01-31 | D39: SBIN | E39: Buy | F39: 551 | G39: 530 | H39: 530 | I39: 575-585 | J39: Loss of Rs.21 | K39: =H39-F39 -> -21 | L39: =(F39*-0.7)/100 -> -3.86 | M39: =(K39+L39)/F39 -> -4.51% | N39: Unsuccessful | O39: 2023-02-01 | R39: H
A40: 2 | B40: 2023-02-01 | D40: LT | E40: Buy | F40: 2110 | G40: 2035 | H40: 2175 | I40: 2200-2250 | J40: Profit of Rs.65/- | K40: 65 | L40: =(F40*-0.07)/100 -> -1.48 | M40: 3.01% | N40: Successful | O40: 2023-02-01 | R40: H
A41: 3 | B41: 2023-02-01 | D41: AVANTIFEED | E41: Buy | F41: 406 | G41: 390 | H41: 388 | I41: 425-435 | J41: Loss of Rs.18 | K41: =H41-F41 -> -18 | L41: =(F41*-0.07)/100 -> -0.28 | M41: =(K41+L41)/F41 -> -4.50% | N41: Unsuccessful | O41: 2023-02-01 | R41: H
A42: 4 | B42: 2023-02-01 | D42: SIEMENS | E42: Buy | F42: 2965 | G42: 2850 | H42: 3044 | I42: 3100-3150 | J42: Profit of Rs.79/- | K42: 79 | L42: =(F42*-0.7)/100 -> -20.76 | M42: 1.96% | N42: Successful | O42: 2023-02-03 | R42: H
A43: 5 | B43: 2023-02-02 | D43: RELIANCE | E43: Buy | F43: 2315 | G43: 2245 | H43: 2400 | I43: 2400-2450 | J43: Profit of Rs.85/- | K43: =H43-F43 -> 85 | L43: =(F43*-0.7)/100 -> -16.21 | M43: =(K43+L43)/F43 -> 2.97% | N43: Successful | O43: 2023-02-15 | R43: H
A44: 6 | B44: 2023-02-02 | D44: LT | E44: Buy | F44: 2125 | G44: 2060 | H44: 2192.5 | I44: 2220-2260 | J44: Profit of Rs.67.50/- | K44: =H44-F44 -> 67.5 | L44: =(F44*-0.7)/100 -> -14.88 | M44: =(K44+L44)/F44 -> 2.48% | N44: Successful | O44: 2023-02-13 | R44: H
A45: 7 | B45: 2023-02-07 | D45: PRESTIGE | E45: Buy | F45: 399 | G45: 387 | H45: 413 | I45: 415-425 | J45: Profit of Rs.14/- | K45: =H45-F45 -> 14 | L45: =(F45*-0.7)/100 -> -2.79 | M45: =(K45+L45)/F45 -> 2.81% | N45: Successful | O45: 2023-02-10 | R45: H
A46: 8 | B46: 2023-02-07 | D46: M&M | E46: Buy | F46: 1360-1370 | G46: 1330 | I46: 1410-1430 | J46: Open | R46: H
A47: 9 | B47: 2023-02-08 | D47: BHARTIARTL | E47: Buy | F47: 770-775 | G47: 748 | I47: 800-810 | J47: Open | R47: H
A48: 10 | B48: 2023-02-14 | D48: CIPLA | E48: Buy | F48: 1020-1026 | G48: 995 | I48: 1060-1080 | J48: Open | R48: H
A49: 11 | B49: 2023-02-15 | D49: INTELLECT | E49: Buy | F49: 455 | G49: 442 | H49: 465.5 | I49: 470-475 | J49: Profit of Rs.10.5/- | K49: =H49-F49 -> 10.5 | L49: =(F49*-0.07)/100 -> -0.32 | M49: =(K49+L49)/F49 -> 2.24% | N49: Successful | O49: 2023-02-15 | R49: H
A50: 12 | B50: 2023-02-15 | D50: FLUOROCHEM | E50: Buy | F50: 2855-2865 | G50: 2770 | I50: 3000-3050 | J50: Open | R50: H
A54: CLBS = Closing Basis *** | H54: *
A55: Dividend adjusted <> | F55: Reinitiated $
F56: Revised stoploss #
A58: Master Trade High Risk
A59: Sr.no | B59: Date | D59: Company | E59: Rec | F59: Rec Price | G59: Stop Loss | H59: Call Closed At | I59: Target | J59: Remark | K59: Profit / Loss per share | L59: All charges | M59: Gain / Loss per Lot | N59: Lot | O59: Status | P59: Closed Date
A60: 1 | B60: 2023-02-09 | D60: RELIANCE FEB FUT | E60: Buy | F60: 2346 | G60: 2297 | H60: 2395 | I60: 2420-2450 | J60: Profit of Rs.49/- | K60: =H60-F60 -> 49 | L60: =(H60*N60)*0.07% -> 419.13 | M60: =(K60*N60)-L60 -> 11830.9 | N60: 250 | O60: Successful | P60: 2023-02-15 | R60: H
A62: Master Trade Medium Risk
A63: Sr.no | B63: Date | D63: Company | E63: Rec | F63: Rec Price | G63: Stop Loss | H63: Call Closed At | I63: Target | J63: Remark | K63: Profit/ Loss per lot | L63: All charges | M63: Gain / Loss per Lot | N63: Lot | O63: Status | P63: Closed Date
A64: 1 | B64: 2023-01-25 | D64: BEL 107 CE FEB | E64: Buy | F64: 0.95 | G64: 0.2 | H64: 0.95 | I64: 2-2.50 | J64: Neutral/- | K64: =H64-F64 -> 0 | L64: 100.00 | M64: =(K64*N64)-L64 -> -100.0 | N64: 5700 | O64: Neutral | P64: 2023-02-01 | R64: H
A65: 2 | B65: 2023-01-27 | D65: NIFTY 17800 CE 2 FEB | E65: Buy | F65: 107.5 | H65: 202.5 | J65: Profit of Rs.21 /- | K65: =H65-F65 -> 95 | L65: 100.00 | M65: 850.0 | N65: 50 | O65: Successful | P65: 2023-02-01 | R65: N
D66: NIFTY 17300 PE 2 FEB | E66: Buy | F66: 77.5 | H66: 3.5 | K66: =H66-F66 -> -74 | L66: 100.00 | N66: 50
A67: 3 | B67: 2023-02-01 | D67: NIFTY 17800 PE 2 FEB | E67: Buy | F67: 96 | G67: 18 | H67: 147.5 | I67: 200-250 | J67: Profit of Rs.51.5 /- | K67: =H67-F67 -> 51.5 | L67: 100.00 | M67: 2475.0 | N67: 50 | O67: Successful | P67: 2023-02-01 | R67: H
A68: 4 | B68: 2023-02-03 | D68: RELIANCE 2360 CE FEB | E68: Buy | F68: 41 | G68: 24 | H68: 46 | I68: 70-80 | J68: Profit of Rs.5 /- | K68: =H68-F68 -> 5 | L68: 100.00 | M68: =(K68*N68)-100 -> 1150.0 | N68: 250 | O68: Successful | P68: 2023-02-08 | R68: H
A69: 5 | B69: 2023-02-09 | D69: HDFCLIFE 510 PE FEB | E69: Buy | F69: 6.4 | G69: 3 | H69: 7.7 | I69: 10-12.0 | J69: Profit of Rs.1.3/- | K69: =H69-F69 -> 1.3 | L69: 100.00 | M69: =(K69*N69)-100 -> 1200.0 | N69: 1000 | O69: Successful | P69: 2023-02-14 | R69: H
A70: 6 | B70: 2023-02-13 | D70: NIFTY 17800 CE 16 FEB | E70: Buy | F70: 75 | G70: 35 | H70: 95 | I70: 120-140 | J70: Profit of Rs.20/- | K70: =H70-F70 -> 20 | L70: 100.00 | M70: =(K70*N70)-100 -> 900.0 | N70: 50 | O70: Successful | P70: 2023-02-14 | R70: H
A71: 7 | B71: 2023-02-13 | D71: RELIANCE 2340 CE FEB | E71: Buy | F71: 29.5 | G71: 9 | H71: 38 | I71: 55-65 | J71: Profit of Rs.8.5/- | K71: 8.5 | L71: 100.00 | M71: 2025.0 | N71: 250 | O71: Successful | P71: 2023-02-14 | R71: H
A72: 8 | B72: 2023-02-14 | D72: HDFCBANK 1680 CE FEB | E72: Buy | F72: 18-20 | G72: 9 | I72: 30-40 | J72: Open | R72: H
A73: 9 | B73: 2023-02-15 | D73: NIFTY 17950 PE 16 FEB | E73: Buy | F73: 53-57 | G73: 17 | I73: 90-120 | J73: Open | R73: H
A76: Techno -Funda (positional)
A77: Sr.no | B77: Date | D77: Company | E77: Rec | F77: Rec Price | G77: Stop Loss*** | H77: Call Closed At | I77: Target | J77: Remark | K77: Profit / Loss per Share/Lot | L77: All charges | M77: Net Gain / Loss % | N77: Status | O77: Closed Date | P77: Market Closing Price
A78: 1 | B78: 2022-10-06 | D78: AMBIKCO | E78: Buy | F78: 1420-1620 | G78: 1220 | I78: 2000-2300 | J78: Open | R78: H
A80: CLBS = Closing Basis *** | F80: Reinitiated $
A81: Dividend adjusted <> | F81: Revised stoploss # | H81: .................
B85: Investment Idea
A86: Sr.no | B86: Date | D86: Company | E86: Rec | F86: Rec Price | G86: Point of Review | H86: Close Rate | I86: Target | J86: Remark | K86: Profit / Loss per Share | L86: Gain / Loss % | M86: Status | N86: Closed Date
A87: 1 | B87: 2013-11-01 | D87: L&T Finance Holding | E87: Accu | F87: 82.00 | G87: - | H87: 100 | I87: 100.00 | J87: Target Achieved | K87: =H87-F87 -> 18.00 | L87: =K87/F87 -> 21.95% | M87: Successful | N87: 2016-10-14
A88: 2 | B88: 2014-06-04 | D88: Finolex Inds | E88: Buy | F88: 257.00 | G88: - | H88: 300 | I88: 300.00 | J88: Target Achieved | K88: 43.00 | L88: 16.73% | M88: Successful | N88: 2014-07-02
A89: 3 | B89: 2014-07-08 | D89: JK Cement | E89: Buy | F89: 393.00 | G89: - | H89: 468 | I89: 468.00 | J89: Target Achieved | K89: 75.00 | L89: 19.08% | M89: Successful | N89: 2014-08-12
A90: 4 | B90: 2014-08-06 | D90: Finolex Cables | E90: Buy | F90: 205.00 | G90: - | H90: 275 | I90: 250.00 | J90: Target Achieved | K90: 70.00 | L90: 34.15% | M90: Successful | N90: 2014-11-19
A91: 5 | B91: 2014-09-04 | D91: Exide Inds | E91: Buy | F91: 162.00 | G91: - | H91: 190 | I91: 190.00 | J91: Target Achieved | K91: 28.00 | L91: 17.28% | M91: Successful | N91: 2015-01-02
A92: 6 | B92: 2014-09-04 | D92: Deepak Nitrite | E92: Buy | F92: 75.00 | G92: - | H92: 91.5 | I92: 95-100 | J92: Profit of Rs.16.50/- | K92: 16.50 | L92: 22.00% | M92: Successful | N92: 2014-11-11
A93: 7 | B93: 2014-10-01 | D93: Mercks | E93: Buy | F93: 850.00 | G93: - | H93: 982.5 | I93: 1050.00 | J93: Profit of Rs.132.50/- | K93: 132.50 | L93: 15.59% | M93: Successful | N93: 2015-02-04
A94: 8 | B94: 2014-10-01 | D94: Grindwell Norton | E94: Buy | F94: 475.00 | G94: - | H94: 515 | I94: 600.00 | J94: Profit of Rs.40/- | K94: 40.00 | L94: 8.42% | M94: Successful | N94: 2014-10-27
A95: 9 | B95: 2014-10-01 | D95: Snowman Logistics | E95: Buy | F95: 86.00 | G95: - | H95: 99 | I95: 140.00 | J95: Profit of Rs.13.00/- | K95: 13.00 | L95: 15.12% | M95: Successful | N95: 2014-10-27
A96: 10 | B96: 2014-10-14 | D96: Birla Corp | E96: Buy | F96: 496.60 | G96: - | H96: 621 | I96: 580.00 | J96: Target Achieved | K96: 124.40 | L96: 25.05% | M96: Successful | N96: 2016-08-23
A97: 11 | B97: 2014-10-14 | D97: Ultratech Cem | E97: Buy | F97: 2481.90 | G97: - | H97: 2840 | I97: 2870.00 | J97: Profit of Rs.358.10/- | K97: 358.10 | L97: 14.43% | M97: Successful | N97: 2015-01-13
A98: 12 | B98: 2014-10-16 | D98: Sintex Inds | E98: Buy | F98: 84.50 | G98: - | H98: 93 | I98: 110.00 | J98: Profit of Rs.8.50/- | K98: 8.50 | L98: 10.06% | M98: Successful | N98: 2014-10-27
A99: 13 | B99: 2014-10-16 | D99: HSIL | E99: Buy | F99: 401.00 | G99: - | H99: 428 | I99: 450.00 | J99: Profit of Rs.27.00/- | K99: 27.00 | L99: 6.73% | M99: Successful | N99: 2015-01-16
A100: 14 | B100: 2014-10-16 | D100: Eveready Inds | E100: Buy | F100: 101.00 | G100: - | H100: 112 | I100: 120.00 | J100: Profit of Rs.11.00/- | K100: 11.00 | L100: 10.89% | M100: Successful | N100: 2014-10-27
A101: 15 | B101: 2014-11-11 | D101: Pennar Inds | E101: Buy | F101: 59.00 | G101: - | H101: 76 | I101: 76.00 | J101: Target Achieved | K101: 17.00 | L101: 28.81% | M101: Successful | N101: 2017-10-24
A102: 16 | B102: 2014-11-11 | D102: Snowman Logistics | E102: Buy | F102: 99.00 | G102: - | H102: 120 | I102: 120.00 | J102: Profit of Rs.21/- | K102: 21.00 | L102: 21.21% | M102: Successful | N102: 2014-11-17
A103: 17 | B103: 2014-11-13 | D103: Dharamsi Morarji Chem | E103: Buy | F103: 22.00 | G103: - | H103: 33.55 | I103: 32.00 | J103: Profit of Rs 11.55/- | K103: 11.55 | L103: 52.50% | M103: Successful | N103: 2015-07-03
A104: 18 | B104: 2014-12-03 | D104: Tatachem | E104: Buy | F104: 440.00 | G104: - | H104: 520 | I104: 520.00 | J104: Profit of Rs 80.00/- | K104: 80.00 | L104: 18.18% | M104: Successful | N104: 2015-07-23
A105: 19 | B105: 2014-12-03 | D105: Advanta | E105: Buy | F105: 360.00 | G105: - | H105: 427 | I105: 425.00 | J105: Profit of Rs.67.00/- | K105: 67.00 | L105: 18.61% | M105: Successful | N105: 2015-02-23
A106: 20 | B106: 2015-01-08 | D106: GDL | E106: Buy | F106: 360.00 | G106: - | H106: 455 | I106: 420.00 | J106: Profit of Rs.95.00/- | K106: 95.00 | L106: 26.39% | M106: Successful | N106: 2015-01-20
A107: 21 | B107: 2015-01-08 | D107: NRB Bearing | E107: Buy | F107: 130.00 | H107: 175.5 | I107: 165.00 | J107: Profit of Rs 45.50/- | K107: 45.50 | L107: 35.00% | M107: Successful | N107: 2017-12-19
A108: 22 | B108: 2015-02-05 | D108: GSFC | E108: Accu | F108: 98.00 | H108: 120 | I108: 120.00 | J108: Target Achieved | K108: 22.00 | L108: 22.45% | M108: Successful | N108: 2017-01-18
A109: 23 | B109: 2015-02-05 | D109: Sundrmfast | E109: Accu | F109: 196.00 | H109: 262 | I109: 255.00 | J109: Target Achieved | K109: 66.00 | L109: 33.67% | M109: Successful | N109: 2016-08-17
A110: 24 | B110: 2015-03-04 | D110: GPPL | E110: Accu | F110: 235 | H110: 77.00 | I110: 280-285 | J110: Loss of Rs.158/- | K110: -158.00 | L110: -67.23% | M110: Unsuccessful | N110: 2019-02-26
A111: 25 | B111: 2015-03-04 | D111: ORIENTCEM | E111: Accu | F111: 185.00 | H111: 224 | I111: 220-225 | J111: Target Achieved | K111: 39.00 | L111: 21.08% | M111: Successful | N111: 2016-10-04
A112: 26 | B112: 2015-03-27 | D112: PFS | E112: Accu | F112: 49.5 | H112: 15.85 | I112: 67.00 | J112: Loss of Rs.33.65/- | K112: -33.65 | L112: -68% | M112: Unsuccessful | N112: 2019-06-11
A113: 27 | B113: 2015-03-30 | D113: Walchandnagar Ind Ltd | E113: Accu | F113: 183.50 | H113: 219 | I113: 218.00 | J113: Profit of Rs.35.50/- | K113: 35.50 | L113: 19.35% | M113: Successful | N113: 2015-04-09
A114: 28 | B114: 2015-04-20 | D114: Kalpataru Power Transmission Ltd | E114: Accu | F114: =(227+237)/2 -> 232.00 | H114: 298 | I114: 298.00 | J114: Target Achieved | K114: 66.00 | L114: 28.45% | M114: Successful | N114: 2017-03-29
A115: 29 | B115: 2015-05-04 | D115: Mastek Ltd | E115: Buy | F115: 385.00 | H115: =212.5+331 -> 543.5 | I115: 510.00 | J115: Profit of Rs 158.50/- | K115: 158.50 | L115: 41.17% | M115: Successful | N115: 2015-08-19
A116: 30 | B116: 2015-05-04 | D116: Suprajit Eng | E116: Buy | F116: 115.50 | H116: 146 | I116: 142.00 | J116: Profit of Rs 30.50/- | K116: 30.50 | L116: 26.41% | M116: Successful | N116: 2015-07-17
A117: 31 | B117: 2015-05-27 | D117: TCI | E117: Buy | F117: 237.50 | H117: 279.5 | I117: 278.00 | J117: Target Achieved | K117: 42.00 | L117: 17.68% | M117: Successful | N117: 2015-08-06
A118: 32 | B118: 2015-06-19 | D118: HSIL | E118: Accu | F118: 340.00 | H118: 448 | I118: 448.00 | J118: Target Achieved | K118: 108.00 | L118: 31.76% | M118: Successful | N118: 2017-10-10
A119: 33 | B119: 2015-07-06 | D119: Capital First | E119: Accu | F119: 390.00 | H119: 460 | I119: 460.00 | J119: Target Achieved | K119: 70.00 | L119: 17.95% | M119: Successful | N119: 2016-04-18
A120: 34 | B120: 2015-07-10 | D120: Dolphin OffShore | E120: Accu | F120: 122.5 | H120: 61.00 | I120: 172.00 | J120: Loss of Rs.61.50/- | K120: -61.50 | L120: -50.20% | M120: Unsuccessful | N120: 2018-08-21
A121: 35 | B121: 2015-08-03 | D121: Allcargo logistics | E121: Accu | F121: 297.50 | H121: 350 | I121: 360.00 | J121: Profit of Rs 52.50/- | K121: 52.50 | L121: 17.65% | M121: Successful | N121: 2015-08-16
A122: 36 | B122: 2015-08-03 | D122: Camline Fine | E122: Accu | F122: 115.50 | H122: 149 | I122: 140.00 | J122: Profit of Rs 33.50/- | K122: 33.50 | L122: 29.00% | M122: Successful | N122: 2017-01-05
A123: 37 | B123: 2015-09-04 | D123: TCI | E123: Accu | F123: 226.00 | H123: 292 | I123: 292.00 | J123: Target Achieved | K123: 66.00 | L123: 29.20% | M123: Successful | N123: 2015-10-09
A124: 38 | B124: 2015-09-07 | D124: Kalpataru Power Transmission Ltd | E124: Accu | F124: 232.50 | H124: 312.5 | I124: 310.00 | J124: Target Achieved | K124: 80.00 | L124: 34.41% | M124: Successful | N124: 2017-03-29
A125: 39 | B125: 2015-09-21 | D125: LLOYD ELECTRIC & ENG LTD | E125: Accu | F125: 196.50 | H125: 238 | I125: 238.00 | J125: Target Achieved | K125: 41.50 | L125: 21.12% | M125: Successful | N125: 2015-10-14
A126: 40 | B126: 2015-09-24 | D126: L&T Finance Holding | E126: Accu | F126: 65.00 | H126: 82 | I126: 82.00 | J126: Target Achieved | K126: 17.00 | L126: 26.15% | M126: Successful | N126: 2016-07-27
A127: 41 | B127: 2015-10-14 | D127: KEC International ltd | E127: Accu | F127: 144.00 | H127: 182.5 | I127: 181.00 | J127: Target Achieved | K127: 38.50 | L127: 26.74% | M127: Successful | N127: 2017-03-23
A128: 42 | B128: 2015-10-14 | D128: Gruh Finance | E128: Accu | F128: 264.00 | H128: 311 | I128: 311.00 | J128: Target Achieved | K128: 47.00 | L128: 17.80% | M128: Successful | N128: 2016-08-22
A129: 43 | B129: 2015-11-10 | D129: Pidilitind | E129: Buy | F129: 549.50 | H129: 630 | I129: 630.00 | J129: Target Achieved | K129: 80.50 | L129: 14.65% | M129: Successful | N129: 2016-02-19
A130: 44 | B130: 2015-12-04 | D130: Zensar Technology | E130: Accu | F130: 1027.50 | H130: 1315 | I130: 1250.00 | J130: Target Achieved | K130: 287.50 | L130: 27.98% | M130: Successful | N130: 2018-05-24
A131: 45 | B131: 2015-12-29 | D131: Vinati Organics Ltd | E131: Accu | F131: 465.00 | H131: 540 | I131: 540.00 | J131: Target Achieved | K131: 75.00 | L131: 16.13% | M131: Successful | N131: 2016-06-09
A132: 46 | B132: 2016-01-11 | D132: GSFC | E132: Buy | F132: 81.00 | H132: 110 | I132: 110.00 | J132: Target Achieved | K132: 29.00 | L132: 35.80% | M132: Successful | N132: 2017-01-10
A133: 47 | B133: 2016-01-13 | D133: SSWL | E133: Buy | F133: 417.50 | H133: 547 | I133: 535.00 | J133: Target Achieved | K133: 129.50 | L133: 31.02% | M133: Successful | N133: 2016-07-27
A134: 48 | B134: 2016-02-08 | D134: Persistent System Ltd | E134: Accu | F134: 650.00 | H134: 800 | I134: 800.00 | J134: Target Achieved | K134: 150.00 | L134: 23.08% | M134: Successful | N134: 2018-02-23
A135: 49 | B135: 2016-03-04 | D135: UPL | E135: Accu | F135: 437.50 | H135: 504.5 | I135: 522.00 | J135: Profit of Rs.67/- | K135: 67.00 | L135: 15.31% | M135: Successful | N135: 2016-04-20
A136: 50 | B136: 2016-03-09 | D136: Ashoka Buildcon Ltd | E136: Accu | F136: 189.50 | H136: 218 | I136: 218.00 | J136: Target Achieved | K136: 28.50 | L136: 15.04% | M136: Successful | N136: 2017-10-26
A137: 51 | B137: 2016-04-11 | D137: PTC INDIA FIN SERV LTD | E137: Accu | F137: 36.5 | H137: 15.85 | I137: 60.00 | J137: Loss of Rs.20.65/- | K137: -20.65 | L137: -56.58% | M137: Unsuccessful | N137: 2019-06-11
A138: 52 | B138: 2016-04-12 | D138: CAMLINFINE $ | E138: Accu | F138: 93.00 | H138: 149 | I138: 140.00 | J138: Profit of Rs 56/- | K138: 56.00 | L138: 60.22% | M138: Successful | N138: 2017-01-05
A139: 53 | B139: 2016-04-12 | D139: Greaves Cotton Ltd. | E139: Accu | F139: 130.00 | H139: 150 | I139: 150-155 | J139: Target Achieved | K139: 20.00 | L139: 15.38% | M139: Successful | N139: 2016-07-13
A140: 54 | B140: 2016-04-13 | D140: DHFL | E140: Accu | F140: 196.00 | H140: 299 | I140: 299.00 | J140: Target Achieved | K140: 103.00 | L140: 52.55% | M140: Successful | N140: 2016-09-07
A141: 55 | B141: 2016-04-13 | D141: Magma | E141: Accu | F141: 88.00 | H141: 103 | I141: 103.00 | J141: Target Achieved | K141: 15.00 | L141: 17.05% | M141: Successful | N141: 2016-06-09
A142: 56 | B142: 2016-05-02 | D142: KEC International ltd $ | E142: Accu | F142: 127.50 | H142: 148 | I142: 148-150 | J142: Target Achieved | K142: =H142-F142 -> 20.50 | L142: =K142/F142 -> 16.08% | M142: Successful | N142: 2016-07-13
A143: 57 | B143: 2016-05-03 | D143: Mindtree | E143: Accu | F143: 675.00 | H143: 815 | I143: 790-800 | J143: Target Achieved | K143: =H143-F143 -> 140.00 | L143: =K143/F143 -> 20.74% | M143: Successful | N143: 2018-02-23
A144: 58 | B144: 2016-06-01 | D144: Atulauto | E144: Accu | F144: 500 | H144: 232.50 | I144: 565-570 | J144: Loss of Rs.267.50 /- | K144: =H144-F144 -> -267.50 | L144: =K144/F144 -> -53.50% | M144: Unsuccessful | N144: 2019-09-27
A145: 59 | B145: 2016-06-06 | D145: TRITURBINE | E145: Accu | F145: 110.00 | H145: 126.5 | I145: 125.00 | J145: Profit of Rs.16.50/- | K145: =H145-F145 -> 16.50 | L145: =K145/F145 -> 15.00% | M145: Successful | N145: 2016-07-01
A146: 60 | B146: 2016-06-17 | D146: Pennar Industries Ltd | E146: Accu | F146: 44.00 | H146: 69.5 | I146: 69.50 | J146: Profit of Rs.25.50/- | K146: =H146-F146 -> 25.50 | L146: =K146/F146 -> 57.95% | M146: Successful | N146: 2017-08-30
A147: 61 | B147: 2016-06-28 | D147: EVEREADY | E147: Accu | F147: 262.50 | H147: 340 | I147: 333.00 | J147: Profit of Rs.77.50/- | K147: 77.50 | L147: 29.52% | M147: Successful | N147: 2017-10-09
A148: 62 | B148: 2016-06-28 | D148: FIEMIND | E148: Accu | F148: 840.00 | H148: 1230 | I148: 1230.00 | J148: Target Achieved | K148: 390.00 | L148: 46.43% | M148: Successful | N148: 2016-10-06
A149: 63 | B149: 2016-07-05 | D149: Bajaj Corp Ltd | E149: Accu | F149: 395 | H149: =(468.5+342.5)/2 -> 405.50 | I149: 510.00 | J149: Profit of Rs.10.50/- | K149: =H149-F149 -> 10.50 | L149: =K149/F149 -> 3% | M149: Neutral | N149: 2019-05-21
A150: 64 | B150: 2016-08-02 | D150: GPPL $ | E150: Buy | F150: =169.5-12.8 -> 156.7 | H150: 77.00 | I150: 198-200 | J150: Loss of Rs.79.7/- | K150: -79.70 | L150: -50.86% | M150: Unsuccessful | N150: 2019-02-26
A151: 65 | B151: 2016-08-04 | D151: WONDERLA HOLIDAYS LTD | E151: Accu | F151: 400 | H151: 305.00 | I151: 475.00 | J151: Loss of Rs.95/- | K151: -95.00 | L151: -23.75% | M151: Unsuccessful | N151: 2019-05-21
A152: 66 | B152: 2016-08-11 | D152: CAMLINFINE | E152: Accu | F152: 86.50 | H152: 130 | I152: 130.00 | J152: Profit of Rs.43.50/- | K152: 43.50 | L152: 50.29% | M152: Successful | N152: 2017-12-22
A153: 67 | B153: 2016-08-18 | D153: GRANULES | E153: Accu | F153: 133.5 | H153: 126.50 | I153: 178.00 | J153: Exit | K153: -7.00 | L153: -5.24% | M153: Unsuccessful | N153: 2016-09-02
A154: 68 | B154: 2016-08-31 | D154: VA TECH WABAG | E154: Accu | F154: 560.00 | H154: 725 | I154: 725.00 | J154: Target Achieved | K154: 165.00 | L154: 29.46% | M154: Successful | N154: 2016-03-27
A155: 69 | B155: 2016-09-01 | D155: SKIPPER LIMITED | E155: Accu | F155: 160.50 | H155: 210 | I155: 210.00 | J155: Target Achieved | K155: 49.50 | L155: 30.84% | M155: Successful | N155: 2017-05-16
A156: 70 | B156: 2016-10-03 | D156: IFBIND | E156: Accu | F156: 430.00 | H156: 596 | I156: 575.00 | J156: Profit of Rs.166/- | K156: 166.00 | L156: 38.60% | M156: Successful | N156: 2017-02-03
A157: 71 | B157: 2016-10-14 | D157: ASIANTILES | E157: Accu | F157: 280.00 | H157: 345 | I157: 345.00 | J157: Target Achieved | K157: =H157-F157 -> 65.00 | L157: =K157/F157 -> 23.21% | M157: Successful | N157: 2017-03-20
A158: 72 | B158: 2016-10-14 | D158: DEEPIND | E158: Accu | F158: 245.00 | H158: 325.5 | I158: 330.00 | J158: Profit of Rs.80.5/- | K158: 80.50 | L158: =K158/F158 -> 32.86% | M158: Successful | N158: 2017-02-03
A159: 73 | B159: 2016-10-17 | D159: DCBBANK | E159: Accu | F159: 125.00 | H159: 160 | I159: 160.00 | J159: Target Achieved | K159: 35.00 | L159: 28.00% | M159: Successful | N159: 2017-03-09
A160: 74 | B160: 2016-10-17 | D160: ORIENTREF | E160: Accu | F160: 114.00 | H160: 145 | I160: 145.00 | J160: Target Achieved | K160: 31.00 | L160: =K160/F160 -> 27.19% | M160: Successful | N160: 2017-05-04
A161: 75 | B161: 2016-10-17 | D161: GANECOS | E161: Accu | F161: 212.00 | H161: 280 | I161: 276.00 | J161: Profit of Rs.68/- | K161: 68.00 | L161: =K161/F161 -> 32.08% | M161: Successful | N161: 2017-05-03
A162: 76 | B162: 2016-11-04 | D162: NBCC | E162: Accu | F162: 155.00 | H162: 210 | I162: 210.00 | J162: Profit of Rs.55/- | K162: 55.00 | L162: =K162/F162 -> 35.48% | M162: Successful | N162: 2017-07-28
A163: 77 | B163: 2016-12-06 | D163: PRECAM | E163: Accu | F163: 150.5 | H163: 72.50 | I163: 174.00 | J163: Loss of Rs.78/- | K163: -78.00 | L163: -51.83% | M163: Unsuccessful | N163: 2018-08-21
A164: 78 | B164: 2016-12-08 | D164: INFRATEL | E164: Accu | F164: 380.00 | H164: 478 | I164: 468.00 | J164: Target Achieved | K164: =H164-F164 -> 98.00 | L164: =K164/F164 -> 25.79% | M164: Successful | N164: 2017-10-17
A165: 79 | B165: 2016-12-30 | D165: GODREJPROP | E165: Accu | F165: 305.00 | H165: 375 | I165: 375.00 | J165: Target Achieved | K165: =H165-F165 -> 70.00 | L165: =K165/F165 -> 22.95% | M165: Successful | N165: 2017-02-02
A166: 80 | B166: 2017-01-04 | D166: DEEPAKNTR | E166: Accu | F166: 99.50 | H166: 158 | I166: 158.00 | J166: Target Achieved | K166: =H166-F166 -> 58.50 | L166: =K166/F166 -> 58.79% | M166: Successful | N166: 2017-06-12
A167: 81 | B167: 2017-01-04 | D167: DEEPAKNTR | E167: Accu | F167: 99.50 | H167: 158 | I167: 158.00 | J167: Target Achieved | K167: 58.50 | L167: 58.79% | M167: Successful | N167: 2017-06-12
A168: 82 | B168: 2017-02-20 | D168: RECLTD | E168: Accu | F168: 140.50 | H168: 220 | I168: 220.00 | J168: Target Achieved | K168: =H168-F168 -> 79.50 | L168: =K168/F168 -> 56.58% | M168: Successful | N168: 2017-05-09
A169: 83 | B169: 2017-02-20 | D169: SUBROS | E169: Accu | F169: 202.50 | H169: 234 | I169: 234.00 | J169: Target Achieved | K169: 31.50 | L169: 15.56% | M169: Successful | N169: 2017-04-11
A170: 84 | B170: 2017-03-24 | D170: VRLLOG | E170: Accu | F170: 300.50 | H170: 417.5 | I170: 420.00 | J170: Profit of Rs.117/- | K170: =H170-F170 -> 117.00 | L170: =K170/F170 -> 38.94% | M170: Successful | N170: 2017-12-01
A171: 85 | B171: 2017-03-24 | D171: FIEMIND | E171: Accu | F171: 850.00 | H171: 1042.5 | I171: 1023.00 | J171: Profit of Rs 192.50/- | K171: 192.50 | L171: 22.65% | M171: Successful | N171: 2017-04-05
A172: 86 | B172: 2017-04-05 | D172: RATNAMANI | E172: Accu | F172: 785.00 | H172: 930 | I172: 920.00 | J172: Profit of Rs.145/- | K172: =H172-F172 -> 145.00 | L172: =K172/F172 -> 18.47% | M172: Successful | N172: 2017-08-29
A173: 87 | B173: 2017-04-06 | D173: ZEEMEDIA | E173: Accu | F173: 40 | H173: 13.10 | I173: 60.00 | J173: Loss of Rs.26.9/- | K173: -26.90 | L173: -67.25% | M173: Unsuccessful | N173: 2018-02-07
A174: 88 | B174: 2017-04-12 | D174: DABUR | E174: Accu | F174: 289.50 | H174: 354 | I174: 360.00 | J174: Profit of Rs.64.5/- | K174: =H174-F174 -> 64.50 | L174: =K174/F174 -> 22.28% | M174: Successful | N174: 2017-11-01
A175: 89 | B175: 2017-04-20 | D175: KPRMILL | E175: Accu | F175: 700.00 | H175: 840 | I175: 840.00 | J175: Profit of Rs.140/- | K175: 140.00 | L175: 20.00% | M175: Successful | N175: 2017-06-07
A176: 90 | B176: 2017-06-01 | D176: ESSELPACK | E176: Accu | F176: 130.00 | H176: 144.25 | I176: 170.00 | J176: Profit of Rs.14.25/- | K176: 14.25 | L176: 10.96% | M176: Successful | N176: 2019-07-29
A177: 91 | B177: 2017-06-15 | D177: KEI | E177: Accu | F177: 214.50 | H177: 262 | I177: 262.00 | J177: Profit of Rs.47.5/- | K177: 47.50 | L177: 22.14% | M177: Successful | N177: 2017-08-30
A178: 92 | B178: 2017-07-17 | D178: MAYURUNIQ | E178: Accu | F178: 370.00 | H178: 447.5 | I178: 450.00 | J178: Target Achieved | K178: 77.50 | L178: 20.95% | M178: Successful | N178: 2017-10-27
A179: 93 | B179: 2017-07-27 | D179: RAMCOCEM | E179: Accu | F179: 657.50 | H179: 825 | I179: 820.00 | J179: Target Achieved | K179: 167.50 | L179: 25.48% | M179: Successful | N179: 2017-12-21
A180: 94 | B180: 2017-08-17 | D180: FINPIPE | E180: Accu | F180: 605.00 | H180: 750 | I180: 750.00 | J180: Profit of Rs.145/- | K180: 145.00 | L180: 23.97% | M180: Successful | N180: 2017-10-19
A181: 95 | B181: 2017-09-01 | D181: SHK | E181: Accu | F181: 255 | H181: 217.25 | I181: 320.00 | J181: Loss of Rs.37.75/- | K181: -37.75 | L181: -15% | M181: Unsuccessful | N181: 2019-07-15
A182: 96 | B182: 2017-09-19 | D182: SKIPPER | E182: Accu | F182: 215.00 | H182: 258 | I182: 258.00 | J182: Target Achieved | K182: 43.00 | L182: 20.00% | M182: Successful | N182: 2017-11-01
A183: 97 | B183: 2017-09-19 | D183: SKIPPER | E183: Accu | F183: 215.00 | H183: 258 | I183: 258.00 | J183: Target Achieved | K183: 43.00 | L183: 20.00% | M183: Successful | N183: 2017-11-01
A184: 98 | B184: 2017-09-20 | D184: CAMLINFINE$ | E184: Accu | F184: 75.00 | H184: 90 | I184: 90.00 | J184: Profit of Rs.15.00/- | K184: =H184-F184 -> 15.00 | L184: =K184/F184 -> 20.00% | M184: Successful | N184: 2017-10-11
A185: 99 | B185: 2017-10-03 | D185: GNA | E185: Accu | F185: 315.00 | H185: 392 | I185: 384.00 | J185: Profit of Rs.77/- | K185: 77.00 | L185: 24.44% | M185: Successful | N185: 2017-10-09
A186: 100 | B186: 2017-10-05 | D186: NOCIL | E186: Accu | F186: 145.00 | H186: 179 | I186: 180.00 | J186: Profit of Rs.34/- | K186: 34.00 | L186: 23.45% | M186: Successful | N186: 2017-10-17
A187: 101 | B187: 2017-10-06 | D187: CENTURYPLY | E187: Accu | F187: 256.00 | H187: 323 | I187: 320.00 | J187: Target Achieved | K187: 67.00 | L187: 26.17% | M187: Successful | N187: 2017-11-28
A188: 102 | B188: 2017-10-09 | D188: EIHOTEL | E188: Accu | F188: 137.50 | H188: 184 | I188: 183.00 | J188: Profit of Rs.46.5/- | K188: 46.50 | L188: 33.82% | M188: Successful | N188: 2018-01-08
A189: 103 | B189: 2017-10-10 | D189: NRBBEARING | E189: Accu | F189: 125.50 | H189: 158 | I189: 155.00 | J189: Profit of Rs.32.5/- | K189: 32.50 | L189: 25.90% | M189: Successful | N189: 2017-11-28
A190: 104 | B190: 2017-10-10 | D190: BOROSIL | E190: Accu | F190: 895.00 | H190: 1122.5 | I190: 1078.00 | J190: Profit of Rs.227.5/- | K190: 227.50 | L190: 25.42% | M190: Successful | N190: 2018-01-17
A191: 105 | B191: 2017-10-12 | D191: CYIENT | E191: Accu | F191: 525.00 | H191: 629 | I191: 629.00 | J191: Target Achieved | K191: 104.00 | L191: 19.81% | M191: Successful | N191: 2018-01-19
A192: 106 | B192: 2017-11-07 | D192: HATSUN | E192: Accu | F192: 740.00 | H192: 892.5 | I192: 900.00 | J192: Profit of Rs.152.5/- | K192: =H192-F192 -> 152.50 | L192: =K192/F192 -> 20.61% | M192: Successful | N192: 2017-11-13
A193: 107 | B193: 2017-12-04 | D193: SANGHIIND | E193: Accu | F193: 118.50 | H193: 143.5 | I193: 145.00 | J193: Profit of Rs.25/- | K193: =H193-F193 -> 25.00 | L193: =K193/F193 -> 21.10% | M193: Successful | N193: 2017-12-28
A194: 108 | B194: 2017-12-21 | D194: KAJARIACER | E194: Accu | F194: 715 | H194: 500.00 | I194: 872.00 | J194: Loss of Rs.215/- | K194: =H194-F194 -> -215.00 | L194: =K194/F194 -> -30.07% | M194: Unsuccessful | N194: 2019-07-24
A195: 109 | B195: 2017-12-29 | D195: GNA | E195: Accu | F195: 435.00 | H195: 542.5 | I195: 539.00 | J195: Target Achieved | K195: 107.50 | L195: 24.71% | M195: Successful | N195: 2018-04-16
A196: 110 | B196: 2017-12-29 | D196: ZENSARTECH | E196: Accu | F196: 885.00 | H196: 1090 | I196: 1084.00 | J196: Target Achieved | K196: 205.00 | L196: 23.16% | M196: Successful | N196: 2018-04-23
A197: 111 | B197: 2018-04-02 | D197: EVERESTIND | E197: Accu | F197: 478.50 | H197: 442 | I197: 613.00 | J197: Loss of Rs.36.50 /- | K197: =H197-F197 -> -36.50 | L197: =K197/F197 -> -7.63% | M197: Unsuccessful | N197: 2019-10-24
A198: 112 | B198: 2018-04-04 | D198: GPPL$ | E198: Accu | F198: =141.5-7.3 -> 134.2 | H198: 77.00 | I198: 180.00 | J198: Loss of Rs.57.2/- | K198: =H198-F198 -> -57.20 | L198: =K198/F198 -> -42.62% | M198: Unsuccessful | N198: 2019-02-26
A199: 113 | B199: 2018-04-19 | D199: MANPASAND | E199: Accu | F199: 430 | H199: 220.00 | I199: 537.00 | J199: Loss of Rs.210/- | K199: =H199-F199 -> -210.00 | L199: =K199/F199 -> -48.84% | M199: Unsuccessful | N199: 2018-06-01
A200: 114 | B200: 2018-04-30 | D200: HEIDELBERG | E200: Accu | F200: 153.5 | H200: 196 | I200: 196.00 | J200: Profit of Rs.42.50/- | K200: =H200-F200 -> 42.50 | L200: =K200/F200 -> 27.69% | M200: Successful | N200: 2019-05-20
A201: 115 | B201: 2018-07-25 | D201: ZEEMEDIA | E201: Accu | F201: 27.5 | H201: 13.10 | I201: 60.00 | J201: Loss of Rs.14.40/- | K201: -14.40 | L201: -52.36% | M201: Unsuccessful | N201: 2018-02-07
A202: 116 | B202: 2018-08-06 | D202: GABRIEL | E202: Accu | F202: 148.5 | H202: 102 | I202: 182.00 | J202: Loss of Rs.46.50/- | K202: =H202-F202 -> -46.50 | L202: =K202/F202 -> -31.31% | M202: Unsuccessful | N202: 2019-07-15
A203: 117 | B203: 2018-08-23 | D203: INDIANHUME | E203: Accu | F203: 285 | H203: 355 | I203: 364.00 | J203: Profit of Rs.70/- | K203: 70.00 | L203: 24.56% | M203: Successful | N203: 2018-12-21
A204: 118 | B204: 2018-08-29 | D204: GRINDWELL | E204: Accu | F204: 525 | H204: 585 | I204: 635.00 | J204: Profit of Rs.60- | K204: =H204-F204 -> 60.00 | L204: =K204/F204 -> 11.43% | M204: Successful | N204: 2019-07-16
A205: 119 | B205: 2018-10-22 | D205: FINPIPE | E205: Accu | F205: 475 | H205: 574 | I205: 570.00 | J205: Target Achieved | K205: 99.00 | L205: 20.84% | M205: Successful | N205: 2018-10-30
A206: 120 | B206: 2018-10-24 | D206: GULFOILLUB | E206: Accu | F206: 707.5 | H206: 872 | I206: 872.00 | J206: Target Achieved | K206: 164.50 | L206: 23.25% | M206: Successful | N206: 2019-01-17
A207: 121 | B207: 2018-10-25 | D207: DBCORP | E207: Accu | F207: 162 | H207: 204 | I207: 209.00 | J207: Profit of Rs.42/- | K207: 42.00 | L207: 25.93% | M207: Successful | N207: 2019-03-15
A208: 122 | B208: 2018-10-26 | D208: RITES | E208: Accu | F208: 240 | H208: 297 | I208: 297.00 | J208: Target Achieved | K208: 57.00 | L208: 23.75% | M208: Successful | N208: 2018-11-13
A209: 123 | B209: 2018-12-05 | D209: BRIGADE | E209: Accu | F209: 202.5 | H209: 255 | I209: 252.00 | J209: Target Achieved | K209: 52.50 | L209: 25.93% | M209: Successful | N209: 2019-03-18 | R209: V
A210: 124 | B210: 2018-12-31 | D210: JKCEMENT | E210: Accu | F210: 710 | H210: 866 | I210: 866.00 | J210: Target Achieved | K210: 156.00 | L210: 21.97% | M210: Successful | N210: 2019-03-29 | R210: V
A211: 125 | B211: 2019-02-26 | D211: MARICO | E211: Accu | F211: 337.25 | H211: 398.5 | I211: 411.00 | J211: Profit of Rs.61.25/- | K211: 61.25 | L211: 18.16% | M211: Successful | N211: 2019-10-22 | R211: V
A212: 126 | B212: 2019-04-04 | D212: ITDCEM | E212: Accu | F212: 130 | H212: 65 | I212: 158.00 | J212: Loss of Rs.65 /- | K212: -65.00 | L212: -50.00% | M212: Unsuccessful | N212: 2019-09-18 | R212: K
A213: 127 | B213: 2017-10-09 | D213: RECLTD | E213: Accu | F213: 141.5 | H213: 183.5 | I213: 210.00 | J213: Profit of Rs.42/- | K213: 42.00 | L213: 29.68% | M213: Successful | N213: 2017-11-03 | R213: K
A214: 128 | B214: 2017-12-05 | D214: ALLCARGO | E214: Accu | F214: 172.00 | H214: 155.25 | I214: 230.00 | J214: Loss of Rs.16.75/- | K214: -16.75 | L214: -9.74% | M214: Unsuccessful | N214: 2019-11-18 | R214: K
A215: 129 | B215: 2018-10-25 | D215: GODREJCP | E215: Accu | F215: 698.5 | H215: 890 | I215: 890.00 | J215: Profit of Rs.191.50/- | K215: 191.50 | L215: 27.42% | M215: Successful | N215: 2021-05-12 | R215: V
A216: 130 | B216: 2017-05-22 | D216: GREAVESCOT | E216: Accu | F216: 127.6 | H216: 138 | I216: 190.00 | J216: Profit of Rs.10.40 | K216: 10.40 | L216: 8.15% | M216: Successful | N216: 2019-11-05 | R216: K
A217: 131 | B217: 2018-02-27 | D217: MOLDTKPAC | E217: Accu | F217: 317 | H217: 382.5 | I217: 398.00 | J217: Profit of Rs.65.5 | K217: 65.50 | L217: 20.66% | M217: Successful | N217: 2021-02-11 | R217: K
A218: 132 | B218: 2018-03-05 | D218: LICHSGFIN | E218: Accu | F218: =510-14.4 -> 495.60 | H218: 350 | I218: 672.00 | J218: Loss of Rs.145.60/- | K218: -145.60 | L218: -29.38% | M218: Unsuccessful | N218: 2020-02-26 | R218: V
A219: 133 | B219: 2018-05-17 | D219: PHILIPCARB | E219: Accu | F219: 230.30 | H219: 102.5 | I219: 348.00 | J219: Loss of Rs.127.80/- | K219: -127.80 | L219: -55.49% | M219: Unsuccessful | N219: 2020-03-06 | R219: V
A220: 134 | B220: 2018-06-07 | D220: KEC | E220: Accu | F220: =342.5-5.1 -> 337.4 | H220: 412.5 | I220: 439.00 | J220: Profit of Rs.75.10 | K220: 75.10 | L220: 22.26% | M220: Successful | N220: 2021-02-03 | R220: K
... 48 more rows
